Workbook

Sheet Contratos 2019
A2: VEEDURIA DISTRITAL - RENDICION DE CUENTAS DE LA GESTION CONTRACTUAL EN EL DISTRITO CAPITAL (Acuerdo 380 de 2009)
A3: INFORMACION GENERAL DE CONTRATACION ENTIDADES DISTRITALES - ENERO 1 A 31 DICIEMBRE DE 2019
A5: 1. Entidad: | D5: LOCALIDAD ANTONIO NARIÑO | G5: 2. Sector | H5: GOBIERNO
A6: 3. Presupuesto Disponible Inversión Directa PREDIS | D6: 16156958224 | G6: 5. Presupuesto Disponible Funcionamiento PREDIS | H6: 1967861333 | U6: 9. Nombre de quien diligencia el formato
A7: 4. Presupuesto Comprometido de Inversión Directa según PREDIS | D7: 16000608854 | G7: 6. Presupuesto Comprometido Funcionamiento según PREDIS | H7: 1841574515 | U7: Cargo | W7: APOYO A LA GESTIÓN OFICINA DE CONTRATACIÓN
U8: Dependencia | W8: CONTRATACIÓN-GESTIÓN CORPORATIVA LOCAL
A9: 7. Presupuesto Disponible Operación (Regimen Privado) | U9: Teléfono | W9: 3118631508-4432490 Ext.225
A10: 8. Presupuesto Comprometido Operación mediante contratos | U10: Correo Electrónico | W10: jacqueline.leal@gobiernobogota.gov.co
A11: 1- INFORMACION GENERAL | O11: 2- INFORMACION FINANCIERA | V11: 3 - PLAZOS | AA11: 4 - ESTADO | AF11: 5. % Avance y/o cumplimiento
A12: 1 | B12: 2 | C12: 3 | D12: 4 | E12: 5 | F12: 6 | G12: 7 | H12: 8 | L12: 9 | M12: 10 | O12: 11 | P12: 12 | Q12: 13 | R12: 14 | S12: 15 | T12: 16 | U12: 17 | V12: 18 | W12: 19 | X12: 20 | Y12: 21 | Z12: 22 | AA12: 23 | AF12: 24
A13: Número Contrato | B13: Año | C13: Número de proceso contractual | D13: Tipo de contrato | E13: Modalidad de Selección | F13: Procedimiento o causal | G13: Objeto | H13: Afectación | I13: Número Programa | J13: Equivalencia número de programa | K13: Eje / Pilar | L13: Número Proyecto | M13: Número de Identificación del contratista (NIT con digito de verificación) | N13: Nombre del contratista | O13: Valor Inicial del contrato | P13: Número de reducciones | Q13: Valor total reducciones (En valor negativo) | R13: Número de adiciones | S13: Valor total de adiciones | T13: Valor Final | U13: Giros (Valor en pesos) | V13: Fecha de suscripción (DD/MM/AAAA) | W13: Fecha de inicio (DD/MM/AAAA) | X13: Fecha de terminación (DD/MM/AAAA) | Y13: Plazo en días | Z13: Prorroga en días | AA13: Anulado | AB13: Celebrado o por iniciar | AC13: En Ejecución | AD13: Terminado | AE13: Liquidado | AF13: % Avance y/o Cumplimiento | AH13: Total Contratos | AI13: Validación Tipo | AJ13: Validación Modalidad | AK13: Validación procedimiento | AL13: Validación afectación | AM13: Validación programa
A14: 1 | B14: 2019 | C14: CPS-01-2019 | D14: Contratos de prestación de servicios profesionales y de apoyo a la gestión | E14: Contratación directa | F14: Prestación de servicios profesionales y de apoyo a la gestión, o para la ejecución de trabajos artísticos que sólo puedan encomendarse a determinadas personas naturales; | G14: Prestación de servicios Técnico administrativo de apoyo al Despacho del Alcalde Local de Antonio Nariño en el manejo de los distintos asuntos y trámites asociados con la gestión administrativa local | H14: Inversión | I14: 45 | J14: =IF(ISERROR(VLOOKUP(I14,#REF!,2,FALSE))," ",VLOOKUP(I14,#REF!,2,FALSE)) ->  | K14: =IF(ISERROR(VLOOKUP(I14,#REF!,3,FALSE))," ",VLOOKUP(I14,#REF!,3,FALSE)) ->  | L14: 3-3-1-15-07-45-1441-000 | M14: 1126908588 | N14: Angelica Maria Hernandez Doria | O14: 38445000 | R14: 1 | S14: 5126000 | T14: =+O14+Q14+S14 -> 43571000 | U14: 40076000 | V14: 2019-01-17 | W14: 2019-01-17 | X14: 2020-01-31 | Y14: 374 | Z14: 44 | AC14: X | AF14: =IF(ISERROR(U14/T14),"-",(U14/T14)) -> 0.9197860963 | AG14: =T14 -> 43571000 | AH14: =IF(SUMPRODUCT((A$14:A14=A14)*(B$14:B14=B14)*(C$14:C14=C14))>1,0,1) -> 1 | AI14: =IFERROR(VLOOKUP(D14,tipo,1,FALSE),"NO") -> Contratos de prestación de servicios profesionales y de apoyo a la gestión | AJ14: =IFERROR(VLOOKUP(E14,modal,1,FALSE),"NO") -> Contratación directa | AK14: =IFERROR(VLOOKUP(F14,Tipo!$C$12:$C$27,1,FALSE),"NO") -> Prestación de servicios profesionales y de apoyo a la gestión, o para la ejecución de trabajos artísticos que sólo puedan encomendarse a determinadas personas naturales; | AL14: =IFERROR(VLOOKUP(H14,afectacion,1,FALSE),"NO") -> Inversión | AM14: =IFERROR(VLOOKUP(I14,programa,1,FALSE),"NO") -> NO
A15: 2 | B15: 2019 | C15: CPS-002-2019 | D15: Contratos de prestación de servicios profesionales y de apoyo a la gestión | E15: Contratación directa | F15: Prestación de servicios profesionales y de apoyo a la gestión, o para la ejecución de trabajos artísticos que sólo puedan encomendarse a determinadas personas naturales; | G15: Prestación de servicios de apoyo en el manejo de sistemas de información en los temas relacionados con la contratación que realiza el área de gestión de desarrollo local de Antonio Nariño. | H15: Inversión | I15: 45 | J15: =IF(ISERROR(VLOOKUP(I15,#REF!,2,FALSE))," ",VLOOKUP(I15,#REF!,2,FALSE)) ->  | K15: =IF(ISERROR(VLOOKUP(I15,#REF!,3,FALSE))," ",VLOOKUP(I15,#REF!,3,FALSE)) ->  | L15: 3-3-1-15-07-45-1441-000 | M15: 57443219 | N15: Jacqueline Leal Rangel | O15: 26048880 | R15: 1 | S15: 6596700 | T15: 32645580 | U15: 24785904 | V15: 2019-01-17 | W15: 2019-01-17 | X15: 2019-12-30 | Y15: 344 | Z15: 14 | AD15: X | AF15: =IF(ISERROR(U15/T15),"-",(U15/T15)) -> 0.7592422619 | AG15: =T15 -> 32645580 | AH15: =IF(SUMPRODUCT((A$14:A15=A15)*(B$14:B15=B15)*(C$14:C15=C15))>1,0,1) -> 1 | AI15: Contratos de prestación de servicios profesionales y de apoyo a la gestión | AJ15: Contratación directa | AK15: =IFERROR(VLOOKUP(F15,Tipo!$C$12:$C$27,1,FALSE),"NO") -> Prestación de servicios profesionales y de apoyo a la gestión, o para la ejecución de trabajos artísticos que sólo puedan encomendarse a determinadas personas naturales; | AL15: Inversión | AM15: NO
A16: 3 | B16: 2019 | C16: FDLAN-CD-003-2019 | D16: Contratos de prestación de servicios profesionales y de apoyo a la gestión | E16: Contratación directa | F16: Prestación de servicios profesionales y de apoyo a la gestión, o para la ejecución de trabajos artísticos que sólo puedan encomendarse a determinadas personas naturales; | G16: PRESTACIÓN DE SERVICIOS PROFESIONALES PARA COORDINAR, LIDERAR Y ASESORAR LOS PLANES Y ESTRATEGIAS DE COMUNICACIÓN INTERNA Y EXTERNA PARA LA DIVULGACIÓN DE LOS PROGRAMAS, PROYECTOS Y ACTIVIDADES DE LA ALCALDÍA LOCAL | H16: Inversión | I16: 45 | J16: =IF(ISERROR(VLOOKUP(I16,#REF!,2,FALSE))," ",VLOOKUP(I16,#REF!,2,FALSE)) ->  | K16: =IF(ISERROR(VLOOKUP(I16,#REF!,3,FALSE))," ",VLOOKUP(I16,#REF!,3,FALSE)) ->  | L16: 3-3-1-15-07-45-1441-000 | M16: 52428475 | N16: Diana Olaya Torres | O16: 59970000 | R16: 1 | S16: 7996000 | T16: 67966000 | U16: 61969000 | V16: 2019-01-21 | W16: 2019-01-21 | X16: 2019-12-30 | Y16: 340 | Z16: 40 | AD16: X | AF16: =IF(ISERROR(U16/T16),"-",(U16/T16)) -> 0.9117647059 | AG16: 67966000 | AH16: =IF(SUMPRODUCT((A$14:A16=A16)*(B$14:B16=B16)*(C$14:C16=C16))>1,0,1) -> 1 | AI16: Contratos de prestación de servicios profesionales y de apoyo a la gestión | AJ16: Contratación directa | AK16: =IFERROR(VLOOKUP(F16,Tipo!$C$12:$C$27,1,FALSE),"NO") -> Prestación de servicios profesionales y de apoyo a la gestión, o para la ejecución de trabajos artísticos que sólo puedan encomendarse a determinadas personas naturales; | AL16: Inversión | AM16: NO
A17: 4 | B17: 2019 | C17: FDLAN-CD-004-2019 | D17: Contratos de prestación de servicios profesionales y de apoyo a la gestión | E17: Contratación directa | F17: Prestación de servicios profesionales y de apoyo a la gestión, o para la ejecución de trabajos artísticos que sólo puedan encomendarse a determinadas personas naturales; | G17: Prestación de servicios profesionales al despacho de la Alcaldía Local Antonio Nariño para fortalecer el proceso de atención a los requerimientos de los entes de control y las diferentes oficinas del Gobierno Distrital | H17: Inversión | I17: 45 | J17: =IF(ISERROR(VLOOKUP(I17,#REF!,2,FALSE))," ",VLOOKUP(I17,#REF!,2,FALSE)) ->  | K17: =IF(ISERROR(VLOOKUP(I17,#REF!,3,FALSE))," ",VLOOKUP(I17,#REF!,3,FALSE)) ->  | L17: 3-3-1-15-07-45-1441-000 | M17: 1026270893 | N17: Jorge Eduardo Salgado Ardila | O17: =86784000 -> 86784000 | T17: 86784000 | U17: 79104000 | V17: 2019-01-21 | W17: 2019-01-22 | X17: 2019-12-31 | Y17: 339 | AD17: X | AF17: 0.9115044248 | AG17: 86784000 | AH17: =IF(SUMPRODUCT((A$14:A17=A17)*(B$14:B17=B17)*(C$14:C17=C17))>1,0,1) -> 1 | AI17: Contratos de prestación de servicios profesionales y de apoyo a la gestión | AJ17: Contratación directa | AK17: =IFERROR(VLOOKUP(F17,Tipo!$C$12:$C$27,1,FALSE),"NO") -> Prestación de servicios profesionales y de apoyo a la gestión, o para la ejecución de trabajos artísticos que sólo puedan encomendarse a determinadas personas naturales; | AL17: Inversión | AM17: NO
A18: 5 | B18: 2019 | C18: FDLAN-CD-008-2019 | D18: Contratos de prestación de servicios profesionales y de apoyo a la gestión | E18: Contratación directa | F18: Prestación de servicios profesionales y de apoyo a la gestión, o para la ejecución de trabajos artísticos que sólo puedan encomendarse a determinadas personas naturales; | G18: Prestar sus servicios profesionales para apoyar los procesos de aplicación, implementación y socialización de los estándares internacionales de contabilidad e información financiera al interior del Fondo de Desarrollo local | H18: Inversión | I18: 45 | J18: =IF(ISERROR(VLOOKUP(I18,#REF!,2,FALSE))," ",VLOOKUP(I18,#REF!,2,FALSE)) ->  | K18: =IF(ISERROR(VLOOKUP(I18,#REF!,3,FALSE))," ",VLOOKUP(I18,#REF!,3,FALSE)) ->  | L18: 3-3-1-15-07-45-1441-000 | M18: 1075216502 | N18: Luis Wilson Morales Montero | O18: 15609330 | T18: 15609330 | U18: =10879230+4730100 -> 15609330 | V18: 2019-01-22 | W18: 2019-01-22 | X18: 2019-04-30 | Y18: 330 | AD18: X | AF18: 1 | AG18: 15609330 | AH18: =IF(SUMPRODUCT((A$14:A18=A18)*(B$14:B18=B18)*(C$14:C18=C18))>1,0,1) -> 1 | AI18: Contratos de prestación de servicios profesionales y de apoyo a la gestión | AJ18: Contratación directa | AK18: =IFERROR(VLOOKUP(F18,Tipo!$C$12:$C$27,1,FALSE),"NO") -> Prestación de servicios profesionales y de apoyo a la gestión, o para la ejecución de trabajos artísticos que sólo puedan encomendarse a determinadas personas naturales; | AL18: Inversión | AM18: NO
A19: 6 | B19: 2019 | C19: FDLAN-CD-006-2019 | D19: Contratos de prestación de servicios profesionales y de apoyo a la gestión | E19: Contratación directa | F19: Prestación de servicios profesionales y de apoyo a la gestión, o para la ejecución de trabajos artísticos que sólo puedan encomendarse a determinadas personas naturales; | G19: Prestar sus servicios en el manejo, validación y actualización de la información de los aplicativos SIPSE, SEGPLAN, tablero de control de seguimientos de los proyectos de inversión del FDLAN y apoyo a las actividades inherentes al Sistema Integrado de Gestión SIG y Subsistema de Calidad | H19: Inversión | I19: 45 | J19: =IF(ISERROR(VLOOKUP(I19,#REF!,2,FALSE))," ",VLOOKUP(I19,#REF!,2,FALSE)) ->  | K19: =IF(ISERROR(VLOOKUP(I19,#REF!,3,FALSE))," ",VLOOKUP(I19,#REF!,3,FALSE)) ->  | L19: 3-3-1-15-07-45-1441-000 | M19: 1026565159 | N19: Karen Herrera | O19: 53607800 | T19: =+O19+Q19+S19 -> 53607800 | U19: 48877700 | V19: 2019-01-22 | W19: 2019-01-22 | X19: 2019-12-31 | Y19: 340 | AD19: X | AF19: 0.9117647059 | AG19: 53607800 | AH19: =IF(SUMPRODUCT((A$14:A19=A19)*(B$14:B19=B19)*(C$14:C19=C19))>1,0,1) -> 1 | AI19: =IFERROR(VLOOKUP(D19,tipo,1,FALSE),"NO") -> Contratos de prestación de servicios profesionales y de apoyo a la gestión | AJ19: =IFERROR(VLOOKUP(E19,modal,1,FALSE),"NO") -> Contratación directa | AK19: =IFERROR(VLOOKUP(F19,Tipo!$C$12:$C$27,1,FALSE),"NO") -> Prestación de servicios profesionales y de apoyo a la gestión, o para la ejecución de trabajos artísticos que sólo puedan encomendarse a determinadas personas naturales; | AL19: =IFERROR(VLOOKUP(H19,afectacion,1,FALSE),"NO") -> Inversión | AM19: =IFERROR(VLOOKUP(I19,programa,1,FALSE),"NO") -> NO
A20: 7 | B20: 2019 | C20: FDLAN-CD-007-2019 | D20: Contratos de prestación de servicios profesionales y de apoyo a la gestión | E20: Contratación directa | F20: Prestación de servicios profesionales y de apoyo a la gestión, o para la ejecución de trabajos artísticos que sólo puedan encomendarse a determinadas personas naturales; | G20: Apoyar técnicamente a los responsables e integrantes de los procesos en la implementación de herramientas de gestión, siguiendo los lineamientos metodológicos establecidos por la Oficina Asesora de Planeación de la Secretaría Distrital de Gobierno | H20: Inversión | I20: 45 | J20: =IF(ISERROR(VLOOKUP(I20,#REF!,2,FALSE))," ",VLOOKUP(I20,#REF!,2,FALSE)) ->  | K20: =IF(ISERROR(VLOOKUP(I20,#REF!,3,FALSE))," ",VLOOKUP(I20,#REF!,3,FALSE)) ->  | L20: 3-3-1-15-07-45-1441-000 | M20: 1032446399 | N20: Sara Sofia Lancheros Ramirez | O20: 64725270 | T20: 64725270 | U20: 58997370 | V20: 2019-01-22 | W20: 2019-01-23 | X20: 2019-12-31 | Y20: 339 | AD20: X | AF20: 0.9115044248 | AG20: 64725270 | AH20: =IF(SUMPRODUCT((A$14:A20=A20)*(B$14:B20=B20)*(C$14:C20=C20))>1,0,1) -> 1
A21: 8 | B21: 2019 | C21: FDLAN-CD-005-2019 | D21: Contratos de prestación de servicios profesionales y de apoyo a la gestión | E21: Contratación directa | F21: Prestación de servicios profesionales y de apoyo a la gestión, o para la ejecución de trabajos artísticos que sólo puedan encomendarse a determinadas personas naturales; | G21: Prestar los servicios profesionales al Área de Gestión de Desarrollo Local de Antonio Nariño en los diferentes trámites relacionados con los procesos de selección de contratistas | H21: Inversión | I21: 45 | J21: =IF(ISERROR(VLOOKUP(I21,#REF!,2,FALSE))," ",VLOOKUP(I21,#REF!,2,FALSE)) ->  | K21: =IF(ISERROR(VLOOKUP(I21,#REF!,3,FALSE))," ",VLOOKUP(I21,#REF!,3,FALSE)) ->  | L21: 3-3-1-15-07-45-1441-000 | M21: 80778782 | N21: David Ricardo Molina Peñuela | O21: 86784000 | T21: 86784000 | U21: 79104000 | V21: 2019-01-22 | W21: 2019-01-22 | X21: 2019-12-31 | Y21: 339 | AD21: X | AF21: 0.9115044248 | AG21: 86784000 | AH21: =IF(SUMPRODUCT((A$14:A21=A21)*(B$14:B21=B21)*(C$14:C21=C21))>1,0,1) -> 1
A22: 9 | B22: 2019 | C22: FDLAN-CD-009-2019 | D22: Contratos de prestación de servicios profesionales y de apoyo a la gestión | E22: Contratación directa | F22: Prestación de servicios profesionales y de apoyo a la gestión, o para la ejecución de trabajos artísticos que sólo puedan encomendarse a determinadas personas naturales; | G22: Prestar apoyo como auxiliar administrativo a la Junta Administradora Local de la Alcaldía Local Antonio Nariño | H22: Inversión | I22: 45 | J22: =IF(ISERROR(VLOOKUP(I22,#REF!,2,FALSE))," ",VLOOKUP(I22,#REF!,2,FALSE)) ->  | K22: =IF(ISERROR(VLOOKUP(I22,#REF!,3,FALSE))," ",VLOOKUP(I22,#REF!,3,FALSE)) ->  | L22: 3-3-1-15-07-45-1441-000 | M22: 1013666496 | N22: Eliana Katerine Rozo Quintero | O22: 25417392 | R22: 1 | S22: 1341912 | T22: 26759304 | U22: 24391224 | V22: 2019-01-22 | W22: 2019-01-22 | X22: 2019-12-30 | Y22: 339 | Z22: 17 | AD22: X | AF22: 0.9115044248 | AG22: 26759304 | AH22: =IF(SUMPRODUCT((A$14:A22=A22)*(B$14:B22=B22)*(C$14:C22=C22))>1,0,1) -> 1 | AI22: Contratos de prestación de servicios profesionales y de apoyo a la gestión | AJ22: Contratación directa | AK22: =IFERROR(VLOOKUP(F22,Tipo!$C$12:$C$27,1,FALSE),"NO") -> Prestación de servicios profesionales y de apoyo a la gestión, o para la ejecución de trabajos artísticos que sólo puedan encomendarse a determinadas personas naturales; | AL22: Inversión | AM22: NO
A23: 10 | B23: 2019 | C23: FDLAN-CD-010-2019 | D23: Contratos de prestación de servicios profesionales y de apoyo a la gestión | E23: Contratación directa | F23: Prestación de servicios profesionales y de apoyo a la gestión, o para la ejecución de trabajos artísticos que sólo puedan encomendarse a determinadas personas naturales; | G23: Prestación de servicios de apoyo al Área de Gestión de Desarrollo Local Antonio Nariño como auxiliar técnico para la formulación, socialización y seguimiento de los programas y proyectos de inversión relacionados con la malla vial local, el espacio público, parques y en general los asociados con todo tipo intervenciones en infraestructura que le sean asignados | H23: Inversión | I23: 45 | J23: =IF(ISERROR(VLOOKUP(I23,#REF!,2,FALSE))," ",VLOOKUP(I23,#REF!,2,FALSE)) ->  | K23: =IF(ISERROR(VLOOKUP(I23,#REF!,3,FALSE))," ",VLOOKUP(I23,#REF!,3,FALSE)) ->  | L23: 3-3-1-15-02-17-1437-000 | M23: 1026570525 | N23: Juan José Londoño Salgado | O23: 39493500 | T23: 39493500 | U23: 35998500 | V23: 2019-01-23 | W23: 2019-01-23 | X23: 2019-12-31 | Y23: 339 | AD23: X | AF23: 0.9115044248 | AG23: 39493500 | AH23: =IF(SUMPRODUCT((A$14:A23=A23)*(B$14:B23=B23)*(C$14:C23=C23))>1,0,1) -> 1 | AI23: Contratos de prestación de servicios profesionales y de apoyo a la gestión | AJ23: Contratación directa | AK23: =IFERROR(VLOOKUP(F23,Tipo!$C$12:$C$27,1,FALSE),"NO") -> Prestación de servicios profesionales y de apoyo a la gestión, o para la ejecución de trabajos artísticos que sólo puedan encomendarse a determinadas personas naturales; | AL23: Inversión | AM23: NO
A24: 11 | B24: 2019 | C24: FDLAN-CD-014-2019 | D24: Contratos de prestación de servicios profesionales y de apoyo a la gestión | E24: Contratación directa | F24: Prestación de servicios profesionales y de apoyo a la gestión, o para la ejecución de trabajos artísticos que sólo puedan encomendarse a determinadas personas naturales; | G24: Servicios de apoyo al área de Gestión de Desarrollo Local Antonio Nariño como auxiliar técnico para la formulación, socialización y seguimiento de los programas y proyectos de inversión relacionados con la malla vial local, el espacio público, parques y en general los asociados con todo tipo de intervenciones en infraestructura que le sean asignados. | H24: Inversión | I24: 45 | J24: =IF(ISERROR(VLOOKUP(I24,#REF!,2,FALSE))," ",VLOOKUP(I24,#REF!,2,FALSE)) ->  | K24: =IF(ISERROR(VLOOKUP(I24,#REF!,3,FALSE))," ",VLOOKUP(I24,#REF!,3,FALSE)) ->  | L24: 3-3-1-15-02-17-1437-000 | M24: 1019067443 | N24: Juan Camilo Gallego | O24: 39493500 | T24: 39493500 | U24: 35998500 | V24: 2019-01-23 | W24: 2019-01-23 | X24: 2019-12-31 | Y24: 339 | AD24: X | AF24: 0.9115044248 | AG24: 39493500 | AH24: =IF(SUMPRODUCT((A$14:A24=A24)*(B$14:B24=B24)*(C$14:C24=C24))>1,0,1) -> 1 | AI24: Contratos de prestación de servicios profesionales y de apoyo a la gestión | AJ24: Contratación directa | AK24: =IFERROR(VLOOKUP(F24,Tipo!$C$12:$C$27,1,FALSE),"NO") -> Prestación de servicios profesionales y de apoyo a la gestión, o para la ejecución de trabajos artísticos que sólo puedan encomendarse a determinadas personas naturales; | AL24: Inversión | AM24: NO
A25: 12 | B25: 2019 | C25: FDLAN-CD-011-2019 | D25: Contratos de prestación de servicios profesionales y de apoyo a la gestión | E25: Contratación directa | F25: Prestación de servicios profesionales y de apoyo a la gestión, o para la ejecución de trabajos artísticos que sólo puedan encomendarse a determinadas personas naturales; | G25: Prestar servicios profesionales como Abogado, para fortalecer el equipo del Área de Gestión de Desarrollo Local de Antonio Nariño en los diferentes trámites jurídicos y contractuales necesarios para la ejecución del Plan de Desarrollo Local | H25: Inversión | I25: 45 | J25: =IF(ISERROR(VLOOKUP(I25,#REF!,2,FALSE))," ",VLOOKUP(I25,#REF!,2,FALSE)) ->  | K25: =IF(ISERROR(VLOOKUP(I25,#REF!,3,FALSE))," ",VLOOKUP(I25,#REF!,3,FALSE)) ->  | L25: 3-3-1-15-07-45-1441-000 | M25: 79955083 | N25: Carlos Alberto Melo Lopez | O25: 66858660 | T25: 66858660 | U25: 60577998 | V25: 2019-01-24 | W25: 2019-01-24 | X25: 2019-12-31 | Y25: 330 | AD25: X | AF25: 0.9060606061 | AG25: 66858660 | AH25: =IF(SUMPRODUCT((A$14:A25=A25)*(B$14:B25=B25)*(C$14:C25=C25))>1,0,1) -> 1 | AI25: Contratos de prestación de servicios profesionales y de apoyo a la gestión | AJ25: Contratación directa | AK25: =IFERROR(VLOOKUP(F25,Tipo!$C$12:$C$27,1,FALSE),"NO") -> Prestación de servicios profesionales y de apoyo a la gestión, o para la ejecución de trabajos artísticos que sólo puedan encomendarse a determinadas personas naturales; | AL25: Inversión | AM25: NO
A26: 13 | B26: 2019 | C26: FDLAN-CD-012-2019 | D26: Contratos de prestación de servicios profesionales y de apoyo a la gestión | E26: Contratación directa | F26: Prestación de servicios profesionales y de apoyo a la gestión, o para la ejecución de trabajos artísticos que sólo puedan encomendarse a determinadas personas naturales; | G26: Prestar servicios profesionales como Abogado, en los diversos temas contractuales que requiera al Área de Gestión de Desarrollo Local de Antonio Nariño | H26: Inversión | I26: 45 | J26: =IF(ISERROR(VLOOKUP(I26,#REF!,2,FALSE))," ",VLOOKUP(I26,#REF!,2,FALSE)) ->  | K26: =IF(ISERROR(VLOOKUP(I26,#REF!,3,FALSE))," ",VLOOKUP(I26,#REF!,3,FALSE)) ->  | L26: 3-3-1-15-07-45-1441-000 | M26: 39725525 | N26: Gina Paola Cubillos Castañeda | O26: 67650000 | R26: 1 | S26: 1640000 | T26: 69290000 | U26: 63140000 | V26: 2019-01-24 | W26: 2019-01-24 | X26: 2019-12-30 | Y26: 338 | Z26: 8 | AD26: X | AF26: 0.9112426036 | AG26: 69290000 | AH26: =IF(SUMPRODUCT((A$14:A26=A26)*(B$14:B26=B26)*(C$14:C26=C26))>1,0,1) -> 1 | AI26: Contratos de prestación de servicios profesionales y de apoyo a la gestión | AJ26: Contratación directa | AK26: =IFERROR(VLOOKUP(F26,Tipo!$C$12:$C$27,1,FALSE),"NO") -> Prestación de servicios profesionales y de apoyo a la gestión, o para la ejecución de trabajos artísticos que sólo puedan encomendarse a determinadas personas naturales; | AL26: Inversión | AM26: NO
A27: 14 | B27: 2019 | C27: FDLAN-CD-013-2019 | D27: Contratos de prestación de servicios profesionales y de apoyo a la gestión | E27: Contratación directa | F27: Prestación de servicios profesionales y de apoyo a la gestión, o para la ejecución de trabajos artísticos que sólo puedan encomendarse a determinadas personas naturales; | G27: Prestación de servicios de apoyo al Área de Gestión de Desarrollo Local Antonio Nariño como auxiliar técnico para la formulación, socialización y seguimiento de los programas y proyectos de inversión relacionados con la malla vial local, el espacio público, parques y en general los asociados con todo tipo intervenciones en infraestructura que le sean asignado | H27: Inversión | I27: 45 | J27: =IF(ISERROR(VLOOKUP(I27,#REF!,2,FALSE))," ",VLOOKUP(I27,#REF!,2,FALSE)) ->  | K27: =IF(ISERROR(VLOOKUP(I27,#REF!,3,FALSE))," ",VLOOKUP(I27,#REF!,3,FALSE)) ->  | L27: 3-3-1-15-07-45-1441-000 | M27: 1010202107 | N27: Kathleen Zabrina Molano Mora cedido a Yanira Forero | O27: 33000000 | T27: 33000000 | U27: 30070000 | V27: 2019-01-24 | W27: 2019-01-24 | X27: 2019-12-27 | Y27: 330 | AD27: X | AF27: 0.9112121212 | AG27: 33000000 | AH27: =IF(SUMPRODUCT((A$14:A27=A27)*(B$14:B27=B27)*(C$14:C27=C27))>1,0,1) -> 1 | AI27: Contratos de prestación de servicios profesionales y de apoyo a la gestión | AJ27: Contratación directa | AK27: =IFERROR(VLOOKUP(F27,Tipo!$C$12:$C$27,1,FALSE),"NO") -> Prestación de servicios profesionales y de apoyo a la gestión, o para la ejecución de trabajos artísticos que sólo puedan encomendarse a determinadas personas naturales; | AL27: Inversión | AM27: NO
A28: 15 | B28: 2019 | C28: FDLAN-CD-015-2019 | D28: Contratos de prestación de servicios profesionales y de apoyo a la gestión | E28: Contratación directa | F28: Prestación de servicios profesionales y de apoyo a la gestión, o para la ejecución de trabajos artísticos que sólo puedan encomendarse a determinadas personas naturales; | G28: Prestación de servicios de Técnico jurídico de apoyo al Despacho del Alcalde Local de Antonio Nariño en los trámites jurídicos y administrativos que sean de la competencia del Alcalde Local”. | H28: Inversión | I28: 45 | J28: =IF(ISERROR(VLOOKUP(I28,#REF!,2,FALSE))," ",VLOOKUP(I28,#REF!,2,FALSE)) ->  | K28: =IF(ISERROR(VLOOKUP(I28,#REF!,3,FALSE))," ",VLOOKUP(I28,#REF!,3,FALSE)) ->  | L28: 3-3-1-15-07-45-1441-000 | M28: 1010202710 | N28: Leidy Carolina Valdes Prada | O28: 44206800 | R28: 1 | S28: 937720 | T28: 45144520 | U28: 41125720 | V28: 2019-01-24 | W28: 2019-01-24 | X28: 2019-12-30 | Y28: 337 | Z28: 7 | AD28: X | AF28: 0.9109792285 | AG28: 45144520 | AH28: =IF(SUMPRODUCT((A$14:A28=A28)*(B$14:B28=B28)*(C$14:C28=C28))>1,0,1) -> 1 | AI28: Contratos de prestación de servicios profesionales y de apoyo a la gestión | AJ28: Contratación directa | AK28: =IFERROR(VLOOKUP(F28,Tipo!$C$12:$C$27,1,FALSE),"NO") -> Prestación de servicios profesionales y de apoyo a la gestión, o para la ejecución de trabajos artísticos que sólo puedan encomendarse a determinadas personas naturales; | AL28: Inversión | AM28: NO
A29: 16 | B29: 2019 | C29: FDLAN-CD-016-2019 | D29: Contratos de prestación de servicios profesionales y de apoyo a la gestión | E29: Contratación directa | F29: Prestación de servicios profesionales y de apoyo a la gestión, o para la ejecución de trabajos artísticos que sólo puedan encomendarse a determinadas personas naturales; | G29: Prestar los servicios profesionales como abogado del area de gestión de desarrollo local del FDLAN, en el trámite de procesos de selección de contratistas y el proceso de liquidación de contratos y convenios | H29: Inversión | I29: 45 | J29: =IF(ISERROR(VLOOKUP(I29,#REF!,2,FALSE))," ",VLOOKUP(I29,#REF!,2,FALSE)) ->  | K29: =IF(ISERROR(VLOOKUP(I29,#REF!,3,FALSE))," ",VLOOKUP(I29,#REF!,3,FALSE)) ->  | L29: 3-3-1-15-07-45-1441-000 | M29: 53139097 | N29: Angela Tatiana Tunjano Reyes | O29: 57122000 | T29: 57122000 | U29: 52052000 | V29: 2019-01-24 | W29: 2019-01-24 | X29: 2019-12-31 | Y29: 338 | AD29: X | AF29: 0.9112426036 | AG29: 57122000 | AH29: =IF(SUMPRODUCT((A$14:A29=A29)*(B$14:B29=B29)*(C$14:C29=C29))>1,0,1) -> 1 | AI29: Contratos de prestación de servicios profesionales y de apoyo a la gestión | AJ29: Contratación directa | AK29: =IFERROR(VLOOKUP(F29,Tipo!$C$12:$C$27,1,FALSE),"NO") -> Prestación de servicios profesionales y de apoyo a la gestión, o para la ejecución de trabajos artísticos que sólo puedan encomendarse a determinadas personas naturales; | AL29: Inversión | AM29: NO
A30: 17 | B30: 2019 | C30: FDLAN-CD-018-2019 | D30: Contratos de prestación de servicios profesionales y de apoyo a la gestión | E30: Contratación directa | F30: Prestación de servicios profesionales y de apoyo a la gestión, o para la ejecución de trabajos artísticos que sólo puedan encomendarse a determinadas personas naturales; | G30: Prestación de servicios profesionales para fortalecer el equipo de Inspección, Vigilancia y Control del Área de Gestión de Desarrollo Local Antonio Nariño en cobros persuasivos | H30: Inversión | I30: 45 | J30: =IF(ISERROR(VLOOKUP(I30,#REF!,2,FALSE))," ",VLOOKUP(I30,#REF!,2,FALSE)) ->  | K30: =IF(ISERROR(VLOOKUP(I30,#REF!,3,FALSE))," ",VLOOKUP(I30,#REF!,3,FALSE)) ->  | L30: 3-3-1-15-07-45-1441-000 | M30: 33378204 | N30: Nathalia Milena Roa Soler | O30: 50700000 | R30: 1 | S30: 5577000 | T30: 56277000 | U30: 51714000 | V30: 2019-01-25 | W30: 2019-01-25 | X30: 2019-12-27 | Y30: 333 | Z30: 33 | AD30: X | AF30: 0.9189189189 | AG30: 56277000 | AH30: =IF(SUMPRODUCT((A$14:A30=A30)*(B$14:B30=B30)*(C$14:C30=C30))>1,0,1) -> 1 | AI30: Contratos de prestación de servicios profesionales y de apoyo a la gestión | AJ30: Contratación directa | AK30: =IFERROR(VLOOKUP(F30,Tipo!$C$12:$C$27,1,FALSE),"NO") -> Prestación de servicios profesionales y de apoyo a la gestión, o para la ejecución de trabajos artísticos que sólo puedan encomendarse a determinadas personas naturales; | AL30: Inversión | AM30: NO
A31: 18 | B31: 2019 | C31: FDLAN-CD-017-2019 | D31: Contratos de prestación de servicios profesionales y de apoyo a la gestión | E31: Contratación directa | F31: Prestación de servicios profesionales y de apoyo a la gestión, o para la ejecución de trabajos artísticos que sólo puedan encomendarse a determinadas personas naturales; | G31: PRESTAR SERVICIOS PROFESIONALES AL FONDO DE DESARROLLO LOCAL DE ANTONIO NARIÑO EN EL APOYO A LOS DIFERENTES TRÁMITES Y GESTIONES CONTRACTUALES | H31: Inversión | I31: 45 | J31: =IF(ISERROR(VLOOKUP(I31,#REF!,2,FALSE))," ",VLOOKUP(I31,#REF!,2,FALSE)) ->  | K31: =IF(ISERROR(VLOOKUP(I31,#REF!,3,FALSE))," ",VLOOKUP(I31,#REF!,3,FALSE)) ->  | L31: 3-3-1-15-07-45-1441-000 | M31: 1024542049 | N31: Yurani Andrea Angulo Peñaranda | O31: 44994520 | R31: 1 | S31: 1380200 | T31: 46374720 | U31: 42234120 | V31: 2019-01-25 | W31: 2019-01-25 | X31: 2019-12-30 | Y31: 336 | Z31: 10 | AD31: X | AF31: 0.9107142857 | AG31: 46374720 | AH31: =IF(SUMPRODUCT((A$14:A31=A31)*(B$14:B31=B31)*(C$14:C31=C31))>1,0,1) -> 1 | AI31: Contratos de prestación de servicios profesionales y de apoyo a la gestión | AJ31: Contratación directa | AK31: =IFERROR(VLOOKUP(F31,Tipo!$C$12:$C$27,1,FALSE),"NO") -> Prestación de servicios profesionales y de apoyo a la gestión, o para la ejecución de trabajos artísticos que sólo puedan encomendarse a determinadas personas naturales; | AL31: Inversión | AM31: NO
A32: 19 | B32: 2019 | C32: FDLAN-CD-019-2019 | D32: Contratos de prestación de servicios profesionales y de apoyo a la gestión | E32: Contratación directa | F32: Prestación de servicios profesionales y de apoyo a la gestión, o para la ejecución de trabajos artísticos que sólo puedan encomendarse a determinadas personas naturales; | G32: Prestar servicios técnicos de apoyo para el manejo de la documentación, conformación, reconstrucción y actualización de los expedientes de la oficina de contratación de la Entidad | H32: Inversión | I32: 45 | J32: =IF(ISERROR(VLOOKUP(I32,#REF!,2,FALSE))," ",VLOOKUP(I32,#REF!,2,FALSE)) ->  | K32: =IF(ISERROR(VLOOKUP(I32,#REF!,3,FALSE))," ",VLOOKUP(I32,#REF!,3,FALSE)) ->  | L32: 3-3-1-15-07-45-1441-000 | M32: 52037278 | N32: Alba Cecilia Rodriguez Mesa | O32: 31534944 | T32: 31534944 | U32: 28719324 | V32: 2019-01-25 | W32: 2019-01-25 | X32: 2019-12-31 | Y32: 336 | AD32: X | AF32: 0.9107142857 | AG32: 31534944 | AH32: =IF(SUMPRODUCT((A$14:A32=A32)*(B$14:B32=B32)*(C$14:C32=C32))>1,0,1) -> 1 | AI32: Contratos de prestación de servicios profesionales y de apoyo a la gestión | AJ32: Contratación directa | AK32: =IFERROR(VLOOKUP(F32,Tipo!$C$12:$C$27,1,FALSE),"NO") -> Prestación de servicios profesionales y de apoyo a la gestión, o para la ejecución de trabajos artísticos que sólo puedan encomendarse a determinadas personas naturales; | AL32: Inversión | AM32: NO
A33: 20 | B33: 2019 | C33: FDLAN-CD-020-2019 | D33: Contratos de prestación de servicios profesionales y de apoyo a la gestión | E33: Contratación directa | F33: Prestación de servicios profesionales y de apoyo a la gestión, o para la ejecución de trabajos artísticos que sólo puedan encomendarse a determinadas personas naturales; | G33: Auxiliar de apoyo para la transcripción de las actas que expida la Junta Administradora Local de Antonio Nariño | H33: Inversión | I33: 45 | J33: =IF(ISERROR(VLOOKUP(I33,#REF!,2,FALSE))," ",VLOOKUP(I33,#REF!,2,FALSE)) ->  | K33: =IF(ISERROR(VLOOKUP(I33,#REF!,3,FALSE))," ",VLOOKUP(I33,#REF!,3,FALSE)) ->  | L33: 3-3-1-15-07-45-1441-000 | M33: 51871767 | N33: Myrian del Pilar Sastoque Angel | O33: 25417392 | T33: 25417392 | U33: 23207184 | V33: 2019-01-28 | W33: 2019-01-28 | X33: 2019-12-28 | Y33: 322 | AD33: X | AF33: 0.9130434783 | AG33: 25417392 | AH33: =IF(SUMPRODUCT((A$14:A33=A33)*(B$14:B33=B33)*(C$14:C33=C33))>1,0,1) -> 1 | AI33: Contratos de prestación de servicios profesionales y de apoyo a la gestión | AJ33: Contratación directa | AK33: =IFERROR(VLOOKUP(F33,Tipo!$C$12:$C$27,1,FALSE),"NO") -> Prestación de servicios profesionales y de apoyo a la gestión, o para la ejecución de trabajos artísticos que sólo puedan encomendarse a determinadas personas naturales; | AL33: Inversión | AM33: NO
A34: 21 | B34: 2019 | C34: FDLAN-CD-021-2019 | D34: Contratos de prestación de servicios profesionales y de apoyo a la gestión | E34: Contratación directa | F34: Prestación de servicios profesionales y de apoyo a la gestión, o para la ejecución de trabajos artísticos que sólo puedan encomendarse a determinadas personas naturales; | G34: Apoyar y dar soporte técnico al administrador y ususario final de la red de sistemas y tecnología e información de la Alcaldia Local | H34: Inversión | I34: 45 | J34: =IF(ISERROR(VLOOKUP(I34,#REF!,2,FALSE))," ",VLOOKUP(I34,#REF!,2,FALSE)) ->  | K34: =IF(ISERROR(VLOOKUP(I34,#REF!,3,FALSE))," ",VLOOKUP(I34,#REF!,3,FALSE)) ->  | L34: 3-3-1-15-07-45-1441-000 | M34: 79890568 | N34: Abel Ernesto Castiblanco Duran | O34: 44094108 | R34: 1 | S34: 405774 | T34: 44499882 | U34: 40847916 | V34: 2019-01-29 | W34: 2019-01-29 | X34: 2019-12-30 | Y34: 326 | Z34: 3 | AD34: X | AF34: 0.9179331307 | AG34: 44499882 | AH34: =IF(SUMPRODUCT((A$14:A34=A34)*(B$14:B34=B34)*(C$14:C34=C34))>1,0,1) -> 1 | AI34: Contratos de prestación de servicios profesionales y de apoyo a la gestión | AJ34: Contratación directa | AK34: =IFERROR(VLOOKUP(F34,Tipo!$C$12:$C$27,1,FALSE),"NO") -> Prestación de servicios profesionales y de apoyo a la gestión, o para la ejecución de trabajos artísticos que sólo puedan encomendarse a determinadas personas naturales; | AL34: Inversión | AM34: NO
A35: 22 | B35: 2019 | C35: FDLAN-CD-022-2019 | D35: Contratos de prestación de servicios profesionales y de apoyo a la gestión | E35: Contratación directa | F35: Prestación de servicios profesionales y de apoyo a la gestión, o para la ejecución de trabajos artísticos que sólo puedan encomendarse a determinadas personas naturales; | G35: Prestación de servicios de apoyo al desapacho de la Alcaldia Local de Antonio Nariño como conductor de uno de los tres vehiculos de propiedad del Fondo de Desarrollo Local Antonio Nariño. | H35: Inversión | I35: 45 | J35: =IF(ISERROR(VLOOKUP(I35,#REF!,2,FALSE))," ",VLOOKUP(I35,#REF!,2,FALSE)) ->  | K35: =IF(ISERROR(VLOOKUP(I35,#REF!,3,FALSE))," ",VLOOKUP(I35,#REF!,3,FALSE)) ->  | L35: 3-3-1-15-07-45-1441-000 | M35: 79392568 | N35: Hector Giovanny Ayala Rodriguez | O35: 26048880 | T35: 26048880 | U35: 23838672 | V35: 2019-01-30 | W35: 2019-01-30 | X35: 2019-12-28 | Y35: 330 | AD35: X | AF35: 0.9151515152 | AG35: 26048880 | AH35: =IF(SUMPRODUCT((A$14:A35=A35)*(B$14:B35=B35)*(C$14:C35=C35))>1,0,1) -> 1 | AI35: Contratos de prestación de servicios profesionales y de apoyo a la gestión | AJ35: Contratación directa | AK35: =IFERROR(VLOOKUP(F35,Tipo!$C$12:$C$27,1,FALSE),"NO") -> Prestación de servicios profesionales y de apoyo a la gestión, o para la ejecución de trabajos artísticos que sólo puedan encomendarse a determinadas personas naturales; | AL35: Inversión | AM35: NO
A36: 23 | B36: 2019 | C36: FDLAN-CD-023-2019 | D36: Contratos de prestación de servicios profesionales y de apoyo a la gestión | E36: Contratación directa | F36: Prestación de servicios profesionales y de apoyo a la gestión, o para la ejecución de trabajos artísticos que sólo puedan encomendarse a determinadas personas naturales; | G36: Prestación de servicios de apoyo al desapacho de la Alcaldia Local de Antonio Nariño como conductor de uno de los tres vehiculos de propiedad del Fondo de Desarrollo Local Antonio Nariño. | H36: Inversión | I36: 45 | J36: =IF(ISERROR(VLOOKUP(I36,#REF!,2,FALSE))," ",VLOOKUP(I36,#REF!,2,FALSE)) ->  | K36: =IF(ISERROR(VLOOKUP(I36,#REF!,3,FALSE))," ",VLOOKUP(I36,#REF!,3,FALSE)) ->  | L36: 3-3-1-15-07-45-1441-000 | M36: 79370565 | N36: Jorge Ramiro Ortiz Jaramillo | O36: 26048880 | T36: =+O36+Q36+S36 -> 26048880 | U36: 23838672 | V36: 2019-01-30 | W36: 2019-01-30 | X36: 2019-12-28 | Y36: 330 | AD36: X | AF36: 0.9151515152 | AG36: 26048880 | AH36: =IF(SUMPRODUCT((A$14:A36=A36)*(B$14:B36=B36)*(C$14:C36=C36))>1,0,1) -> 1 | AI36: =IFERROR(VLOOKUP(D36,tipo,1,FALSE),"NO") -> Contratos de prestación de servicios profesionales y de apoyo a la gestión | AJ36: =IFERROR(VLOOKUP(E36,modal,1,FALSE),"NO") -> Contratación directa | AK36: =IFERROR(VLOOKUP(F36,Tipo!$C$12:$C$27,1,FALSE),"NO") -> Prestación de servicios profesionales y de apoyo a la gestión, o para la ejecución de trabajos artísticos que sólo puedan encomendarse a determinadas personas naturales; | AL36: =IFERROR(VLOOKUP(H36,afectacion,1,FALSE),"NO") -> Inversión | AM36: =IFERROR(VLOOKUP(I36,programa,1,FALSE),"NO") -> NO
A37: 24 | B37: 2019 | C37: FDLAN-CD-024-2019 | D37: Contratos de prestación de servicios profesionales y de apoyo a la gestión | E37: Contratación directa | F37: Prestación de servicios profesionales y de apoyo a la gestión, o para la ejecución de trabajos artísticos que sólo puedan encomendarse a determinadas personas naturales; | G37: Prestación de servicios de apoyo al área de gestión de desarrollo local en el diligenciamiento y actualización de los documentos técnicos de soporte y fichas de estadísticas básicas de inversión y elaboración de los documentos soporte necesarios para ejecutar los proyectos de infraestructura del Fondo de Desarrollo Local Antonio Nariño | H37: Inversión | I37: 45 | J37: =IF(ISERROR(VLOOKUP(I37,#REF!,2,FALSE))," ",VLOOKUP(I37,#REF!,2,FALSE)) ->  | K37: =IF(ISERROR(VLOOKUP(I37,#REF!,3,FALSE))," ",VLOOKUP(I37,#REF!,3,FALSE)) ->  | L37: 3-3-1-15-02-17-1437-000 | M37: 1013656467 | N37: David Felipe Giraldo Rios | O37: 38678000 | T37: 38678000 | U37: 34018000 | V37: 2019-01-30 | W37: 2019-01-30 | X37: 2019-12-31 | Y37: 332 | AD37: X | AF37: 0.8795180723 | AG37: 38678000 | AH37: =IF(SUMPRODUCT((A$14:A37=A37)*(B$14:B37=B37)*(C$14:C37=C37))>1,0,1) -> 1 | AI37: Contratos de prestación de servicios profesionales y de apoyo a la gestión | AJ37: Contratación directa | AK37: =IFERROR(VLOOKUP(F37,Tipo!$C$12:$C$27,1,FALSE),"NO") -> Prestación de servicios profesionales y de apoyo a la gestión, o para la ejecución de trabajos artísticos que sólo puedan encomendarse a determinadas personas naturales; | AL37: Inversión | AM37: NO
A38: 25 | B38: 2019 | C38: FDLAN-CD-025-2019 | D38: Contratos de prestación de servicios profesionales y de apoyo a la gestión | E38: Contratación directa | F38: Prestación de servicios profesionales y de apoyo a la gestión, o para la ejecución de trabajos artísticos que sólo puedan encomendarse a determinadas personas naturales; | G38: Servicios profesionales para la formulación, definición, socialización y seguimiento de una propuesta integral de intervención urbanística en espacios y escenarios locales y su inclusión en los distintos planes, programas y proyectos de inversión local. | H38: Inversión | I38: 45 | J38: =IF(ISERROR(VLOOKUP(I38,#REF!,2,FALSE))," ",VLOOKUP(I38,#REF!,2,FALSE)) ->  | K38: =IF(ISERROR(VLOOKUP(I38,#REF!,3,FALSE))," ",VLOOKUP(I38,#REF!,3,FALSE)) ->  | L38: 3-3-1-15-02-17-1437-000 | M38: 52428551 | N38: Silvana Marcela Gomez Vergara | O38: 73372000 | T38: =+O38+Q38+S38 -> 73372000 | U38: 66742000 | V38: 2019-01-30 | W38: 2019-01-30 | X38: 2019-12-31 | Y38: 332 | AD38: X | AF38: 0.9096385542 | AG38: 73372000 | AH38: =IF(SUMPRODUCT((A$14:A38=A38)*(B$14:B38=B38)*(C$14:C38=C38))>1,0,1) -> 1 | AI38: =IFERROR(VLOOKUP(D38,tipo,1,FALSE),"NO") -> Contratos de prestación de servicios profesionales y de apoyo a la gestión | AJ38: =IFERROR(VLOOKUP(E38,modal,1,FALSE),"NO") -> Contratación directa | AK38: =IFERROR(VLOOKUP(F38,Tipo!$C$12:$C$27,1,FALSE),"NO") -> Prestación de servicios profesionales y de apoyo a la gestión, o para la ejecución de trabajos artísticos que sólo puedan encomendarse a determinadas personas naturales; | AL38: =IFERROR(VLOOKUP(H38,afectacion,1,FALSE),"NO") -> Inversión | AM38: =IFERROR(VLOOKUP(I38,programa,1,FALSE),"NO") -> NO
A39: 26 | B39: 2019 | C39: FDLAN-CD-026-2019 | D39: Contratos de prestación de servicios profesionales y de apoyo a la gestión | E39: Contratación directa | F39: Prestación de servicios profesionales y de apoyo a la gestión, o para la ejecución de trabajos artísticos que sólo puedan encomendarse a determinadas personas naturales; | G39: Servicios profesionales como abogado del Área de Gestión de desarrollo Local del FDLAN en el trámite de procesos de selección de contratistas y el proceso de liquidación de contratos y convenios | H39: Inversión | I39: 45 | J39: =IF(ISERROR(VLOOKUP(I39,#REF!,2,FALSE))," ",VLOOKUP(I39,#REF!,2,FALSE)) ->  | K39: =IF(ISERROR(VLOOKUP(I39,#REF!,3,FALSE))," ",VLOOKUP(I39,#REF!,3,FALSE)) ->  | L39: 3-3-1-15-07-45-1441-000 | M39: 53084402 | N39: Laura Liliana Rodriguez Jimenez | O39: 61908000 | T39: 61908000 | U39: 56665200 | V39: 2019-01-30 | W39: 2019-01-30 | X39: 2019-12-28 | Y39: 330 | AD39: X | AF39: 0.9153130452 | AG39: 61908000 | AH39: =IF(SUMPRODUCT((A$14:A39=A39)*(B$14:B39=B39)*(C$14:C39=C39))>1,0,1) -> 1 | AI39: Contratos de prestación de servicios profesionales y de apoyo a la gestión | AJ39: Contratación directa | AK39: =IFERROR(VLOOKUP(F39,Tipo!$C$12:$C$27,1,FALSE),"NO") -> Prestación de servicios profesionales y de apoyo a la gestión, o para la ejecución de trabajos artísticos que sólo puedan encomendarse a determinadas personas naturales; | AL39: Inversión | AM39: NO
A40: 27 | B40: 2019 | C40: FDLAN-CD-027-2019 | D40: Contratos de prestación de servicios profesionales y de apoyo a la gestión | E40: Contratación directa | F40: Prestación de servicios profesionales y de apoyo a la gestión, o para la ejecución de trabajos artísticos que sólo puedan encomendarse a determinadas personas naturales; | G40: Servicios profesionales para la depuración de las cuentas por pagar y liquidación de los contratos del al Fondo de Desarrollo Local de Antonio Nariño | H40: Inversión | I40: 45 | J40: =IF(ISERROR(VLOOKUP(I40,#REF!,2,FALSE))," ",VLOOKUP(I40,#REF!,2,FALSE)) ->  | K40: =IF(ISERROR(VLOOKUP(I40,#REF!,3,FALSE))," ",VLOOKUP(I40,#REF!,3,FALSE)) ->  | L40: 3-3-1-15-07-45-1441-000 | M40: 1022342284 | N40: Yuly Andrea Solano Guerrero | O40: 47588880 | T40: 47588880 | U40: 43288680 | V40: 2019-01-30 | W40: 2019-01-30 | X40: 2019-12-31 | Y40: 332 | AD40: X | AF40: 0.9096385542 | AG40: 47588880 | AH40: =IF(SUMPRODUCT((A$14:A40=A40)*(B$14:B40=B40)*(C$14:C40=C40))>1,0,1) -> 1 | AI40: Contratos de prestación de servicios profesionales y de apoyo a la gestión | AJ40: Contratación directa | AK40: =IFERROR(VLOOKUP(F40,Tipo!$C$12:$C$27,1,FALSE),"NO") -> Prestación de servicios profesionales y de apoyo a la gestión, o para la ejecución de trabajos artísticos que sólo puedan encomendarse a determinadas personas naturales; | AL40: Inversión | AM40: NO
A41: 28 | B41: 2019 | C41: FDLAN-CD-028-2019 | D41: Contratos de prestación de servicios profesionales y de apoyo a la gestión | E41: Contratación directa | F41: Prestación de servicios profesionales y de apoyo a la gestión, o para la ejecución de trabajos artísticos que sólo puedan encomendarse a determinadas personas naturales; | G41: Servicios profesionales como apoyo en la formulación, seguimiento y supervisión de los proyectos de obra e infraestructura relacionados con la malla vial y espacio público de la localidad. | H41: Inversión | I41: 45 | J41: =IF(ISERROR(VLOOKUP(I41,#REF!,2,FALSE))," ",VLOOKUP(I41,#REF!,2,FALSE)) ->  | K41: =IF(ISERROR(VLOOKUP(I41,#REF!,3,FALSE))," ",VLOOKUP(I41,#REF!,3,FALSE)) ->  | L41: 3-3-1-15-02-17-1438-000 | M41: 1074133645 | N41: Manuel Eduardo Alvarez Vanegas | O41: 47588880 | T41: 47588880 | U41: 43288680 | V41: 2019-01-30 | W41: 2019-01-30 | X41: 2019-12-31 | Y41: 332 | AD41: X | AF41: 0.9096385542 | AG41: 47588880 | AH41: =IF(SUMPRODUCT((A$14:A41=A41)*(B$14:B41=B41)*(C$14:C41=C41))>1,0,1) -> 1 | AI41: Contratos de prestación de servicios profesionales y de apoyo a la gestión | AJ41: Contratación directa | AK41: =IFERROR(VLOOKUP(F41,Tipo!$C$12:$C$27,1,FALSE),"NO") -> Prestación de servicios profesionales y de apoyo a la gestión, o para la ejecución de trabajos artísticos que sólo puedan encomendarse a determinadas personas naturales; | AL41: Inversión | AM41: NO
A42: 29 | B42: 2019 | C42: FDLAN-CD-029-2019 | D42: Contratos de prestación de servicios profesionales y de apoyo a la gestión | E42: Contratación directa | F42: Prestación de servicios profesionales y de apoyo a la gestión, o para la ejecución de trabajos artísticos que sólo puedan encomendarse a determinadas personas naturales; | G42: Prestar los servicios profesionales al despacho de la Alcaldía Local de Antonio Nariño como coordinador del grupo de profesionales encargados | H42: Inversión | I42: 45 | J42: =IF(ISERROR(VLOOKUP(I42,#REF!,2,FALSE))," ",VLOOKUP(I42,#REF!,2,FALSE)) ->  | K42: =IF(ISERROR(VLOOKUP(I42,#REF!,3,FALSE))," ",VLOOKUP(I42,#REF!,3,FALSE)) ->  | L42: 3-3-1-15-02-17-1438-000 | M42: 79600820 | N42: Juan Antonio Zafra Ruiz | O42: 66858660 | T42: 66858660 | U42: 59564988 | V42: 2019-02-01 | W42: 2019-02-05 | X42: 2019-12-31 | Y42: 325 | AD42: X | AF42: 0.8909090909 | AG42: 66858660 | AH42: =IF(SUMPRODUCT((A$14:A42=A42)*(B$14:B42=B42)*(C$14:C42=C42))>1,0,1) -> 1 | AI42: Contratos de prestación de servicios profesionales y de apoyo a la gestión | AJ42: Contratación directa | AK42: =IFERROR(VLOOKUP(F42,Tipo!$C$12:$C$27,1,FALSE),"NO") -> Prestación de servicios profesionales y de apoyo a la gestión, o para la ejecución de trabajos artísticos que sólo puedan encomendarse a determinadas personas naturales; | AL42: Inversión | AM42: NO
A43: 30 | B43: 2019 | C43: FDLAN-CD-030-2019 | D43: Contratos de prestación de servicios profesionales y de apoyo a la gestión | E43: Contratación directa | F43: Prestación de servicios profesionales y de apoyo a la gestión, o para la ejecución de trabajos artísticos que sólo puedan encomendarse a determinadas personas naturales; | G43: Servicios profesionales para apoyar al Despacho del Alcalde Local de Antonio Nariño en la solucion de los distintos aspectos juridicos asociados con la Inspeccion, Vigilancia y Control, respecto a los establecimientos de comercio, el ordenamiento territorial y el uso del espacio publico, con miras al mejoramiento de la convivencia local, realizando la verificacion de infracciones a la normativa vigente en la localidad. | H43: Inversión | I43: 45 | J43: =IF(ISERROR(VLOOKUP(I43,#REF!,2,FALSE))," ",VLOOKUP(I43,#REF!,2,FALSE)) ->  | K43: =IF(ISERROR(VLOOKUP(I43,#REF!,3,FALSE))," ",VLOOKUP(I43,#REF!,3,FALSE)) ->  | L43: 3-3-1-15-07-45-1441-000 | M43: 81754122 | N43: Diego Felipe Bernal Moreno | O43: 83456000 | R43: 1 | S43: 1024000 | T43: 84480000 | U43: 76800000 | V43: 2019-02-01 | W43: 2019-02-01 | X43: 2019-12-30 | Y43: 326 | Z43: 4 | AD43: X | AF43: 0.9090909091 | AG43: 84480000 | AH43: =IF(SUMPRODUCT((A$14:A43=A43)*(B$14:B43=B43)*(C$14:C43=C43))>1,0,1) -> 1 | AI43: Contratos de prestación de servicios profesionales y de apoyo a la gestión | AJ43: Contratación directa | AK43: =IFERROR(VLOOKUP(F43,Tipo!$C$12:$C$27,1,FALSE),"NO") -> Prestación de servicios profesionales y de apoyo a la gestión, o para la ejecución de trabajos artísticos que sólo puedan encomendarse a determinadas personas naturales; | AL43: Inversión | AM43: NO
A44: 32 | B44: 2019 | C44: FDLAN-CD-032-2019 | D44: Contratos de prestación de servicios profesionales y de apoyo a la gestión | E44: Contratación directa | F44: Prestación de servicios profesionales y de apoyo a la gestión, o para la ejecución de trabajos artísticos que sólo puedan encomendarse a determinadas personas naturales; | G44: Servicios profesionales para apoyar al área de Gesti+ón de Desarrollo Local en la elaboración de estudios del sector y demás actividades financieras y presupuestales necesarias para los procesos de contratación que adelanta el Fondo de Desarrollo Local de Antonio Nariño | H44: Inversión | I44: 45 | J44: =IF(ISERROR(VLOOKUP(I44,#REF!,2,FALSE))," ",VLOOKUP(I44,#REF!,2,FALSE)) ->  | K44: =IF(ISERROR(VLOOKUP(I44,#REF!,3,FALSE))," ",VLOOKUP(I44,#REF!,3,FALSE)) ->  | L44: 3-3-1-15-07-45-1441-000 | M44: 52130106 | N44: María Rubi Acevedo Cepeda | O44: 40991940 | R44: 1 | S44: 3450500 | T44: 44442440 | U44: 40301840 | V44: 2019-02-04 | W44: 2019-02-05 | X44: 2019-12-30 | Y44: 297 | Z44: 25 | AD44: X | AF44: 0.9068322981 | AG44: 44442440 | AH44: =IF(SUMPRODUCT((A$14:A44=A44)*(B$14:B44=B44)*(C$14:C44=C44))>1,0,1) -> 1 | AI44: Contratos de prestación de servicios profesionales y de apoyo a la gestión | AJ44: Contratación directa | AK44: =IFERROR(VLOOKUP(F44,Tipo!$C$12:$C$27,1,FALSE),"NO") -> Prestación de servicios profesionales y de apoyo a la gestión, o para la ejecución de trabajos artísticos que sólo puedan encomendarse a determinadas personas naturales; | AL44: Inversión | AM44: NO
A45: 33 | B45: 2019 | C45: FDLAN-CD-033-2019 | D45: Contratos de prestación de servicios profesionales y de apoyo a la gestión | E45: Contratación directa | F45: Prestación de servicios profesionales y de apoyo a la gestión, o para la ejecución de trabajos artísticos que sólo puedan encomendarse a determinadas personas naturales; | G45: SERVICIOS PROFESIONALES PARA APOYAR AL ALCALDE DE LA LOCALIDAD ANTONIO NARIÑO EN LA IMPLEMENTACIÓN DE MEJORAS A NIVEL MEDIO AMBIENTALES DE LOS DIFERENTES PROYECTOS EN LA LOCALIDAD | H45: Inversión | I45: 45 | J45: =IF(ISERROR(VLOOKUP(I45,#REF!,2,FALSE))," ",VLOOKUP(I45,#REF!,2,FALSE)) ->  | K45: =IF(ISERROR(VLOOKUP(I45,#REF!,3,FALSE))," ",VLOOKUP(I45,#REF!,3,FALSE)) ->  | L45: 3-3-1-15-01-04-1432-000 | M45: 1018466952 | N45: Maria Alejandra Moreno Giraldo | O45: 50101260 | T45: 50101260 | U45: 45546600 | V45: 2019-02-01 | W45: 2019-02-01 | X45: 2019-12-31 | Y45: 330 | AD45: X | AF45: 0.9090909091 | AG45: 50101260 | AH45: =IF(SUMPRODUCT((A$14:A45=A45)*(B$14:B45=B45)*(C$14:C45=C45))>1,0,1) -> 1 | AI45: Contratos de prestación de servicios profesionales y de apoyo a la gestión | AJ45: Contratación directa | AK45: =IFERROR(VLOOKUP(F45,Tipo!$C$12:$C$27,1,FALSE),"NO") -> Prestación de servicios profesionales y de apoyo a la gestión, o para la ejecución de trabajos artísticos que sólo puedan encomendarse a determinadas personas naturales; | AL45: Inversión | AM45: NO
A46: 34 | B46: 2019 | C46: FDLAN-CD-034-2019 | D46: Contratos de prestación de servicios profesionales y de apoyo a la gestión | E46: Contratación directa | F46: Prestación de servicios profesionales y de apoyo a la gestión, o para la ejecución de trabajos artísticos que sólo puedan encomendarse a determinadas personas naturales; | G46: Apoyo al equipo de prensa y comunicaciones de la Alcaldía Local en la realide productos y piezas digitales, impresas y publicitarias de gran formato y de animación gráfica, así como apoyar la prouccipon y montaje d eeventos | H46: Inversión | I46: 45 | J46: =IF(ISERROR(VLOOKUP(I46,#REF!,2,FALSE))," ",VLOOKUP(I46,#REF!,2,FALSE)) ->  | K46: =IF(ISERROR(VLOOKUP(I46,#REF!,3,FALSE))," ",VLOOKUP(I46,#REF!,3,FALSE)) ->  | L46: 3-3-1-15-07-45-1441-000 | M46: 53140769 | N46: Johanna Marcela Gonzalez Abril | O46: 50515200 | R46: 1 | S46: 3704448 | T46: 54219648 | U46: 49673280 | V46: 2019-02-01 | W46: 2019-02-04 | X46: 2019-12-30 | Y46: 300 | Z46: 22 | AD46: X | AF46: 0.9161490683 | AG46: 54219648 | AH46: =IF(SUMPRODUCT((A$14:A46=A46)*(B$14:B46=B46)*(C$14:C46=C46))>1,0,1) -> 1 | AI46: =IFERROR(VLOOKUP(D46,tipo,1,FALSE),"NO") -> Contratos de prestación de servicios profesionales y de apoyo a la gestión | AJ46: =IFERROR(VLOOKUP(E46,modal,1,FALSE),"NO") -> Contratación directa | AK46: =IFERROR(VLOOKUP(F46,Tipo!$C$12:$C$27,1,FALSE),"NO") -> Prestación de servicios profesionales y de apoyo a la gestión, o para la ejecución de trabajos artísticos que sólo puedan encomendarse a determinadas personas naturales; | AL46: =IFERROR(VLOOKUP(H46,afectacion,1,FALSE),"NO") -> Inversión | AM46: =IFERROR(VLOOKUP(I46,programa,1,FALSE),"NO") -> NO
A47: 35 | B47: 2019 | C47: FDLAN-CD-035-2019 | D47: Contratos de prestación de servicios profesionales y de apoyo a la gestión | E47: Contratación directa | F47: Prestación de servicios profesionales y de apoyo a la gestión, o para la ejecución de trabajos artísticos que sólo puedan encomendarse a determinadas personas naturales; | G47: Prestación de servicios profesionales especializados al Despacho del Alcalde Local de Antonio Nariño en el seguimiento y control de la ejecución presupuestal en la Planificación de la ejecución del Plan de desarrollo Local | H47: Inversión | I47: 45 | J47: =IF(ISERROR(VLOOKUP(I47,#REF!,2,FALSE))," ",VLOOKUP(I47,#REF!,2,FALSE)) ->  | K47: =IF(ISERROR(VLOOKUP(I47,#REF!,3,FALSE))," ",VLOOKUP(I47,#REF!,3,FALSE)) ->  | L47: 3-3-1-15-07-45-1441-000 | M47: 51561210 | N47: Maria Fernanda Mora Chavarria | O47: 84480000 | T47: =+O47+Q47+S47 -> 84480000 | U47: 76800000 | V47: 2019-02-01 | W47: 2019-02-01 | X47: 2019-12-31 | Y47: 330 | AD47: X | AF47: 0.9090909091 | AG47: 84480000 | AH47: =IF(SUMPRODUCT((A$14:A47=A47)*(B$14:B47=B47)*(C$14:C47=C47))>1,0,1) -> 1 | AI47: Contratos de prestación de servicios profesionales y de apoyo a la gestión | AJ47: Contratación directa | AK47: =IFERROR(VLOOKUP(F47,Tipo!$C$12:$C$27,1,FALSE),"NO") -> Prestación de servicios profesionales y de apoyo a la gestión, o para la ejecución de trabajos artísticos que sólo puedan encomendarse a determinadas personas naturales; | AL47: Inversión | AM47: NO
A48: 36 | B48: 2019 | C48: FDLAN-CD-036-2019 | D48: Contratos de prestación de servicios profesionales y de apoyo a la gestión | E48: Contratación directa | F48: Prestación de servicios profesionales y de apoyo a la gestión, o para la ejecución de trabajos artísticos que sólo puedan encomendarse a determinadas personas naturales; | G48: Prestación de servicios profesionales para apoyar al equipo de prensa y comunicaciones de la alcaldía local en la realización y publicación de contenidos de redes sociales y canales de divulgación digital (sitio web) de la alcaldía local. | H48: Inversión | I48: 45 | J48: =IF(ISERROR(VLOOKUP(I48,#REF!,2,FALSE))," ",VLOOKUP(I48,#REF!,2,FALSE)) ->  | K48: =IF(ISERROR(VLOOKUP(I48,#REF!,3,FALSE))," ",VLOOKUP(I48,#REF!,3,FALSE)) ->  | L48: 3-3-1-15-07-45-1441-000 | M48: 79883695 | N48: Alejandro Hincapie Cubides | O48: 50515200 | R48: 1 | S48: 3704448 | T48: 54219648 | U48: 49673280 | V48: 2019-02-01 | W48: 2019-02-04 | X48: 2019-12-30 | Y48: 300 | Z48: 22 | AD48: X | AF48: 0.9161490683 | AG48: 54219648 | AH48: =IF(SUMPRODUCT((A$14:A48=A48)*(B$14:B48=B48)*(C$14:C48=C48))>1,0,1) -> 1 | AI48: Contratos de prestación de servicios profesionales y de apoyo a la gestión | AJ48: Contratación directa | AK48: =IFERROR(VLOOKUP(F48,Tipo!$C$12:$C$27,1,FALSE),"NO") -> Prestación de servicios profesionales y de apoyo a la gestión, o para la ejecución de trabajos artísticos que sólo puedan encomendarse a determinadas personas naturales; | AL48: Inversión | AM48: NO
A49: 37 | B49: 2019 | C49: FDLAN-CD-037-2019 | D49: Contratos de prestación de servicios profesionales y de apoyo a la gestión | E49: Contratación directa | F49: Prestación de servicios profesionales y de apoyo a la gestión, o para la ejecución de trabajos artísticos que sólo puedan encomendarse a determinadas personas naturales; | G49: PRESTAR LOS SERVICIOS PROFESIONALES PARA LA OPERACIÓN, PRESTACIÓN, SEGUIMIENTO Y CUMPLIMIENTO DE LOS PROCEDIMIENTOS ADMINISTRATIVOS, OPERATIVOS Y PROGRAMATICOS DEL SERVICIO DE APOYO ECONÓMICO TIPO C, QUE CONTRIBUYAN A LA GARANTÍA DE LOS DERECHOS DE LA POBLACIÓN MAYOR EN EL MARCO DE LA POLÍTICA PÚBLICA SOCIAL PARA ENVEJECIMIENTO Y LA VEJEZ EN EL DISTRITO CAPITAL A CARGO DE LA ALCALDÍA LOCAL | H49: Inversión | I49: 45 | J49: =IF(ISERROR(VLOOKUP(I49,#REF!,2,FALSE))," ",VLOOKUP(I49,#REF!,2,FALSE)) ->  | K49: =IF(ISERROR(VLOOKUP(I49,#REF!,3,FALSE))," ",VLOOKUP(I49,#REF!,3,FALSE)) ->  | L49: 3-3-1-15-01-03-1429-000 | M49: 1014220601 | N49: Jenny Paola Lagos Diaz | O49: 50101018 | R49: 1 | S49: 5769208 | T49: 55870226 | U49: 45546380 | V49: 2019-02-01 | W49: 2019-02-01 | X49: 2019-12-31 | Y49: 330 | Z49: 38 | AC49: X | AF49: 0.8152173932 | AG49: 55870226 | AH49: =IF(SUMPRODUCT((A$14:A49=A49)*(B$14:B49=B49)*(C$14:C49=C49))>1,0,1) -> 1 | AI49: Contratos de prestación de servicios profesionales y de apoyo a la gestión | AJ49: Contratación directa | AK49: =IFERROR(VLOOKUP(F49,Tipo!$C$12:$C$27,1,FALSE),"NO") -> Prestación de servicios profesionales y de apoyo a la gestión, o para la ejecución de trabajos artísticos que sólo puedan encomendarse a determinadas personas naturales; | AL49: Inversión | AM49: NO
A50: 38 | B50: 2019 | C50: FDLAN-CD-038-2019 | D50: Contratos de prestación de servicios profesionales y de apoyo a la gestión | E50: Contratación directa | F50: Prestación de servicios profesionales y de apoyo a la gestión, o para la ejecución de trabajos artísticos que sólo puedan encomendarse a determinadas personas naturales; | G50: PRESTACIÓN DE SERVICIOS DE AUXILIAR DE APOYO AL DESPACHO DE LA ALCALDÍA LOCAL ANTONIO NARIÑO COMO CONDUCTOR DEL VEHÍCULO ASIGNADO AL ALCALDE LOCAL Y DE PROPIEDAD DEL FONDO DE DESARROLLO LOCAL | H50: Inversión | I50: 45 | J50: =IF(ISERROR(VLOOKUP(I50,#REF!,2,FALSE))," ",VLOOKUP(I50,#REF!,2,FALSE)) ->  | K50: =IF(ISERROR(VLOOKUP(I50,#REF!,3,FALSE))," ",VLOOKUP(I50,#REF!,3,FALSE)) ->  | L50: 3-3-1-15-07-45-1441-000 | M50: 79488817 | N50: Carlos Martin Bojaca Torres | O50: 30620700 | T50: 30620700 | U50: 27837000 | V50: 2019-02-01 | W50: 2019-02-01 | X50: 2019-12-31 | Y50: 330 | AD50: X | AF50: 0.9090909091 | AG50: 30620700 | AH50: =IF(SUMPRODUCT((A$14:A50=A50)*(B$14:B50=B50)*(C$14:C50=C50))>1,0,1) -> 1 | AI50: Contratos de prestación de servicios profesionales y de apoyo a la gestión | AJ50: Contratación directa | AK50: =IFERROR(VLOOKUP(F50,Tipo!$C$12:$C$27,1,FALSE),"NO") -> Prestación de servicios profesionales y de apoyo a la gestión, o para la ejecución de trabajos artísticos que sólo puedan encomendarse a determinadas personas naturales; | AL50: Inversión | AM50: NO
A51: 39 | B51: 2019 | C51: FDLAN-CD-039-2019 | D51: Contratos de prestación de servicios profesionales y de apoyo a la gestión | E51: Contratación directa | F51: Prestación de servicios profesionales y de apoyo a la gestión, o para la ejecución de trabajos artísticos que sólo puedan encomendarse a determinadas personas naturales; | G51: Prestación de servicios de apoyo en el Área de Gestión de Desarrollo Local de Antonio Nariño para las actividades relacionadas con el cumplimiento de los Procesos de Gestión Documental y demás funciones de apoyo que le sean requeridas | H51: Inversión | I51: 45 | J51: =IF(ISERROR(VLOOKUP(I51,#REF!,2,FALSE))," ",VLOOKUP(I51,#REF!,2,FALSE)) ->  | K51: =IF(ISERROR(VLOOKUP(I51,#REF!,3,FALSE))," ",VLOOKUP(I51,#REF!,3,FALSE)) ->  | L51: 3-3-1-15-07-45-1441-000 | M51: 52289797 | N51: Jakelin Mendez Orjuela | O51: 30971490 | T51: 30971490 | U51: 28155900 | V51: 2019-02-01 | W51: 2019-02-01 | X51: 2019-12-31 | Y51: 330 | AD51: X | AF51: 0.9090909091 | AG51: 30971490 | AH51: =IF(SUMPRODUCT((A$14:A51=A51)*(B$14:B51=B51)*(C$14:C51=C51))>1,0,1) -> 1 | AI51: Contratos de prestación de servicios profesionales y de apoyo a la gestión | AJ51: Contratación directa | AK51: =IFERROR(VLOOKUP(F51,Tipo!$C$12:$C$27,1,FALSE),"NO") -> Prestación de servicios profesionales y de apoyo a la gestión, o para la ejecución de trabajos artísticos que sólo puedan encomendarse a determinadas personas naturales; | AL51: Inversión | AM51: NO
A52: 40 | B52: 2019 | C52: FDLAN-CD-040-2019 | D52: Contratos de prestación de servicios profesionales y de apoyo a la gestión | E52: Contratación directa | F52: Prestación de servicios profesionales y de apoyo a la gestión, o para la ejecución de trabajos artísticos que sólo puedan encomendarse a determinadas personas naturales; | G52: PRESTACIÓN DE SERVICIOS PROFESIONALES COMO ABOGADO PARA FORTALECER LAS ACCIONES QUE ADELANTA EL EQUIPO DE INSPECCIÓN, VIGILANCIA Y CONTROL RESPECTO DE ESPACIO PÚBLICO, RÉGIMEN URBANÍSTICO” | H52: Inversión | I52: 45 | J52: =IF(ISERROR(VLOOKUP(I52,#REF!,2,FALSE))," ",VLOOKUP(I52,#REF!,2,FALSE)) ->  | K52: =IF(ISERROR(VLOOKUP(I52,#REF!,3,FALSE))," ",VLOOKUP(I52,#REF!,3,FALSE)) ->  | L52: 3-3-1-15-07-45-1441-000 | M52: 1024478984 | N52: Diana Paola Ortiz | O52: 61500000 | R52: 1 | S52: 3075000 | T52: 64575000 | U52: 60475000 | V52: 2019-02-01 | W52: 2019-02-04 | X52: 2019-12-20 | Y52: 300 | Z52: 15 | AD52: X | AF52: 0.9365079365 | AG52: 64575000 | AH52: =IF(SUMPRODUCT((A$14:A52=A52)*(B$14:B52=B52)*(C$14:C52=C52))>1,0,1) -> 1 | AI52: Contratos de prestación de servicios profesionales y de apoyo a la gestión | AJ52: Contratación directa | AK52: =IFERROR(VLOOKUP(F52,Tipo!$C$12:$C$27,1,FALSE),"NO") -> Prestación de servicios profesionales y de apoyo a la gestión, o para la ejecución de trabajos artísticos que sólo puedan encomendarse a determinadas personas naturales; | AL52: Inversión | AM52: NO
A53: 41 | B53: 2019 | C53: FDLAN-CD.031-2019 | D53: Contratos de prestación de servicios profesionales y de apoyo a la gestión | E53: Contratación directa | F53: Prestación de servicios profesionales y de apoyo a la gestión, o para la ejecución de trabajos artísticos que sólo puedan encomendarse a determinadas personas naturales; | G53: PRESTAR SERVICIOS DE APOYO A LA ALCALDÍA LOCAL DE ANTONIO NARIÑO LA GESTIÓN ADMINISTRATIVA DEL TEATRO VILLA MAYOR | H53: Inversión | I53: 45 | J53: =IF(ISERROR(VLOOKUP(I53,#REF!,2,FALSE))," ",VLOOKUP(I53,#REF!,2,FALSE)) ->  | K53: =IF(ISERROR(VLOOKUP(I53,#REF!,3,FALSE))," ",VLOOKUP(I53,#REF!,3,FALSE)) ->  | L53: 3-3-1-15-01-11-1434-000 | M53: 1143835530 | N53: Sara Jimenez Nieto | O53: 21320000 | T53: 21320000 | U53: 19352000 | V53: 2019-02-04 | W53: 2019-02-04 | X53: 2019-12-31 | Y53: 325 | AD53: X | AF53: 0.9076923077 | AG53: 21320000 | AH53: =IF(SUMPRODUCT((A$14:A53=A53)*(B$14:B53=B53)*(C$14:C53=C53))>1,0,1) -> 1 | AI53: Contratos de prestación de servicios profesionales y de apoyo a la gestión | AJ53: Contratación directa | AK53: =IFERROR(VLOOKUP(F53,Tipo!$C$12:$C$27,1,FALSE),"NO") -> Prestación de servicios profesionales y de apoyo a la gestión, o para la ejecución de trabajos artísticos que sólo puedan encomendarse a determinadas personas naturales; | AL53: Inversión | AM53: NO
A54: 42 | B54: 2019 | C54: FDLAN-CD-041-2019 | D54: Contratos de prestación de servicios profesionales y de apoyo a la gestión | E54: Contratación directa | F54: Prestación de servicios profesionales y de apoyo a la gestión, o para la ejecución de trabajos artísticos que sólo puedan encomendarse a determinadas personas naturales; | G54: Apoyar al (la) Alcalde(sa) Local en la promoción, articulación, acompañamiento y seguimiento para la atención y protección de los animales domésticos y silvestres de la localidad | H54: Inversión | I54: 45 | J54: =IF(ISERROR(VLOOKUP(I54,#REF!,2,FALSE))," ",VLOOKUP(I54,#REF!,2,FALSE)) ->  | K54: =IF(ISERROR(VLOOKUP(I54,#REF!,3,FALSE))," ",VLOOKUP(I54,#REF!,3,FALSE)) ->  | L54: 3-3-1-15-03-19-1439-000 | M54: 80871601 | N54: José Nicolas Daza Gómez | O54: 47064820 | R54: 2 | S54: =2277330+4554600 -> 6831930 | T54: 53896750 | U54: 40687810 | V54: 2019-02-04 | W54: 2019-02-04 | X54: 2019-12-15 | Y54: 310 | Z54: =15+30 -> 45 | AC54: X | AF54: 0.7549214006 | AG54: 53896750 | AH54: =IF(SUMPRODUCT((A$14:A54=A54)*(B$14:B54=B54)*(C$14:C54=C54))>1,0,1) -> 1 | AI54: Contratos de prestación de servicios profesionales y de apoyo a la gestión | AJ54: Contratación directa | AK54: =IFERROR(VLOOKUP(F54,Tipo!$C$12:$C$27,1,FALSE),"NO") -> Prestación de servicios profesionales y de apoyo a la gestión, o para la ejecución de trabajos artísticos que sólo puedan encomendarse a determinadas personas naturales; | AL54: Inversión | AM54: NO
A55: 43 | B55: 2019 | C55: FDLAN-CD-042-2019 | D55: Contratos de prestación de servicios profesionales y de apoyo a la gestión | E55: Contratación directa | F55: Prestación de servicios profesionales y de apoyo a la gestión, o para la ejecución de trabajos artísticos que sólo puedan encomendarse a determinadas personas naturales; | G55: Prestación de servicios profesionales como apoyo en la formulación de proyectos de obra previsto para la vigencia 2019 y como apoyo a la supervisión y liquidación de los proyectos de Infraestructura que se encuentran en ejecución en la Localidad Antonio Nariño” | H55: Inversión | I55: 45 | J55: =IF(ISERROR(VLOOKUP(I55,#REF!,2,FALSE))," ",VLOOKUP(I55,#REF!,2,FALSE)) ->  | K55: =IF(ISERROR(VLOOKUP(I55,#REF!,3,FALSE))," ",VLOOKUP(I55,#REF!,3,FALSE)) ->  | L55: 3-3-1-15-02-17-1438-000 | M55: 52433219 | N55: Andrea Herrera Franco | O55: 64967500 | T55: 64967500 | U55: 58970500 | V55: 2019-02-04 | W55: 2019-02-04 | X55: 2019-12-31 | Y55: 325 | AD55: X | AF55: 0.9076923077 | AG55: 64967500 | AH55: =IF(SUMPRODUCT((A$14:A55=A55)*(B$14:B55=B55)*(C$14:C55=C55))>1,0,1) -> 1 | AI55: Contratos de prestación de servicios profesionales y de apoyo a la gestión | AJ55: Contratación directa | AK55: =IFERROR(VLOOKUP(F55,Tipo!$C$12:$C$27,1,FALSE),"NO") -> Prestación de servicios profesionales y de apoyo a la gestión, o para la ejecución de trabajos artísticos que sólo puedan encomendarse a determinadas personas naturales; | AL55: Inversión | AM55: NO
A56: 44 | B56: 2019 | C56: FDLAN-CD-043-2019 | D56: Contratos de prestación de servicios profesionales y de apoyo a la gestión | E56: Contratación directa | F56: Prestación de servicios profesionales y de apoyo a la gestión, o para la ejecución de trabajos artísticos que sólo puedan encomendarse a determinadas personas naturales; | G56: Prestación de servicios profesionales para la administración, desarrollo y fortalecimiento de las actividades culturales y artísticas que se brindan a la comunidad en el teatro villa mayor de la localidad Antonio Nariño. | H56: Inversión | I56: 45 | J56: =IF(ISERROR(VLOOKUP(I56,#REF!,2,FALSE))," ",VLOOKUP(I56,#REF!,2,FALSE)) ->  | K56: =IF(ISERROR(VLOOKUP(I56,#REF!,3,FALSE))," ",VLOOKUP(I56,#REF!,3,FALSE)) ->  | L56: 3-3-1-15-01-11-1434-000 | M56: 80871795 | N56: Alvaro Andres Martinez Coronel | O56: 71825000 | T56: 71825000 | U56: 62985000 | V56: 2019-02-04 | W56: 2019-02-04 | X56: 2019-12-31 | Y56: 325 | AD56: X | AF56: 0.8769230769 | AG56: 71825000 | AH56: =IF(SUMPRODUCT((A$14:A56=A56)*(B$14:B56=B56)*(C$14:C56=C56))>1,0,1) -> 1 | AI56: Contratos de prestación de servicios profesionales y de apoyo a la gestión | AJ56: Contratación directa | AK56: =IFERROR(VLOOKUP(F56,Tipo!$C$12:$C$27,1,FALSE),"NO") -> Prestación de servicios profesionales y de apoyo a la gestión, o para la ejecución de trabajos artísticos que sólo puedan encomendarse a determinadas personas naturales; | AL56: Inversión | AM56: NO
A57: 45 | B57: 2019 | C57: FDLAN-CD-044-2019 | D57: Contratos de prestación de servicios profesionales y de apoyo a la gestión | E57: Contratación directa | F57: Prestación de servicios profesionales y de apoyo a la gestión, o para la ejecución de trabajos artísticos que sólo puedan encomendarse a determinadas personas naturales; | G57: PRESTAR SUS SERVICIOS PROFESIONALES PARA EL PROGRAMA DE INTERVENCIÓN PSICOSOCIAL PARA FUNCIONARIOS Y CONTRATISTA DE LA ALCALDÍA LOCAL DE ANTONIO NARIÑO | H57: Inversión | I57: 45 | J57: =IF(ISERROR(VLOOKUP(I57,#REF!,2,FALSE))," ",VLOOKUP(I57,#REF!,2,FALSE)) ->  | K57: =IF(ISERROR(VLOOKUP(I57,#REF!,3,FALSE))," ",VLOOKUP(I57,#REF!,3,FALSE)) ->  | L57: 3-3-1-15-07-45-1441-000 | M57: 52811539 | N57: ANDREA CARRILLO BARBOSA | O57: 11179620 | T57: 11179620 | U57: 11179620 | V57: 2019-02-07 | W57: 2019-02-08 | X57: 2019-04-30 | Y57: 321 | AD57: X | AF57: 1 | AG57: 11179620 | AH57: =IF(SUMPRODUCT((A$14:A57=A57)*(B$14:B57=B57)*(C$14:C57=C57))>1,0,1) -> 1 | AI57: Contratos de prestación de servicios profesionales y de apoyo a la gestión | AJ57: Contratación directa | AK57: =IFERROR(VLOOKUP(F57,Tipo!$C$12:$C$27,1,FALSE),"NO") -> Prestación de servicios profesionales y de apoyo a la gestión, o para la ejecución de trabajos artísticos que sólo puedan encomendarse a determinadas personas naturales; | AL57: Inversión | AM57: NO
A58: 46 | B58: 2019 | C58: FDLAN-CD-045-2019 | D58: Contratos de prestación de servicios profesionales y de apoyo a la gestión | E58: Contratación directa | F58: Prestación de servicios profesionales y de apoyo a la gestión, o para la ejecución de trabajos artísticos que sólo puedan encomendarse a determinadas personas naturales; | G58: Prestación de servicios profesionales de Ingeniero administrador de red del fondo de desarrollo local Antonio Nariño | H58: Inversión | I58: 45 | J58: =IF(ISERROR(VLOOKUP(I58,#REF!,2,FALSE))," ",VLOOKUP(I58,#REF!,2,FALSE)) ->  | K58: =IF(ISERROR(VLOOKUP(I58,#REF!,3,FALSE))," ",VLOOKUP(I58,#REF!,3,FALSE)) ->  | L58: 3-3-1-15-07-45-1441-000 | M58: 1032358761 | N58: Fabian Eduardo Molano Mendoza | O58: 57236894 | R58: 1 | S58: 717704 | T58: 57954598 | U58: 52392392 | V58: 2019-02-06 | W58: 2019-02-07 | X58: 2019-12-30 | Y58: 319 | Z58: 3 | AD58: X | AF58: 0.9040247678 | AG58: 57954598 | AH58: =IF(SUMPRODUCT((A$14:A58=A58)*(B$14:B58=B58)*(C$14:C58=C58))>1,0,1) -> 1 | AI58: Contratos de prestación de servicios profesionales y de apoyo a la gestión | AJ58: Contratación directa | AK58: =IFERROR(VLOOKUP(F58,Tipo!$C$12:$C$27,1,FALSE),"NO") -> Prestación de servicios profesionales y de apoyo a la gestión, o para la ejecución de trabajos artísticos que sólo puedan encomendarse a determinadas personas naturales; | AL58: Inversión | AM58: NO
A59: 47 | B59: 2019 | C59: FDLAN-CD-047-2019 | D59: Contratos de prestación de servicios profesionales y de apoyo a la gestión | E59: Contratación directa | F59: Prestación de servicios profesionales y de apoyo a la gestión, o para la ejecución de trabajos artísticos que sólo puedan encomendarse a determinadas personas naturales; | G59: Prestación de servicios como apoyo administrativo en el área de gestión de desarrollo local del Fondo de Desarrollo Local de Antonio Nariño. | H59: Inversión | I59: 45 | J59: =IF(ISERROR(VLOOKUP(I59,#REF!,2,FALSE))," ",VLOOKUP(I59,#REF!,2,FALSE)) ->  | K59: =IF(ISERROR(VLOOKUP(I59,#REF!,3,FALSE))," ",VLOOKUP(I59,#REF!,3,FALSE)) ->  | L59: 3-3-1-15-07-45-1441-000 | M59: 1074129741 | N59: Diego Armando Lopez Clavijo cedido a Zaida Liliana Salinas Saavedra | O59: 31206322 | T59: 31206322 | U59: 28307902 | V59: 2019-02-06 | W59: 2019-02-07 | X59: 2019-12-31 | Y59: 323 | AD59: X | AF59: 0.907120743 | AG59: 31206322 | AH59: =IF(SUMPRODUCT((A$14:A59=A59)*(B$14:B59=B59)*(C$14:C59=C59))>1,0,1) -> 1 | AI59: Contratos de prestación de servicios profesionales y de apoyo a la gestión | AJ59: Contratación directa | AK59: =IFERROR(VLOOKUP(F59,Tipo!$C$12:$C$27,1,FALSE),"NO") -> Prestación de servicios profesionales y de apoyo a la gestión, o para la ejecución de trabajos artísticos que sólo puedan encomendarse a determinadas personas naturales; | AL59: Inversión | AM59: NO
A60: 48 | B60: 2019 | C60: FDLAN-CD-048-2019 | D60: Contratos de prestación de servicios profesionales y de apoyo a la gestión | E60: Contratación directa | F60: Prestación de servicios profesionales y de apoyo a la gestión, o para la ejecución de trabajos artísticos que sólo puedan encomendarse a determinadas personas naturales; | G60: Prestación de servicios profesionales para brindar apoyo en la puesta en marcha de la emisora local, el acercamiento con la comunidad estudiantil y los diferentes grupo de interés. | H60: Inversión | I60: 45 | J60: =IF(ISERROR(VLOOKUP(I60,#REF!,2,FALSE))," ",VLOOKUP(I60,#REF!,2,FALSE)) ->  | K60: =IF(ISERROR(VLOOKUP(I60,#REF!,3,FALSE))," ",VLOOKUP(I60,#REF!,3,FALSE)) ->  | L60: 3-3-1-15-07-45-1441-000 | M60: 1010198449 | N60: Sergio Arley Salazar Salvador | O60: 44939312 | R60: 1 | S60: 3491906 | T60: 48431218 | U60: 44483846 | V60: 2019-02-06 | W60: 2019-02-06 | X60: 2019-12-30 | Y60: 296 | Z60: 23 | AD60: X | AF60: 0.9184952978 | AG60: 48431218 | AH60: =IF(SUMPRODUCT((A$14:A60=A60)*(B$14:B60=B60)*(C$14:C60=C60))>1,0,1) -> 1 | AI60: Contratos de prestación de servicios profesionales y de apoyo a la gestión | AJ60: Contratación directa | AK60: =IFERROR(VLOOKUP(F60,Tipo!$C$12:$C$27,1,FALSE),"NO") -> Prestación de servicios profesionales y de apoyo a la gestión, o para la ejecución de trabajos artísticos que sólo puedan encomendarse a determinadas personas naturales; | AL60: Inversión | AM60: NO
A61: 49 | B61: 2019 | C61: FDLAN-CD-049-2019 | D61: Contratos de prestación de servicios profesionales y de apoyo a la gestión | E61: Contratación directa | F61: Prestación de servicios profesionales y de apoyo a la gestión, o para la ejecución de trabajos artísticos que sólo puedan encomendarse a determinadas personas naturales; | G61: Prestación de servicios profesionales para la formulación, definición, socialización y seguimiento de una propuesta integral de intervención urbanística en espacios y escenarios locales y su inclusión en los distintos planes, y programas y proyectos de inversión local. | H61: Inversión | I61: 45 | J61: =IF(ISERROR(VLOOKUP(I61,#REF!,2,FALSE))," ",VLOOKUP(I61,#REF!,2,FALSE)) ->  | K61: =IF(ISERROR(VLOOKUP(I61,#REF!,3,FALSE))," ",VLOOKUP(I61,#REF!,3,FALSE)) ->  | L61: 3-3-1-15-02-17-1437-000 | M61: 1020730414 | N61: Luisa Marcela Fontalvo Torres cedido a Guillermo Arturo Barahona cedido a Laura Marcela Sanguino Gutierrez | O61: 61670390 | T61: 61670390 | U61: 51551100 | V61: 2019-02-06 | W61: 2019-02-06 | X61: 2019-12-31 | Y61: 323 | AD61: X | AF61: 0.8359133127 | AG61: 61670390 | AH61: =IF(SUMPRODUCT((A$14:A61=A61)*(B$14:B61=B61)*(C$14:C61=C61))>1,0,1) -> 1 | AI61: Contratos de prestación de servicios profesionales y de apoyo a la gestión | AJ61: Contratación directa | AK61: =IFERROR(VLOOKUP(F61,Tipo!$C$12:$C$27,1,FALSE),"NO") -> Prestación de servicios profesionales y de apoyo a la gestión, o para la ejecución de trabajos artísticos que sólo puedan encomendarse a determinadas personas naturales; | AL61: Inversión | AM61: NO
A62: 50 | B62: 2019 | C62: FDLAN-CD-046-2019 | D62: Contratos de prestación de servicios profesionales y de apoyo a la gestión | E62: Contratación directa | F62: Prestación de servicios profesionales y de apoyo a la gestión, o para la ejecución de trabajos artísticos que sólo puedan encomendarse a determinadas personas naturales; | G62: Prestar los servicios de apoyo en el diseño de piezas gráficas, realización, dirección, producción y edición de material videografico, manejo de redes y cubrimiento de eventos del Teatro Villa Mayor" | H62: Inversión | I62: 45 | J62: =IF(ISERROR(VLOOKUP(I62,#REF!,2,FALSE))," ",VLOOKUP(I62,#REF!,2,FALSE)) ->  | K62: =IF(ISERROR(VLOOKUP(I62,#REF!,3,FALSE))," ",VLOOKUP(I62,#REF!,3,FALSE)) ->  | L62: 3-3-1-15-01-11-1434-000 | M62: 53106207 | N62: Marian Judith Romero Garcia | O62: 34238260 | T62: 34238260 | U62: 29772400 | V62: 2019-02-19 | W62: 2019-02-19 | X62: 2019-12-31 | Y62: 322 | AD62: X | AF62: 0.8695652174 | AG62: 34238260 | AH62: =IF(SUMPRODUCT((A$14:A62=A62)*(B$14:B62=B62)*(C$14:C62=C62))>1,0,1) -> 1 | AI62: Contratos de prestación de servicios profesionales y de apoyo a la gestión | AJ62: Contratación directa | AK62: =IFERROR(VLOOKUP(F62,Tipo!$C$12:$C$27,1,FALSE),"NO") -> Prestación de servicios profesionales y de apoyo a la gestión, o para la ejecución de trabajos artísticos que sólo puedan encomendarse a determinadas personas naturales; | AL62: Inversión | AM62: NO
A63: 51 | B63: 2019 | C63: FDLAN-CD-050-2019 | D63: Contratos de prestación de servicios profesionales y de apoyo a la gestión | E63: Contratación directa | F63: Prestación de servicios profesionales y de apoyo a la gestión, o para la ejecución de trabajos artísticos que sólo puedan encomendarse a determinadas personas naturales; | G63: “Apoyar jurídicamente la ejecución de las acciones requeridas para el trámite e impulso procesal de las actuaciones contravencionales y/o querellas que cursen en las Inspecciones de Policía de la Localidad” | H63: Inversión | I63: 45 | J63: =IF(ISERROR(VLOOKUP(I63,#REF!,2,FALSE))," ",VLOOKUP(I63,#REF!,2,FALSE)) ->  | K63: =IF(ISERROR(VLOOKUP(I63,#REF!,3,FALSE))," ",VLOOKUP(I63,#REF!,3,FALSE)) ->  | L63: 3-3-1-15-07-45-1441-000 | M63: 1032429942 | N63: Raysha Camila Clavijo Varela | O63: 29908934 | R63: 1 | S63: 14878556 | T63: 44787490 | U63: 39929186 | V63: 2019-02-07 | W63: 2019-02-07 | X63: 2019-11-30 | Y63: 215 | AD63: X | AF63: 0.8915254237 | AG63: 44787490 | AH63: =IF(SUMPRODUCT((A$14:A63=A63)*(B$14:B63=B63)*(C$14:C63=C63))>1,0,1) -> 1 | AI63: Contratos de prestación de servicios profesionales y de apoyo a la gestión | AJ63: Contratación directa | AK63: =IFERROR(VLOOKUP(F63,Tipo!$C$12:$C$27,1,FALSE),"NO") -> Prestación de servicios profesionales y de apoyo a la gestión, o para la ejecución de trabajos artísticos que sólo puedan encomendarse a determinadas personas naturales; | AL63: Inversión | AM63: NO
A64: 52 | B64: 2019 | C64: FDLAN-CD-051-2019 | D64: Contratos de prestación de servicios profesionales y de apoyo a la gestión | E64: Contratación directa | F64: Prestación de servicios profesionales y de apoyo a la gestión, o para la ejecución de trabajos artísticos que sólo puedan encomendarse a determinadas personas naturales; | G64: APOYAR AL ALCALDE EN LA FORMULACIÓN, SEGUIMIENTO E IMPLEMENTACIÓN DE LA ESTRATEGIA LOCAL PARA LA TERMINACIÓN JURÍDICA DE LAS ACTUACIONES ADMINISTRATIVAS EN LA ALCALDÍA LOCAL | H64: Inversión | I64: 45 | J64: =IF(ISERROR(VLOOKUP(I64,#REF!,2,FALSE))," ",VLOOKUP(I64,#REF!,2,FALSE)) ->  | K64: =IF(ISERROR(VLOOKUP(I64,#REF!,3,FALSE))," ",VLOOKUP(I64,#REF!,3,FALSE)) ->  | L64: 3-3-1-15-07-45-1441-000 | M64: 79614602 | N64: Raul Antonio Vargas Camargo | O64: 71328432 | R64: 1 | S64: 3519495 | T64: 74847927 | U64: 68512836 | V64: 2019-02-07 | W64: 2019-02-07 | X64: 2019-12-28 | Y64: 304 | Z64: 13 | AD64: X | AF64: 0.9153605016 | AG64: 74847927 | AH64: =IF(SUMPRODUCT((A$14:A64=A64)*(B$14:B64=B64)*(C$14:C64=C64))>1,0,1) -> 1 | AI64: Contratos de prestación de servicios profesionales y de apoyo a la gestión | AJ64: Contratación directa | AK64: =IFERROR(VLOOKUP(F64,Tipo!$C$12:$C$27,1,FALSE),"NO") -> Prestación de servicios profesionales y de apoyo a la gestión, o para la ejecución de trabajos artísticos que sólo puedan encomendarse a determinadas personas naturales; | AL64: Inversión | AM64: NO
A65: 53 | B65: 2019 | C65: FDLAN-CD-052-2019 | D65: Contratos de prestación de servicios profesionales y de apoyo a la gestión | E65: Contratación directa | F65: Prestación de servicios profesionales y de apoyo a la gestión, o para la ejecución de trabajos artísticos que sólo puedan encomendarse a determinadas personas naturales; | G65: Apoyar juridicamente las acciones requeridas para la depuración de las | H65: Inversión | I65: 45 | J65: =IF(ISERROR(VLOOKUP(I65,#REF!,2,FALSE))," ",VLOOKUP(I65,#REF!,2,FALSE)) ->  | K65: =IF(ISERROR(VLOOKUP(I65,#REF!,3,FALSE))," ",VLOOKUP(I65,#REF!,3,FALSE)) ->  | L65: 3-3-1-15-07-45-1441-000 | M65: 1051663189 | N65: Brenda Liliana Jimenez Paternina | O65: 45091134 | R65: 1 | S65: 2125508 | T65: 47216642 | U65: 44180202 | V65: 2019-02-08 | W65: 2019-02-08 | X65: 2019-12-20 | Y65: 297 | Z65: 14 | AD65: X | AF65: 0.9356913183 | AG65: 47216642 | AH65: =IF(SUMPRODUCT((A$14:A65=A65)*(B$14:B65=B65)*(C$14:C65=C65))>1,0,1) -> 1 | AI65: Contratos de prestación de servicios profesionales y de apoyo a la gestión | AJ65: Contratación directa | AK65: =IFERROR(VLOOKUP(F65,Tipo!$C$12:$C$27,1,FALSE),"NO") -> Prestación de servicios profesionales y de apoyo a la gestión, o para la ejecución de trabajos artísticos que sólo puedan encomendarse a determinadas personas naturales; | AL65: Inversión | AM65: NO
A66: 54 | B66: 2019 | C66: FDLAN-CD-053-2019 | D66: Contratos de prestación de servicios profesionales y de apoyo a la gestión | E66: Contratación directa | F66: Prestación de servicios profesionales y de apoyo a la gestión, o para la ejecución de trabajos artísticos que sólo puedan encomendarse a determinadas personas naturales; | G66: BRINDAR APOYO AL ALCALDE LOCAL DE ANTONIO NARIÑO EN EL CONTROL, EVALUACIÓN Y SEGUIMIENTO JURÍDICO-ADMINISTRATIVO, EN LOS PROCESOS DE PLANEACIÓN Y GESTIÓN INSTITUCIONAL DEL FONDO DE DESARROLLO LOCAL DE ANTONIO NARIÑO | H66: Inversión | I66: 45 | J66: =IF(ISERROR(VLOOKUP(I66,#REF!,2,FALSE))," ",VLOOKUP(I66,#REF!,2,FALSE)) ->  | K66: =IF(ISERROR(VLOOKUP(I66,#REF!,3,FALSE))," ",VLOOKUP(I66,#REF!,3,FALSE)) ->  | L66: 3-3-1-15-07-45-1441-000 | M66: 10736936277 | N66: Jennifer Alexandra Barbosa Escobar cedido a Maria Alexandra Rodriguez Novoa | O66: 65805000 | T66: 65805000 | U66: 59040000 | V66: 2019-02-11 | W66: 2019-02-11 | X66: 2019-12-31 | Y66: 318 | AD66: X | AF66: 0.8971962617 | AG66: 65805000 | AH66: =IF(SUMPRODUCT((A$14:A66=A66)*(B$14:B66=B66)*(C$14:C66=C66))>1,0,1) -> 1 | AI66: Contratos de prestación de servicios profesionales y de apoyo a la gestión | AJ66: Contratación directa | AK66: =IFERROR(VLOOKUP(F66,Tipo!$C$12:$C$27,1,FALSE),"NO") -> Prestación de servicios profesionales y de apoyo a la gestión, o para la ejecución de trabajos artísticos que sólo puedan encomendarse a determinadas personas naturales; | AL66: Inversión | AM66: NO
A67: 55 | B67: 2019 | C67: FDLAN-CD-055-2019 | D67: Contratos de prestación de servicios profesionales y de apoyo a la gestión | E67: Contratación directa | F67: Prestación de servicios profesionales y de apoyo a la gestión, o para la ejecución de trabajos artísticos que sólo puedan encomendarse a determinadas personas naturales; | G67: APOYAR TÉCNICAMENTE LAS DISTINTAS ETAPAS DE LOS PROCESOS DE COMPETENCIA DE LA ALCALDÍA LOCAL PARA LA DEPURACIÓN DE LAS ACTUACIONES ADMINISTRATIVAS | H67: Inversión | I67: 45 | J67: =IF(ISERROR(VLOOKUP(I67,#REF!,2,FALSE))," ",VLOOKUP(I67,#REF!,2,FALSE)) ->  | K67: =IF(ISERROR(VLOOKUP(I67,#REF!,3,FALSE))," ",VLOOKUP(I67,#REF!,3,FALSE)) ->  | L67: 3-3-1-15-07-45-1441-000 | M67: 74300998 | N67: German Augusto Bernardo Mejia Martinez | O67: 65805000 | R67: 1 | S67: 2998500 | T67: 68803500 | U67: 57571200 | V67: 2019-02-11 | W67: 2019-02-11 | X67: 2019-12-27 | Y67: 300 | Z67: 15 | AD67: X | AF67: 0.8367481305 | AG67: 68803500 | AH67: =IF(SUMPRODUCT((A$14:A67=A67)*(B$14:B67=B67)*(C$14:C67=C67))>1,0,1) -> 1 | AI67: Contratos de prestación de servicios profesionales y de apoyo a la gestión | AJ67: Contratación directa | AK67: =IFERROR(VLOOKUP(F67,Tipo!$C$12:$C$27,1,FALSE),"NO") -> Prestación de servicios profesionales y de apoyo a la gestión, o para la ejecución de trabajos artísticos que sólo puedan encomendarse a determinadas personas naturales; | AL67: Inversión | AM67: NO
A68: 57 | B68: 2019 | C68: FDLAN-CD-057-2019 | D68: Contratos de prestación de servicios profesionales y de apoyo a la gestión | E68: Contratación directa | F68: Prestación de servicios profesionales y de apoyo a la gestión, o para la ejecución de trabajos artísticos que sólo puedan encomendarse a determinadas personas naturales; | G68: Prestación de servicios de apoyo al área de gestión de desarrollo local como auxiliar en el Almacén del Fondo de Desarrollo Local Antonio Nariño | H68: Inversión | I68: 45 | J68: =IF(ISERROR(VLOOKUP(I68,#REF!,2,FALSE))," ",VLOOKUP(I68,#REF!,2,FALSE)) ->  | K68: =IF(ISERROR(VLOOKUP(I68,#REF!,3,FALSE))," ",VLOOKUP(I68,#REF!,3,FALSE)) ->  | L68: 3-3-1-15-07-45-1441-000 | M68: 1014253261 | N68: Carlos Eduardo Bravo Rodriguez | O68: 25101648 | T68: 25101648 | U68: 22733568 | V68: 2019-02-11 | W68: 2019-02-11 | X68: 2019-12-31 | Y68: 318 | AD68: X | AF68: 0.9056603774 | AG68: 25101648 | AH68: =IF(SUMPRODUCT((A$14:A68=A68)*(B$14:B68=B68)*(C$14:C68=C68))>1,0,1) -> 1 | AI68: Contratos de prestación de servicios profesionales y de apoyo a la gestión | AJ68: Contratación directa | AK68: =IFERROR(VLOOKUP(F68,Tipo!$C$12:$C$27,1,FALSE),"NO") -> Prestación de servicios profesionales y de apoyo a la gestión, o para la ejecución de trabajos artísticos que sólo puedan encomendarse a determinadas personas naturales; | AL68: Inversión | AM68: NO
A69: 58 | B69: 2019 | C69: FDLAN-CD-056-2019 | D69: Contratos de prestación de servicios profesionales y de apoyo a la gestión | E69: Contratación directa | F69: Prestación de servicios profesionales y de apoyo a la gestión, o para la ejecución de trabajos artísticos que sólo puedan encomendarse a determinadas personas naturales; | G69: Prestar servicios de apoyo en los distintos aspectos juridicos asociados con la inspección , vigilancia y control, respect a los establecimeintos de comercio , el ordenamiento territorial y el uso del espacio público, acompañando la verificación de infracciones a la normatividad urbanistica y policiva vigente. | H69: Inversión | I69: 45 | J69: =IF(ISERROR(VLOOKUP(I69,#REF!,2,FALSE))," ",VLOOKUP(I69,#REF!,2,FALSE)) ->  | K69: =IF(ISERROR(VLOOKUP(I69,#REF!,3,FALSE))," ",VLOOKUP(I69,#REF!,3,FALSE)) ->  | L69: 3-3-1-15-07-45-1441-000 | M69: 1010190221 | N69: Ligia Paola Gómez Vargas | O69: 28694358 | R69: 1 | S69: 1062754 | T69: 29757112 | U69: 27824832 | V69: 2019-02-11 | W69: 2019-02-11 | X69: 2019-12-20 | Y69: 297 | Z69: 10 | AD69: X | AF69: 0.9350649351 | AG69: 29757112 | AH69: =IF(SUMPRODUCT((A$14:A69=A69)*(B$14:B69=B69)*(C$14:C69=C69))>1,0,1) -> 1 | AI69: Contratos de prestación de servicios profesionales y de apoyo a la gestión | AJ69: Contratación directa | AK69: =IFERROR(VLOOKUP(F69,Tipo!$C$12:$C$27,1,FALSE),"NO") -> Prestación de servicios profesionales y de apoyo a la gestión, o para la ejecución de trabajos artísticos que sólo puedan encomendarse a determinadas personas naturales; | AL69: Inversión | AM69: NO
A70: 59 | B70: 2019 | C70: FDLAN-CD-058-2019 | D70: Contratos de prestación de servicios profesionales y de apoyo a la gestión | E70: Contratación directa | F70: Prestación de servicios profesionales y de apoyo a la gestión, o para la ejecución de trabajos artísticos que sólo puedan encomendarse a determinadas personas naturales; | G70: Prestación de servicios de apoyo técnico en la preparación, operación y funcionamiento del sistema de sonido y demás equipos utilizados para la realización de los eventos culturales que se desarrollen en el Teatro Villa Mayor de la Localidad Antonio Nariño | H70: Inversión | I70: 45 | J70: =IF(ISERROR(VLOOKUP(I70,#REF!,2,FALSE))," ",VLOOKUP(I70,#REF!,2,FALSE)) ->  | K70: =IF(ISERROR(VLOOKUP(I70,#REF!,3,FALSE))," ",VLOOKUP(I70,#REF!,3,FALSE)) ->  | L70: 3-3-1-15-01-11-1434-000 | M70: 1016086862 | N70: BRAYAN NICOLÁS PARDO TRUJILLO | O70: 31800000 | T70: 31800000 | U70: 28800000 | V70: 2019-02-11 | W70: 2019-02-11 | X70: 2019-12-31 | Y70: 318 | AD70: X | AF70: 0.9056603774 | AG70: 31800000 | AH70: =IF(SUMPRODUCT((A$14:A70=A70)*(B$14:B70=B70)*(C$14:C70=C70))>1,0,1) -> 1 | AI70: Contratos de prestación de servicios profesionales y de apoyo a la gestión | AJ70: Contratación directa | AK70: =IFERROR(VLOOKUP(F70,Tipo!$C$12:$C$27,1,FALSE),"NO") -> Prestación de servicios profesionales y de apoyo a la gestión, o para la ejecución de trabajos artísticos que sólo puedan encomendarse a determinadas personas naturales; | AL70: Inversión | AM70: NO
A71: 60 | B71: 2019 | C71: FDLAN-CD-059-2019 | D71: Contratos de prestación de servicios profesionales y de apoyo a la gestión | E71: Contratación directa | F71: Cuando no exista pluralidad de oferentes en el mercado | G71: Prestacion de servicios profesionales para apoyar el Area de Gestion de Desarrollo Local en el diligenciamiento y actualilzacion de los DocumentosTecnicos de Soporte y Fichas de estadisticas Basicas de Inversion y elavoracion de los documentos sporte necesarios para ejecutar los proyectos de inversion del Fondo de Desarrollo Local Antonio Nariño | H71: Inversión | I71: 45 | J71: =IF(ISERROR(VLOOKUP(I71,#REF!,2,FALSE))," ",VLOOKUP(I71,#REF!,2,FALSE)) ->  | K71: =IF(ISERROR(VLOOKUP(I71,#REF!,3,FALSE))," ",VLOOKUP(I71,#REF!,3,FALSE)) ->  | L71: 3-3-1-15-07-45-1441-000 | M71: 1010196548 | N71: LEIDY MAYDE FONSECA LINARES | O71: 40991940 | R71: 1 | S71: 2760400 | T71: 43752340 | U71: 39611740 | V71: 2019-02-11 | W71: 2019-02-12 | X71: 2019-12-27 | Y71: 297 | Z71: 20 | AD71: X | AF71: 0.905362776 | AG71: 43752340 | AH71: =IF(SUMPRODUCT((A$14:A71=A71)*(B$14:B71=B71)*(C$14:C71=C71))>1,0,1) -> 1 | AI71: Contratos de prestación de servicios profesionales y de apoyo a la gestión | AJ71: Contratación directa | AK71: =IFERROR(VLOOKUP(F71,Tipo!$C$12:$C$27,1,FALSE),"NO") -> Cuando no exista pluralidad de oferentes en el mercado | AL71: Inversión | AM71: NO
A72: 61 | B72: 2019 | C72: FDLAN-CD-060-2019 | D72: Contratos de prestación de servicios profesionales y de apoyo a la gestión | E72: Contratación directa | F72: Prestación de servicios profesionales y de apoyo a la gestión, o para la ejecución de trabajos artísticos que sólo puedan encomendarse a determinadas personas naturales; | G72: Prestacion de servicios profesionales para apoyar el Area de Gestion de Desarrollo Local en el diligenciamiento y actualilzacion de los DocumentosTecnicos de Soporte y Fichas de estadisticas Basicas de Inversion y elavoracion de los documentos sporte necesarios para ejecutar los proyectos de inversion del Fondo de Desarrollo Local Antonio Nariño | H72: Inversión | I72: 45 | J72: =IF(ISERROR(VLOOKUP(I72,#REF!,2,FALSE))," ",VLOOKUP(I72,#REF!,2,FALSE)) ->  | K72: =IF(ISERROR(VLOOKUP(I72,#REF!,3,FALSE))," ",VLOOKUP(I72,#REF!,3,FALSE)) ->  | L72: 3-3-1-15-07-45-1441-000 | M72: 80020254 | N72: JUAN GUILLERMO HENESSEY | O72: 40991940 | R72: 1 | S72: 2622380 | T72: 43614320 | U72: 39473720 | V72: 2019-02-11 | W72: 2019-02-13 | X72: 2019-12-30 | Y72: 297 | Z72: 19 | AD72: X | AF72: 0.9050632911 | AG72: 43614320 | AH72: =IF(SUMPRODUCT((A$14:A72=A72)*(B$14:B72=B72)*(C$14:C72=C72))>1,0,1) -> 1 | AI72: Contratos de prestación de servicios profesionales y de apoyo a la gestión | AJ72: Contratación directa | AK72: =IFERROR(VLOOKUP(F72,Tipo!$C$12:$C$27,1,FALSE),"NO") -> Prestación de servicios profesionales y de apoyo a la gestión, o para la ejecución de trabajos artísticos que sólo puedan encomendarse a determinadas personas naturales; | AL72: Inversión | AM72: NO
A73: 62 | B73: 2019 | C73: FDLAN-CD-054-2019 | D73: Contratos de prestación de servicios profesionales y de apoyo a la gestión | E73: Contratación directa | F73: Prestación de servicios profesionales y de apoyo a la gestión, o para la ejecución de trabajos artísticos que sólo puedan encomendarse a determinadas personas naturales; | G73: APOYAR AL ALCALDE EN LA PROMOCIÓN, ACOMPAÑAMIENTO,COORDINACIÓN Y ATENCIÓN EN LAS INSTANCIAS DE COORDINACIÓN INTERINSTITUCIONALES Y LAS INSTANCIAS D EPARTICIPACIÓN LOCALES, ASI CMO LOS PROCESOS COMUNITARIOS EN LA COMUNIDAD | H73: Inversión | I73: 45 | J73: =IF(ISERROR(VLOOKUP(I73,#REF!,2,FALSE))," ",VLOOKUP(I73,#REF!,2,FALSE)) ->  | K73: =IF(ISERROR(VLOOKUP(I73,#REF!,3,FALSE))," ",VLOOKUP(I73,#REF!,3,FALSE)) ->  | L73: 3-3-1-15-07-45-1442-000 | M73: 11449740 | N73: Yeisson Gerardo Sua Cajamarca Zapata | O73: 48127574 | T73: 48127574 | U73: 43572914 | V73: 2019-02-12 | W73: 2019-02-12 | X73: 2019-12-31 | Y73: 317 | AD73: X | AF73: 0.905362776 | AG73: 48127574 | AH73: =IF(SUMPRODUCT((A$14:A73=A73)*(B$14:B73=B73)*(C$14:C73=C73))>1,0,1) -> 1 | AI73: Contratos de prestación de servicios profesionales y de apoyo a la gestión | AJ73: Contratación directa | AK73: =IFERROR(VLOOKUP(F73,Tipo!$C$12:$C$27,1,FALSE),"NO") -> Prestación de servicios profesionales y de apoyo a la gestión, o para la ejecución de trabajos artísticos que sólo puedan encomendarse a determinadas personas naturales; | AL73: Inversión | AM73: NO
A74: 63 | B74: 2019 | C74: FDLAN-CD-064-2019 | D74: Contratos de prestación de servicios profesionales y de apoyo a la gestión | E74: Contratación directa | F74: Prestación de servicios profesionales y de apoyo a la gestión, o para la ejecución de trabajos artísticos que sólo puedan encomendarse a determinadas personas naturales; | G74: Prestación de servicios profesionales para apoyar la formulación, gestión y seguimiento de actividades enfocadas a la gestión ambiental externa, encaminadas a la mitigación de los diferentes impactos ambientales y la conservacion de los recursos naturales de la Localidad | H74: Inversión | I74: 45 | J74: =IF(ISERROR(VLOOKUP(I74,#REF!,2,FALSE))," ",VLOOKUP(I74,#REF!,2,FALSE)) ->  | K74: =IF(ISERROR(VLOOKUP(I74,#REF!,3,FALSE))," ",VLOOKUP(I74,#REF!,3,FALSE)) ->  | L74: 3-3-1-15-06-38-1440-000 | M74: 1057592073 | N74: Anny Johana Vega Carvajal | O74: 47368464 | T74: 47368464 | U74: 43421092 | V74: 2019-02-12 | W74: 2019-02-13 | X74: 2019-12-26 | Y74: 312 | AD74: X | AF74: 0.9166666667 | AG74: 47368464 | AH74: =IF(SUMPRODUCT((A$14:A74=A74)*(B$14:B74=B74)*(C$14:C74=C74))>1,0,1) -> 1 | AI74: Contratos de prestación de servicios profesionales y de apoyo a la gestión | AJ74: Contratación directa | AK74: =IFERROR(VLOOKUP(F74,Tipo!$C$12:$C$27,1,FALSE),"NO") -> Prestación de servicios profesionales y de apoyo a la gestión, o para la ejecución de trabajos artísticos que sólo puedan encomendarse a determinadas personas naturales; | AL74: Inversión | AM74: NO
A75: 64 | B75: 2019 | C75: FDLAN-CD-063-2019 | D75: Contratos de prestación de servicios profesionales y de apoyo a la gestión | E75: Contratación directa | F75: Prestación de servicios profesionales y de apoyo a la gestión, o para la ejecución de trabajos artísticos que sólo puedan encomendarse a determinadas personas naturales; | G75: Prestar servicios de apoyo que adelanta el área de gestión local de antonio nariño como son derechos de petición y apoyo d etrámites requeridos por las entidades distritales en los procesos de planeación | H75: Inversión | I75: 45 | J75: =IF(ISERROR(VLOOKUP(I75,#REF!,2,FALSE))," ",VLOOKUP(I75,#REF!,2,FALSE)) ->  | K75: =IF(ISERROR(VLOOKUP(I75,#REF!,3,FALSE))," ",VLOOKUP(I75,#REF!,3,FALSE)) ->  | L75: 3-3-1-15-07-45-1441-000 | M75: 1013636599 | N75: Mayra Jimena Wilches Gonzalez | O75: 23680800 | R75: 1 | S75: 789360 | T75: 24470160 | U75: 22102080 | V75: 2019-02-12 | W75: 2019-02-12 | X75: 2019-12-30 | Y75: 300 | Z75: 10 | AD75: X | AF75: 0.9032258065 | AG75: 24470160 | AH75: =IF(SUMPRODUCT((A$14:A75=A75)*(B$14:B75=B75)*(C$14:C75=C75))>1,0,1) -> 1 | AI75: Contratos de prestación de servicios profesionales y de apoyo a la gestión | AJ75: Contratación directa | AK75: =IFERROR(VLOOKUP(F75,Tipo!$C$12:$C$27,1,FALSE),"NO") -> Prestación de servicios profesionales y de apoyo a la gestión, o para la ejecución de trabajos artísticos que sólo puedan encomendarse a determinadas personas naturales; | AL75: Inversión | AM75: NO
A76: 65 | B76: 2019 | C76: FDLAN-CD-065-2019 | D76: Contratos de prestación de servicios profesionales y de apoyo a la gestión | E76: Contratación directa | F76: Prestación de servicios profesionales y de apoyo a la gestión, o para la ejecución de trabajos artísticos que sólo puedan encomendarse a determinadas personas naturales; | G76: Apoyar jurídicamente la ejecución de las acciones requeridas para la depuración de las actuaciones administrativas que cursan en la Alcaldía Local | H76: Inversión | I76: 45 | J76: =IF(ISERROR(VLOOKUP(I76,#REF!,2,FALSE))," ",VLOOKUP(I76,#REF!,2,FALSE)) ->  | K76: =IF(ISERROR(VLOOKUP(I76,#REF!,3,FALSE))," ",VLOOKUP(I76,#REF!,3,FALSE)) ->  | L76: 3-3-1-15-07-45-1441-000 | M76: 1013621385 | N76: Harol Stik Gomez Gomez | O76: 45091134 | R76: 1 | S76: 1518220 | T76: 46609354 | U76: 43572914 | V76: 2019-02-12 | W76: 2019-02-12 | X76: 2019-12-20 | Y76: 297 | Z76: 11 | AD76: X | AF76: 0.9348534202 | AG76: 46609354 | AH76: =IF(SUMPRODUCT((A$14:A76=A76)*(B$14:B76=B76)*(C$14:C76=C76))>1,0,1) -> 1 | AI76: Contratos de prestación de servicios profesionales y de apoyo a la gestión | AJ76: Contratación directa | AK76: =IFERROR(VLOOKUP(F76,Tipo!$C$12:$C$27,1,FALSE),"NO") -> Prestación de servicios profesionales y de apoyo a la gestión, o para la ejecución de trabajos artísticos que sólo puedan encomendarse a determinadas personas naturales; | AL76: Inversión | AM76: NO
A77: 66 | B77: 2019 | C77: FDLAN-CD-069-2019 | D77: Contratos de prestación de servicios profesionales y de apoyo a la gestión | E77: Contratación directa | F77: Prestación de servicios profesionales y de apoyo a la gestión, o para la ejecución de trabajos artísticos que sólo puedan encomendarse a determinadas personas naturales; | G77: Prestar servicios de apoyo al Alcalde Local en la implementación de estrategias que garanticen la promoción y protección del derecho a la participación democrática de los habitantes de la localidad Antonio Nariño | H77: Inversión | I77: 45 | J77: =IF(ISERROR(VLOOKUP(I77,#REF!,2,FALSE))," ",VLOOKUP(I77,#REF!,2,FALSE)) ->  | K77: =IF(ISERROR(VLOOKUP(I77,#REF!,3,FALSE))," ",VLOOKUP(I77,#REF!,3,FALSE)) ->  | L77: 3-3-1-15-07-45-1442-000 | M77: 1023880680 | N77: Anderson Javier Quintero Gaitán | O77: 42458980 | T77: 42458980 | U77: 38440780 | V77: 2019-02-12 | W77: 2019-02-12 | X77: 2019-12-31 | Y77: 317 | AD77: X | AF77: 0.905362776 | AG77: 42458980 | AH77: =IF(SUMPRODUCT((A$14:A77=A77)*(B$14:B77=B77)*(C$14:C77=C77))>1,0,1) -> 1 | AI77: Contratos de prestación de servicios profesionales y de apoyo a la gestión | AJ77: Contratación directa | AK77: =IFERROR(VLOOKUP(F77,Tipo!$C$12:$C$27,1,FALSE),"NO") -> Prestación de servicios profesionales y de apoyo a la gestión, o para la ejecución de trabajos artísticos que sólo puedan encomendarse a determinadas personas naturales; | AL77: Inversión | AM77: NO
A78: 67 | B78: 2019 | C78: FDLAN-CD-067-2019 | D78: Contratos de prestación de servicios profesionales y de apoyo a la gestión | E78: Contratación directa | F78: Prestación de servicios profesionales y de apoyo a la gestión, o para la ejecución de trabajos artísticos que sólo puedan encomendarse a determinadas personas naturales; | G78: Prestación de servicios profesionales para apyar el area d egestión de desarrollo local de el diligenciamiento de las actuaciones d elos documentos tecnicos de soporte y fichas de estadisticas basicas de inversió y elaboración de documentos soportes necesarios para ejecutar los proyectos d einversión del fondo de desarrollo local de antonio nariño, | H78: Inversión | I78: 45 | J78: =IF(ISERROR(VLOOKUP(I78,#REF!,2,FALSE))," ",VLOOKUP(I78,#REF!,2,FALSE)) ->  | K78: =IF(ISERROR(VLOOKUP(I78,#REF!,3,FALSE))," ",VLOOKUP(I78,#REF!,3,FALSE)) ->  | L78: 3-3-1-15-07-45-1441-000 | M78: 1031137640 | N78: Fabian Camilo Ruiz Bernal | O78: 40991940 | R78: 1 | S78: 2622380 | T78: 43614320 | U78: 39473220 | V78: 2019-02-12 | W78: 2019-02-13 | X78: 2019-12-30 | Y78: 297 | Z78: 19 | AD78: X | AF78: 0.905051827 | AG78: 43614320 | AH78: =IF(SUMPRODUCT((A$14:A78=A78)*(B$14:B78=B78)*(C$14:C78=C78))>1,0,1) -> 1 | AI78: Contratos de prestación de servicios profesionales y de apoyo a la gestión | AJ78: Contratación directa | AK78: =IFERROR(VLOOKUP(F78,Tipo!$C$12:$C$27,1,FALSE),"NO") -> Prestación de servicios profesionales y de apoyo a la gestión, o para la ejecución de trabajos artísticos que sólo puedan encomendarse a determinadas personas naturales; | AL78: Inversión | AM78: NO
A79: 68 | B79: 2019 | C79: FDLAN-CD-068-2019 | D79: Contratos de prestación de servicios profesionales y de apoyo a la gestión | E79: Contratación directa | F79: Prestación de servicios profesionales y de apoyo a la gestión, o para la ejecución de trabajos artísticos que sólo puedan encomendarse a determinadas personas naturales; | G79: Prestar los servicios técnicos para la operación, seguimiento y cumplimiento de los procesos y procedimientos del servicio social apoyo económico Tipo C, requeridos para el oportuno y adecuado registro, cruce y reporte de los datos del sistema de información y registro de beneficiarios-SIRBE, que contribuyan a la garantía de los derechos de la población mayor en el marco de la política pública social para envejecimiento y la vejez en el Distrito Capital a cargo de la Alcaldía Local | H79: Inversión | I79: 45 | J79: =IF(ISERROR(VLOOKUP(I79,#REF!,2,FALSE))," ",VLOOKUP(I79,#REF!,2,FALSE)) ->  | K79: =IF(ISERROR(VLOOKUP(I79,#REF!,3,FALSE))," ",VLOOKUP(I79,#REF!,3,FALSE)) ->  | L79: 3-3-1-15-01-03-1429-000 | M79: 423466 | N79: Susana Patricia Enriquez Ugalde | O79: 35001872 | R79: 1 | S79: 4085392 | T79: 39087264 | U79: 31689392 | V79: 2019-02-12 | W79: 2019-02-12 | X79: 2019-02-07 | Y79: 317 | Z79: 37 | AC79: X | AF79: 0.8107344633 | AG79: =T79 -> 39087264 | AH79: =IF(SUMPRODUCT((A$14:A79=A79)*(B$14:B79=B79)*(C$14:C79=C79))>1,0,1) -> 1 | AI79: Contratos de prestación de servicios profesionales y de apoyo a la gestión | AJ79: Contratación directa | AK79: =IFERROR(VLOOKUP(F79,Tipo!$C$12:$C$27,1,FALSE),"NO") -> Prestación de servicios profesionales y de apoyo a la gestión, o para la ejecución de trabajos artísticos que sólo puedan encomendarse a determinadas personas naturales; | AL79: Inversión | AM79: NO
A80: 69 | B80: 2019 | C80: FDLAN-CD-061-2019 | D80: Contratos de prestación de servicios profesionales y de apoyo a la gestión | E80: Contratación directa | F80: Prestación de servicios profesionales y de apoyo a la gestión, o para la ejecución de trabajos artísticos que sólo puedan encomendarse a determinadas personas naturales; | G80: APOYAR TÉCNICAMENTE LAS DISTINTAS ETAPAS DE LOS PROCESOS DE COMPETENCIA DE LAS INSPECCIONES DE POLICÍA DE LA LOCALIDAD, SEGÚN REPARTO | H80: Inversión | I80: 45 | J80: =IF(ISERROR(VLOOKUP(I80,#REF!,2,FALSE))," ",VLOOKUP(I80,#REF!,2,FALSE)) ->  | K80: =IF(ISERROR(VLOOKUP(I80,#REF!,3,FALSE))," ",VLOOKUP(I80,#REF!,3,FALSE)) ->  | L80: 3-3-1-15-07-45-1441-000 | M80: 26459517 | N80: Dollys Herrera | O80: 39580200 | R80: 1 | S80: 18790600 | T80: 58370800 | U80: 58370800 | V80: 2019-02-13 | W80: 2019-02-13 | X80: 2019-12-04 | Y80: 198 | Z80: 94 | AD80: X | AF80: =IF(ISERROR(U80/T80),"-",(U80/T80)) -> 1 | AG80: 58370800 | AH80: =IF(SUMPRODUCT((A$14:A80=A80)*(B$14:B80=B80)*(C$14:C80=C80))>1,0,1) -> 1 | AI80: Contratos de prestación de servicios profesionales y de apoyo a la gestión | AJ80: Contratación directa | AK80: =IFERROR(VLOOKUP(F80,Tipo!$C$12:$C$27,1,FALSE),"NO") -> Prestación de servicios profesionales y de apoyo a la gestión, o para la ejecución de trabajos artísticos que sólo puedan encomendarse a determinadas personas naturales; | AL80: Inversión | AM80: NO
A81: 70 | B81: 2019 | C81: FDLAN-CD-076-2019 | D81: Contratos de prestación de servicios profesionales y de apoyo a la gestión | E81: Contratación directa | F81: Prestación de servicios profesionales y de apoyo a la gestión, o para la ejecución de trabajos artísticos que sólo puedan encomendarse a determinadas personas naturales; | G81: Prestación de servicios de apoyo para el Fondo de Desarrollo Local de Antonio Nariño para fortalecer el montaje y el buen desarrollo de las actividades culturales y artísticas que brindan a la comunidad en el Teatro Villa Mayor | H81: Inversión | I81: 45 | J81: =IF(ISERROR(VLOOKUP(I81,#REF!,2,FALSE))," ",VLOOKUP(I81,#REF!,2,FALSE)) ->  | K81: =IF(ISERROR(VLOOKUP(I81,#REF!,3,FALSE))," ",VLOOKUP(I81,#REF!,3,FALSE)) ->  | L81: 3-3-1-15-01-11-1434-000 | M81: 80216988 | N81: Jhon Edwin Triana Rincon | O81: 31500000 | T81: 31500000 | U81: 28500000 | V81: 2019-02-13 | W81: 2019-02-14 | X81: 2019-12-31 | Y81: 315 | AD81: X | AF81: 0.9047619048 | AG81: 31500000 | AH81: =IF(SUMPRODUCT((A$14:A81=A81)*(B$14:B81=B81)*(C$14:C81=C81))>1,0,1) -> 1 | AI81: Contratos de prestación de servicios profesionales y de apoyo a la gestión | AJ81: Contratación directa | AK81: =IFERROR(VLOOKUP(F81,Tipo!$C$12:$C$27,1,FALSE),"NO") -> Prestación de servicios profesionales y de apoyo a la gestión, o para la ejecución de trabajos artísticos que sólo puedan encomendarse a determinadas personas naturales; | AL81: Inversión | AM81: NO
A82: 72 | B82: 2019 | C82: FDLAN-CD-071-2019 | D82: Contratos de prestación de servicios profesionales y de apoyo a la gestión | E82: Contratación directa | F82: Prestación de servicios profesionales y de apoyo a la gestión, o para la ejecución de trabajos artísticos que sólo puedan encomendarse a determinadas personas naturales; | G82: Prestación de servicios de apoyo al área de gestión de desarrollo local, como administrador del punto vive digital – pro de la localidad de Antonio Nariño PVD | H82: Inversión | I82: 45 | J82: =IF(ISERROR(VLOOKUP(I82,#REF!,2,FALSE))," ",VLOOKUP(I82,#REF!,2,FALSE)) ->  | K82: =IF(ISERROR(VLOOKUP(I82,#REF!,3,FALSE))," ",VLOOKUP(I82,#REF!,3,FALSE)) ->  | L82: 3-3-1-15-07-45-1441-000 | M82: 52361989 | N82: MARÍA ELENA LÓPEZ ALBA | O82: 25259700 | R82: 1 | S82: 841990 | T82: 26101690 | U82: 24080914 | V82: 2019-02-13 | W82: 2019-02-13 | X82: 2019-12-25 | Y82: 300 | AD82: X | AF82: 0.9225806452 | AG82: 26101690 | AH82: =IF(SUMPRODUCT((A$14:A82=A82)*(B$14:B82=B82)*(C$14:C82=C82))>1,0,1) -> 1 | AI82: Contratos de prestación de servicios profesionales y de apoyo a la gestión | AJ82: Contratación directa | AK82: =IFERROR(VLOOKUP(F82,Tipo!$C$12:$C$27,1,FALSE),"NO") -> Prestación de servicios profesionales y de apoyo a la gestión, o para la ejecución de trabajos artísticos que sólo puedan encomendarse a determinadas personas naturales; | AL82: Inversión | AM82: NO
A83: 73 | B83: 2019 | C83: FDLAN-CD-072-2019 | D83: Contratos de prestación de servicios profesionales y de apoyo a la gestión | E83: Contratación directa | F83: Prestación de servicios profesionales y de apoyo a la gestión, o para la ejecución de trabajos artísticos que sólo puedan encomendarse a determinadas personas naturales; | G83: Apoyar el alcalde local en la gestión de los asuntos relacionados con seguridad ciudadana, convivencia y prevención de conflictividades, violencias y delitos en la localidad, de conformidad con el marco normativo aplicable en la materia. | H83: Inversión | I83: 45 | J83: =IF(ISERROR(VLOOKUP(I83,#REF!,2,FALSE))," ",VLOOKUP(I83,#REF!,2,FALSE)) ->  | K83: =IF(ISERROR(VLOOKUP(I83,#REF!,3,FALSE))," ",VLOOKUP(I83,#REF!,3,FALSE)) ->  | L83: 3-3-1-15-03-19-1439-000 | M83: 79262417 | N83: JAVIER DE JESUS ZAMORA PINZON CEDIDO A JUAN DAVID CUERVO ZORRO | O83: 55277880 | T83: 55277880 | U83: 50029980 | V83: 2019-02-13 | W83: 2019-02-13 | X83: 2019-12-31 | Y83: 316 | AD83: X | AF83: 0.9050632911 | AG83: 55277880 | AH83: =IF(SUMPRODUCT((A$14:A83=A83)*(B$14:B83=B83)*(C$14:C83=C83))>1,0,1) -> 1 | AI83: Contratos de prestación de servicios profesionales y de apoyo a la gestión | AJ83: Contratación directa | AK83: =IFERROR(VLOOKUP(F83,Tipo!$C$12:$C$27,1,FALSE),"NO") -> Prestación de servicios profesionales y de apoyo a la gestión, o para la ejecución de trabajos artísticos que sólo puedan encomendarse a determinadas personas naturales; | AL83: Inversión | AM83: NO
A84: 74 | B84: 2019 | C84: FDLAN-CD-081-2019 | D84: Contratos de prestación de servicios profesionales y de apoyo a la gestión | E84: Contratación directa | F84: Prestación de servicios profesionales y de apoyo a la gestión, o para la ejecución de trabajos artísticos que sólo puedan encomendarse a determinadas personas naturales; | G84: Apoyar jurídicamente la ejecución de las acciones requeridas para el trámite e impulso procesal de las actuaciones contravencionales y/o querellas que cursen en las Inspecciones de Policía de la Localidad | H84: Inversión | I84: 45 | J84: =IF(ISERROR(VLOOKUP(I84,#REF!,2,FALSE))," ",VLOOKUP(I84,#REF!,2,FALSE)) ->  | K84: =IF(ISERROR(VLOOKUP(I84,#REF!,3,FALSE))," ",VLOOKUP(I84,#REF!,3,FALSE)) ->  | L84: 3-3-1-15-07-45-1441-000 | M84: 1018422855 | N84: MARÍA CAROLINA LÓPEZ | O84: 29908934 | R84: 2 | S84: 14878556 | T84: 44787490 | U84: 43269270 | V84: 2019-02-14 | W84: 2019-02-14 | X84: 2019-12-10 | Y84: 197 | Z84: 98 | AD84: X | AF84: 0.9661016949 | AG84: 44787490 | AH84: =IF(SUMPRODUCT((A$14:A84=A84)*(B$14:B84=B84)*(C$14:C84=C84))>1,0,1) -> 1 | AI84: Contratos de prestación de servicios profesionales y de apoyo a la gestión | AJ84: Contratación directa | AK84: =IFERROR(VLOOKUP(F84,Tipo!$C$12:$C$27,1,FALSE),"NO") -> Prestación de servicios profesionales y de apoyo a la gestión, o para la ejecución de trabajos artísticos que sólo puedan encomendarse a determinadas personas naturales; | AL84: Inversión | AM84: NO
A85: 75 | B85: 2019 | C85: FDLAN-CD-079-2019 | D85: Contratos de prestación de servicios profesionales y de apoyo a la gestión | E85: Contratación directa | F85: Prestación de servicios profesionales y de apoyo a la gestión, o para la ejecución de trabajos artísticos que sólo puedan encomendarse a determinadas personas naturales; | G85: Apoyar jurídicamente la ejecución de las acciones requeridas para el trámite e impulso procesal de las actuaciones contravencionales y/o querellas que cursen en las Inspecciones de Policía de la Localidad | H85: Inversión | I85: 45 | J85: =IF(ISERROR(VLOOKUP(I85,#REF!,2,FALSE))," ",VLOOKUP(I85,#REF!,2,FALSE)) ->  | K85: =IF(ISERROR(VLOOKUP(I85,#REF!,3,FALSE))," ",VLOOKUP(I85,#REF!,3,FALSE)) ->  | L85: 3-3-1-15-07-45-1441-000 | M85: 1031127320 | N85: YANIS LISSET VARGAS | O85: 29908934 | R85: 2 | S85: 14878556 | T85: 44787490 | U85: 43269270 | V85: 2019-02-14 | W85: 2019-02-14 | X85: 2019-12-10 | Y85: 197 | Z85: 98 | AD85: X | AF85: 0.9661016949 | AG85: 44787490 | AH85: =IF(SUMPRODUCT((A$14:A85=A85)*(B$14:B85=B85)*(C$14:C85=C85))>1,0,1) -> 1 | AI85: Contratos de prestación de servicios profesionales y de apoyo a la gestión | AJ85: Contratación directa | AK85: =IFERROR(VLOOKUP(F85,Tipo!$C$12:$C$27,1,FALSE),"NO") -> Prestación de servicios profesionales y de apoyo a la gestión, o para la ejecución de trabajos artísticos que sólo puedan encomendarse a determinadas personas naturales; | AL85: Inversión | AM85: NO
A86: 76 | B86: 2019 | C86: FDLAN-CD-062-2019 | D86: Contratos de prestación de servicios profesionales y de apoyo a la gestión | E86: Contratación directa | F86: Prestación de servicios profesionales y de apoyo a la gestión, o para la ejecución de trabajos artísticos que sólo puedan encomendarse a determinadas personas naturales; | G86: PRESTAR SERVICIOS PROFESIONALES COMO ABOGADO PARA APOYAR LOS PROCEDIMIENTOS SANCIONATORIOS Y TRÁMITES ADMINISTRATIVOS QUE ADELANTA EL EQUIPO DE INSPECCIÓN, VIGILANCIA Y CONTROL DEL ÁREA DE GESTIÓN POLICIVA Y JURÍDICA DEL FONDO DE DESARROLLO LOCAL ANTONIO NARIÑO, CON OCASIÓN A LA INFRACCIÓN Y APLICACIÓN DE NORMAS POLICIVAS APOYO AL ALCALDE EN ASUNTOS RELACIONADOS CON DESPACHO COMISORIO | H86: Inversión | I86: 45 | J86: =IF(ISERROR(VLOOKUP(I86,#REF!,2,FALSE))," ",VLOOKUP(I86,#REF!,2,FALSE)) ->  | K86: =IF(ISERROR(VLOOKUP(I86,#REF!,3,FALSE))," ",VLOOKUP(I86,#REF!,3,FALSE)) ->  | L86: 3-3-1-15-07-45-1441-000 | M86: 1018434257 | N86: María Camila Ortiz cedido a Silvia Constanza Tamayo Novoa | O86: 47923930 | T86: 47923930 | U86: 43269270 | V86: 2019-02-14 | W86: 2019-02-14 | X86: 2019-12-31 | Y86: 315 | AD86: X | AF86: 0.9028739922 | AG86: 47923930 | AH86: =IF(SUMPRODUCT((A$14:A86=A86)*(B$14:B86=B86)*(C$14:C86=C86))>1,0,1) -> 1 | AI86: Contratos de prestación de servicios profesionales y de apoyo a la gestión | AJ86: Contratación directa | AK86: =IFERROR(VLOOKUP(F86,Tipo!$C$12:$C$27,1,FALSE),"NO") -> Prestación de servicios profesionales y de apoyo a la gestión, o para la ejecución de trabajos artísticos que sólo puedan encomendarse a determinadas personas naturales; | AL86: Inversión | AM86: NO
A87: 77 | B87: 2019 | C87: FDLAN-CD-073-2019 | D87: Contratos de prestación de servicios profesionales y de apoyo a la gestión | E87: Contratación directa | F87: Prestación de servicios profesionales y de apoyo a la gestión, o para la ejecución de trabajos artísticos que sólo puedan encomendarse a determinadas personas naturales; | G87: Apoyar jurídicamente la ejecución de las acciones requeridas para la depuración de las actuaciones administrativas que cursan en la Alcaldía Local. | H87: Inversión | I87: 45 | J87: =IF(ISERROR(VLOOKUP(I87,#REF!,2,FALSE))," ",VLOOKUP(I87,#REF!,2,FALSE)) ->  | K87: =IF(ISERROR(VLOOKUP(I87,#REF!,3,FALSE))," ",VLOOKUP(I87,#REF!,3,FALSE)) ->  | L87: 3-3-1-15-07-45-1441-000 | M87: 1013609653 | N87: JULIO CESAR GONZALES GÓMEZ | O87: 45091134 | R87: 1 | S87: 1214576 | T87: 46305710 | U87: 43269270 | V87: 2019-02-14 | W87: 2019-02-14 | X87: 2019-12-20 | Y87: 297 | Z87: 8 | AD87: X | AF87: 0.9344262295 | AG87: 46305710 | AH87: =IF(SUMPRODUCT((A$14:A87=A87)*(B$14:B87=B87)*(C$14:C87=C87))>1,0,1) -> 1 | AI87: Contratos de prestación de servicios profesionales y de apoyo a la gestión | AJ87: Contratación directa | AK87: =IFERROR(VLOOKUP(F87,Tipo!$C$12:$C$27,1,FALSE),"NO") -> Prestación de servicios profesionales y de apoyo a la gestión, o para la ejecución de trabajos artísticos que sólo puedan encomendarse a determinadas personas naturales; | AL87: Inversión | AM87: NO
A88: 78 | B88: 2019 | C88: FDLAN-CD-074-2019 | D88: Contratos de prestación de servicios profesionales y de apoyo a la gestión | E88: Contratación directa | F88: Prestación de servicios profesionales y de apoyo a la gestión, o para la ejecución de trabajos artísticos que sólo puedan encomendarse a determinadas personas naturales; | G88: Prestar los servicios profesionales como abogado para apoyar los procedimientos sancionatorios y trámites administrativos relacionados con los procesos de pesas y medidas que adelanta el área de gestión policiva y jurídica de la Alcaldía Local Antonio Nariño. | H88: Inversión | I88: 45 | J88: =IF(ISERROR(VLOOKUP(I88,#REF!,2,FALSE))," ",VLOOKUP(I88,#REF!,2,FALSE)) ->  | K88: =IF(ISERROR(VLOOKUP(I88,#REF!,3,FALSE))," ",VLOOKUP(I88,#REF!,3,FALSE)) ->  | L88: 3-3-1-15-07-45-1441-000 | M88: 1032466339 | N88: ANDRES JULIAN CABEZAS CORREDOR CEDIDO A LEONARDO FONTECHA | O88: 40991940 | T88: 40991940 | U88: 37044568 | V88: 2019-02-14 | W88: 2019-02-14 | X88: 2019-12-12 | Y88: 297 | AD88: X | AF88: 0.9037037037 | AG88: 40991940 | AH88: =IF(SUMPRODUCT((A$14:A88=A88)*(B$14:B88=B88)*(C$14:C88=C88))>1,0,1) -> 1 | AI88: Contratos de prestación de servicios profesionales y de apoyo a la gestión | AJ88: Contratación directa | AK88: =IFERROR(VLOOKUP(F88,Tipo!$C$12:$C$27,1,FALSE),"NO") -> Prestación de servicios profesionales y de apoyo a la gestión, o para la ejecución de trabajos artísticos que sólo puedan encomendarse a determinadas personas naturales; | AL88: Inversión | AM88: NO
A89: 79 | B89: 2019 | C89: FDLAN-CD-075-2019 | D89: Contratos de prestación de servicios profesionales y de apoyo a la gestión | E89: Contratación directa | F89: Prestación de servicios profesionales y de apoyo a la gestión, o para la ejecución de trabajos artísticos que sólo puedan encomendarse a determinadas personas naturales; | G89: Prestación de servicios de apoyo en el Área de Gestión de Desarrollo Local de Antonio Nariño para las actividades relacionadas con el cumplimiento de los Procesos de Gestión Documental y demás funciones de apoyo que le sean requeridas | H89: Inversión | I89: 45 | J89: =IF(ISERROR(VLOOKUP(I89,#REF!,2,FALSE))," ",VLOOKUP(I89,#REF!,2,FALSE)) ->  | K89: =IF(ISERROR(VLOOKUP(I89,#REF!,3,FALSE))," ",VLOOKUP(I89,#REF!,3,FALSE)) ->  | L89: 3-3-1-15-07-45-1441-000 | M89: 51554642 | N89: Elsa Nuñez Mora | O89: 29188283 | T89: 29188283 | U89: 26278840 | V89: 2019-02-19 | W89: 2019-02-19 | X89: 2019-12-31 | Y89: 311 | AD89: X | AF89: 0.9003215434 | AG89: 29188283 | AH89: =IF(SUMPRODUCT((A$14:A89=A89)*(B$14:B89=B89)*(C$14:C89=C89))>1,0,1) -> 1 | AI89: Contratos de prestación de servicios profesionales y de apoyo a la gestión | AJ89: Contratación directa | AK89: =IFERROR(VLOOKUP(F89,Tipo!$C$12:$C$27,1,FALSE),"NO") -> Prestación de servicios profesionales y de apoyo a la gestión, o para la ejecución de trabajos artísticos que sólo puedan encomendarse a determinadas personas naturales; | AL89: Inversión | AM89: NO
A90: 80 | B90: 2019 | C90: FDLAN-CD-078-2019 | D90: Contratos de prestación de servicios profesionales y de apoyo a la gestión | E90: Contratación directa | F90: Prestación de servicios profesionales y de apoyo a la gestión, o para la ejecución de trabajos artísticos que sólo puedan encomendarse a determinadas personas naturales; | G90: APOYAR TÉCNICAMENTE LAS DISTINTAS ETAPAS DE LOS PROCESOS DE COMPETENCIA DE LAS INSPECCIONES DE POLICÍA DE LA LOCALIDAD, SEGÚN REPARTO | H90: Inversión | I90: 45 | J90: =IF(ISERROR(VLOOKUP(I90,#REF!,2,FALSE))," ",VLOOKUP(I90,#REF!,2,FALSE)) ->  | K90: =IF(ISERROR(VLOOKUP(I90,#REF!,3,FALSE))," ",VLOOKUP(I90,#REF!,3,FALSE)) ->  | L90: 3-3-1-15-07-45-1441-000 | M90: 79642668 | N90: Freddy Alejandro Cuintaco Prieto | O90: 39580200 | R90: 1 | S90: 18390800 | T90: 57971000 | U90: 56771600 | V90: 2019-02-15 | W90: 2019-02-15 | X90: 2019-12-06 | Y90: 198 | Z90: 92 | AD90: X | AF90: 0.9793103448 | AG90: 57971000 | AH90: =IF(SUMPRODUCT((A$14:A90=A90)*(B$14:B90=B90)*(C$14:C90=C90))>1,0,1) -> 1 | AI90: Contratos de prestación de servicios profesionales y de apoyo a la gestión | AJ90: Contratación directa | AK90: =IFERROR(VLOOKUP(F90,Tipo!$C$12:$C$27,1,FALSE),"NO") -> Prestación de servicios profesionales y de apoyo a la gestión, o para la ejecución de trabajos artísticos que sólo puedan encomendarse a determinadas personas naturales; | AL90: Inversión | AM90: NO
A91: 81 | B91: 2019 | C91: FDLAN-CD-082-2019 | D91: Contratos de prestación de servicios profesionales y de apoyo a la gestión | E91: Contratación directa | F91: Prestación de servicios profesionales y de apoyo a la gestión, o para la ejecución de trabajos artísticos que sólo puedan encomendarse a determinadas personas naturales; | G91: PRESTACIÓN DE SERVICIOS DE APOYO COMO CONDUCTOR DE UN VEHICULO DE PROPIEDAD DEL FONDO DE DESARROLLO LOCAL ASIGNADO A LAS INSPECCIONES DE POLICIA E INSPECCION, VIGILANCIA Y CONTROL | H91: Inversión | I91: 45 | J91: =IF(ISERROR(VLOOKUP(I91,#REF!,2,FALSE))," ",VLOOKUP(I91,#REF!,2,FALSE)) ->  | K91: =IF(ISERROR(VLOOKUP(I91,#REF!,3,FALSE))," ",VLOOKUP(I91,#REF!,3,FALSE)) ->  | L91: 3-3-1-15-07-45-1441-000 | M91: 1018426824 | N91: JUAN CAMILO VARGAS PINZÓN | O91: 24549096 | T91: 24549096 | U91: 22102080 | V91: 2019-02-19 | W91: 2019-02-19 | X91: 2019-12-31 | Y91: 311 | AD91: X | AF91: 0.9003215434 | AG91: 24549096 | AH91: =IF(SUMPRODUCT((A$14:A91=A91)*(B$14:B91=B91)*(C$14:C91=C91))>1,0,1) -> 1 | AI91: Contratos de prestación de servicios profesionales y de apoyo a la gestión | AJ91: Contratación directa | AK91: =IFERROR(VLOOKUP(F91,Tipo!$C$12:$C$27,1,FALSE),"NO") -> Prestación de servicios profesionales y de apoyo a la gestión, o para la ejecución de trabajos artísticos que sólo puedan encomendarse a determinadas personas naturales; | AL91: Inversión | AM91: NO
A92: 82 | B92: 2019 | C92: FDLAN-CD-070-2019 | D92: Contratos de prestación de servicios profesionales y de apoyo a la gestión | E92: Contratación directa | F92: Prestación de servicios profesionales y de apoyo a la gestión, o para la ejecución de trabajos artísticos que sólo puedan encomendarse a determinadas personas naturales; | G92: Apoyar al equipo de prensa y comunicaciones de la alcaldía local mediante el registro, la edición y la presentación de fotografías de los acontecimientos, hechos y eventos de la alcaldía local en los medios de comunicación, especialmente escritos, digitales y audiovisuales. | H92: Inversión | I92: 45 | J92: =IF(ISERROR(VLOOKUP(I92,#REF!,2,FALSE))," ",VLOOKUP(I92,#REF!,2,FALSE)) ->  | K92: =IF(ISERROR(VLOOKUP(I92,#REF!,3,FALSE))," ",VLOOKUP(I92,#REF!,3,FALSE)) ->  | L92: 3-3-1-15-07-45-1441-000 | M92: 1013607420 | N92: Jessica Andrea Pérez Casallas | O92: 40991940 | R92: 1 | S92: 5465592 | T92: 46457532 | U92: 43117448 | V92: 2019-02-15 | W92: 2019-02-15 | X92: 2019-12-27 | Y92: 270 | Z92: 36 | AD92: X | AF92: 0.9281045752 | AG92: 46457532 | AH92: =IF(SUMPRODUCT((A$14:A92=A92)*(B$14:B92=B92)*(C$14:C92=C92))>1,0,1) -> 1 | AI92: Contratos de prestación de servicios profesionales y de apoyo a la gestión | AJ92: Contratación directa | AK92: =IFERROR(VLOOKUP(F92,Tipo!$C$12:$C$27,1,FALSE),"NO") -> Prestación de servicios profesionales y de apoyo a la gestión, o para la ejecución de trabajos artísticos que sólo puedan encomendarse a determinadas personas naturales; | AL92: Inversión | AM92: NO
A93: 83 | B93: 2019 | C93: FDLAN-CD-085-2019 | D93: Contratos de prestación de servicios profesionales y de apoyo a la gestión | E93: Contratación directa | F93: Prestación de servicios profesionales y de apoyo a la gestión, o para la ejecución de trabajos artísticos que sólo puedan encomendarse a determinadas personas naturales; | G93: Prestación de servicios de apoyo como auxiliar jurídico para fortalecer las actuaciones y los diferentes trámites administrativos y procesos contractuales que adelanta el Área de Gestión de Desarrollo | H93: Inversión | I93: 45 | J93: =IF(ISERROR(VLOOKUP(I93,#REF!,2,FALSE))," ",VLOOKUP(I93,#REF!,2,FALSE)) ->  | K93: =IF(ISERROR(VLOOKUP(I93,#REF!,3,FALSE))," ",VLOOKUP(I93,#REF!,3,FALSE)) ->  | L93: 3-3-1-15-07-45-1441-000 | M93: 1124011373 | N93: Eblin Estefanny Navarro Martínez | O93: 33002952 | R93: 1 | S93: 9332802 | T93: 42335754 | U93: 37736982 | V93: 2019-02-18 | W93: 2019-02-18 | X93: 2019-12-30 | Y93: 244 | Z93: 69 | AD93: X | AF93: 0.8913738019 | AG93: 42335754 | AH93: =IF(SUMPRODUCT((A$14:A93=A93)*(B$14:B93=B93)*(C$14:C93=C93))>1,0,1) -> 1 | AI93: Contratos de prestación de servicios profesionales y de apoyo a la gestión | AJ93: Contratación directa | AK93: =IFERROR(VLOOKUP(F93,Tipo!$C$12:$C$27,1,FALSE),"NO") -> Prestación de servicios profesionales y de apoyo a la gestión, o para la ejecución de trabajos artísticos que sólo puedan encomendarse a determinadas personas naturales; | AL93: Inversión | AM93: NO
A94: 84 | B94: 2019 | C94: FDLAN-CD-080-2019 | D94: Contratos de prestación de servicios profesionales y de apoyo a la gestión | E94: Contratación directa | F94: Prestación de servicios profesionales y de apoyo a la gestión, o para la ejecución de trabajos artísticos que sólo puedan encomendarse a determinadas personas naturales; | G94: APOYAR A LAS LABORES DE ENTREGA Y RECIBO DE LAS COMUNICACIONES EMITIDAS O RECIBIDAS POR LAS INSPECCIONES DE POLICÍA DE LA LOCALIDAD | H94: Inversión | I94: 45 | J94: =IF(ISERROR(VLOOKUP(I94,#REF!,2,FALSE))," ",VLOOKUP(I94,#REF!,2,FALSE)) ->  | K94: =IF(ISERROR(VLOOKUP(I94,#REF!,3,FALSE))," ",VLOOKUP(I94,#REF!,3,FALSE)) ->  | L94: 3-3-1-15-07-45-1441-000 | M94: 1012362458 | N94: José Luis Rodriguez Ruiz cedido a Carlos Andrés Amezquita | O94: 15392520 | R94: 1 | S94: 7656792 | T94: 23049312 | U94: 22102080 | V94: 2019-02-18 | W94: 2019-02-18 | X94: 2019-12-09 | Y94: 195 | Z94: 97 | AD94: X | AF94: 0.9589041096 | AG94: 23049312 | AH94: =IF(SUMPRODUCT((A$14:A94=A94)*(B$14:B94=B94)*(C$14:C94=C94))>1,0,1) -> 1 | AI94: Contratos de prestación de servicios profesionales y de apoyo a la gestión | AJ94: Contratación directa | AK94: =IFERROR(VLOOKUP(F94,Tipo!$C$12:$C$27,1,FALSE),"NO") -> Prestación de servicios profesionales y de apoyo a la gestión, o para la ejecución de trabajos artísticos que sólo puedan encomendarse a determinadas personas naturales; | AL94: Inversión | AM94: NO
A95: 85 | B95: 2019 | C95: FDLAN-CD-083-2019 | D95: Contratos de prestación de servicios profesionales y de apoyo a la gestión | E95: Contratación directa | F95: Prestación de servicios profesionales y de apoyo a la gestión, o para la ejecución de trabajos artísticos que sólo puedan encomendarse a determinadas personas naturales; | G95: Apoyar la formulación, ejecución, seguimiento y mejora continua de las herramientas que conforman la gestión ambiental institucional de la Alcaldía Local. | H95: Inversión | I95: 45 | J95: =IF(ISERROR(VLOOKUP(I95,#REF!,2,FALSE))," ",VLOOKUP(I95,#REF!,2,FALSE)) ->  | K95: =IF(ISERROR(VLOOKUP(I95,#REF!,3,FALSE))," ",VLOOKUP(I95,#REF!,3,FALSE)) ->  | L95: 3-3-1-15-07-45-1441-000 | M95: 1014245019 | N95: Vony Lizeth Orozco | O95: 47672108 | T95: 47672108 | U95: 42661982 | V95: 2019-02-18 | W95: 2019-02-18 | X95: 2019-12-31 | Y95: 311 | AD95: X | AF95: 0.8949044586 | AG95: 47672108 | AH95: =IF(SUMPRODUCT((A$14:A95=A95)*(B$14:B95=B95)*(C$14:C95=C95))>1,0,1) -> 1 | AI95: Contratos de prestación de servicios profesionales y de apoyo a la gestión | AJ95: Contratación directa | AK95: =IFERROR(VLOOKUP(F95,Tipo!$C$12:$C$27,1,FALSE),"NO") -> Prestación de servicios profesionales y de apoyo a la gestión, o para la ejecución de trabajos artísticos que sólo puedan encomendarse a determinadas personas naturales; | AL95: Inversión | AM95: NO
A96: 86 | B96: 2019 | C96: FDLAN-CD-084-2019 | D96: Contratos de prestación de servicios profesionales y de apoyo a la gestión | E96: Contratación directa | F96: Prestación de servicios profesionales y de apoyo a la gestión, o para la ejecución de trabajos artísticos que sólo puedan encomendarse a determinadas personas naturales; | G96: APOYAR ADMINISTRATIVA Y ASISTENCIALMENTE A LAS INSPECCIONES DE POLICIA DE LA LOCALIDAD | H96: Inversión | I96: 45 | J96: =IF(ISERROR(VLOOKUP(I96,#REF!,2,FALSE))," ",VLOOKUP(I96,#REF!,2,FALSE)) ->  | K96: =IF(ISERROR(VLOOKUP(I96,#REF!,3,FALSE))," ",VLOOKUP(I96,#REF!,3,FALSE)) ->  | L96: 3-3-1-15-07-45-1441-000 | M96: 1013602347 | N96: German Martínez Mora | O96: 15392520 | R96: 2 | S96: 7656792 | T96: 23049312 | U96: 22135272 | V96: 2019-02-22 | W96: 2019-02-22 | X96: 2019-12-14 | Y96: 195 | Z96: 97 | AD96: X | AF96: 0.9603441526 | AG96: 23049312 | AH96: =IF(SUMPRODUCT((A$14:A96=A96)*(B$14:B96=B96)*(C$14:C96=C96))>1,0,1) -> 1 | AI96: Contratos de prestación de servicios profesionales y de apoyo a la gestión | AJ96: Contratación directa | AK96: =IFERROR(VLOOKUP(F96,Tipo!$C$12:$C$27,1,FALSE),"NO") -> Prestación de servicios profesionales y de apoyo a la gestión, o para la ejecución de trabajos artísticos que sólo puedan encomendarse a determinadas personas naturales; | AL96: Inversión | AM96: NO
A97: 87 | B97: 2019 | C97: FDLAN-CD-077-2019 | D97: Contratos de prestación de servicios profesionales y de apoyo a la gestión | E97: Contratación directa | F97: Prestación de servicios profesionales y de apoyo a la gestión, o para la ejecución de trabajos artísticos que sólo puedan encomendarse a determinadas personas naturales; | G97: APOYAR TÉCNICAMENTE LAS DISTINTAS ETAPAS DE LOS PROCESOS DE COMPETENCIA DE LAS INSPECCIONES DE POLICÍA DE LA LOCALIDAD, SEGÚN REPARTO | H97: Inversión | I97: 45 | J97: =IF(ISERROR(VLOOKUP(I97,#REF!,2,FALSE))," ",VLOOKUP(I97,#REF!,2,FALSE)) ->  | K97: =IF(ISERROR(VLOOKUP(I97,#REF!,3,FALSE))," ",VLOOKUP(I97,#REF!,3,FALSE)) ->  | L97: 3-3-1-15-07-45-1441-000 | M97: 19272504 | N97: Cesar Augusto Lara | O97: 39580200 | R97: 2 | S97: 19790000 | T97: 59370200 | U97: 55972000 | V97: 2019-02-19 | W97: 2019-02-19 | X97: 2019-12-15 | Y97: 198 | Z97: 99 | AD97: X | AF97: 0.9427625307 | AG97: 59370200 | AH97: =IF(SUMPRODUCT((A$14:A97=A97)*(B$14:B97=B97)*(C$14:C97=C97))>1,0,1) -> 1 | AI97: Contratos de prestación de servicios profesionales y de apoyo a la gestión | AJ97: Contratación directa | AK97: =IFERROR(VLOOKUP(F97,Tipo!$C$12:$C$27,1,FALSE),"NO") -> Prestación de servicios profesionales y de apoyo a la gestión, o para la ejecución de trabajos artísticos que sólo puedan encomendarse a determinadas personas naturales; | AL97: Inversión | AM97: NO
A98: 88 | B98: 2019 | C98: FDLAN-CD-089- 2019 | D98: Contratos de prestación de servicios profesionales y de apoyo a la gestión | E98: Contratación directa | F98: Prestación de servicios profesionales y de apoyo a la gestión, o para la ejecución de trabajos artísticos que sólo puedan encomendarse a determinadas personas naturales; | G98: Prestar servicios de apoyo a las labores de carácter operacional y/o administrativas encomendadas al Referente de Participación del Fondo de Desarrollo Local Antonio Nariño | H98: Inversión | I98: 45 | J98: =IF(ISERROR(VLOOKUP(I98,#REF!,2,FALSE))," ",VLOOKUP(I98,#REF!,2,FALSE)) ->  | K98: =IF(ISERROR(VLOOKUP(I98,#REF!,3,FALSE))," ",VLOOKUP(I98,#REF!,3,FALSE)) ->  | L98: 3-3-1-15-07-45-1442-000 | M98: 41954482 | N98: Gisella isaza | O98: 24470160 | T98: 24470160 | U98: 22023144 | V98: 2019-02-20 | W98: 2019-02-20 | X98: 2019-12-30 | Y98: 310 | AD98: X | AF98: 0.9 | AG98: 24470160 | AH98: =IF(SUMPRODUCT((A$14:A98=A98)*(B$14:B98=B98)*(C$14:C98=C98))>1,0,1) -> 1 | AI98: Contratos de prestación de servicios profesionales y de apoyo a la gestión | AJ98: Contratación directa | AK98: =IFERROR(VLOOKUP(F98,Tipo!$C$12:$C$27,1,FALSE),"NO") -> Prestación de servicios profesionales y de apoyo a la gestión, o para la ejecución de trabajos artísticos que sólo puedan encomendarse a determinadas personas naturales; | AL98: Inversión | AM98: NO
A99: 89 | B99: 2019 | C99: FDLAN-CD-087- 2019 | D99: Contratos de prestación de servicios profesionales y de apoyo a la gestión | E99: Contratación directa | F99: Prestación de servicios profesionales y de apoyo a la gestión, o para la ejecución de trabajos artísticos que sólo puedan encomendarse a determinadas personas naturales; | G99: APOYAR ADMINISTRATIVA Y ASISTENCIALMENTE A LAS INSPECCIONES DE POLICIA DE LA LOCALIDAD | H99: Inversión | I99: 45 | J99: =IF(ISERROR(VLOOKUP(I99,#REF!,2,FALSE))," ",VLOOKUP(I99,#REF!,2,FALSE)) ->  | K99: =IF(ISERROR(VLOOKUP(I99,#REF!,3,FALSE))," ",VLOOKUP(I99,#REF!,3,FALSE)) ->  | L99: 3-3-1-15-07-45-1441-000 | M99: 1130616137 | N99: Sandra Ruano Conto | O99: 13120000 | R99: 1 | S99: 6560000 | T99: 19680000 | U99: 5116800 | V99: 2019-02-21 | W99: 2019-02-21 | X99: 2019-12-20 | Y99: 200 | Z99: 100 | AD99: X | AF99: 0.26 | AG99: 19680000 | AH99: =IF(SUMPRODUCT((A$14:A99=A99)*(B$14:B99=B99)*(C$14:C99=C99))>1,0,1) -> 1 | AI99: Contratos de prestación de servicios profesionales y de apoyo a la gestión | AJ99: Contratación directa | AK99: =IFERROR(VLOOKUP(F99,Tipo!$C$12:$C$27,1,FALSE),"NO") -> Prestación de servicios profesionales y de apoyo a la gestión, o para la ejecución de trabajos artísticos que sólo puedan encomendarse a determinadas personas naturales; | AL99: Inversión | AM99: NO
A100: 90 | B100: 2019 | C100: FDLAN-CD-086- 2019 | D100: Contratos de prestación de servicios profesionales y de apoyo a la gestión | E100: Contratación directa | F100: Prestación de servicios profesionales y de apoyo a la gestión, o para la ejecución de trabajos artísticos que sólo puedan encomendarse a determinadas personas naturales; | G100: Prestación de servicios de apoyo a las actividades adminstrativas en cuanto a notificación de la correspndencia genrada por el area de gestión de desarrollo local antnio nariño | H100: Inversión | I100: 45 | J100: =IF(ISERROR(VLOOKUP(I100,#REF!,2,FALSE))," ",VLOOKUP(I100,#REF!,2,FALSE)) ->  | K100: =IF(ISERROR(VLOOKUP(I100,#REF!,3,FALSE))," ",VLOOKUP(I100,#REF!,3,FALSE)) ->  | L100: 3-3-1-15-07-45-1441-000 | M100: 1023888181 | N100: Jeisson Daniel Vallejo Rozo | O100: 24312288 | T100: 24312288 | U100: 21944208 | V100: 2019-02-21 | W100: 2019-02-21 | X100: 2019-12-31 | Y100: 308 | AD100: X | AF100: 0.9025974026 | AG100: 24312288 | AH100: =IF(SUMPRODUCT((A$14:A100=A100)*(B$14:B100=B100)*(C$14:C100=C100))>1,0,1) -> 1 | AI100: Contratos de prestación de servicios profesionales y de apoyo a la gestión | AJ100: Contratación directa | AK100: =IFERROR(VLOOKUP(F100,Tipo!$C$12:$C$27,1,FALSE),"NO") -> Prestación de servicios profesionales y de apoyo a la gestión, o para la ejecución de trabajos artísticos que sólo puedan encomendarse a determinadas personas naturales; | AL100: Inversión | AM100: NO
A101: 91 | B101: 2019 | C101: FDLAN-CD-088-2019 | D101: Contratos de prestación de servicios profesionales y de apoyo a la gestión | E101: Contratación directa | F101: Prestación de servicios profesionales y de apoyo a la gestión, o para la ejecución de trabajos artísticos que sólo puedan encomendarse a determinadas personas naturales; | G101: APOYAR ADMINISTRATIVA Y ASISTENCIALMENTE A LAS INSPECCIONES DE POLICIA DE LA LOCALIDAD | H101: Inversión | I101: 45 | J101: =IF(ISERROR(VLOOKUP(I101,#REF!,2,FALSE))," ",VLOOKUP(I101,#REF!,2,FALSE)) ->  | K101: =IF(ISERROR(VLOOKUP(I101,#REF!,3,FALSE))," ",VLOOKUP(I101,#REF!,3,FALSE)) ->  | L101: 3-3-1-15-07-45-1441-000 | M101: 30373378 | N101: Maria Cristina Cardenas Castañeda | O101: 13120000 | R101: 2 | S101: 6560000 | T101: 19680000 | U101: 18236800 | V101: 2019-02-21 | W101: 2019-02-21 | X101: 2019-12-21 | Y101: 200 | Z101: 90 | AD101: X | AF101: 0.9266666667 | AG101: 19680000 | AH101: =IF(SUMPRODUCT((A$14:A101=A101)*(B$14:B101=B101)*(C$14:C101=C101))>1,0,1) -> 1 | AI101: Contratos de prestación de servicios profesionales y de apoyo a la gestión | AJ101: Contratación directa | AK101: =IFERROR(VLOOKUP(F101,Tipo!$C$12:$C$27,1,FALSE),"NO") -> Prestación de servicios profesionales y de apoyo a la gestión, o para la ejecución de trabajos artísticos que sólo puedan encomendarse a determinadas personas naturales; | AL101: Inversión | AM101: NO
A102: 92 | B102: 2019 | C102: FDLAN-CD-090-2019 | D102: Contratos de prestación de servicios profesionales y de apoyo a la gestión | E102: Contratación directa | F102: Prestación de servicios profesionales y de apoyo a la gestión, o para la ejecución de trabajos artísticos que sólo puedan encomendarse a determinadas personas naturales; | G102: PRESTAR LOS SERVICIOS PRESTAR LOS SERVICIOS PROFESIONALES COMO ABOGADO DEL ÁREA DE GESTIÓN DE DESARROLLO LOCAL DEL FDLAN, EN EL TRÁMITE DE PROCESOS DE SELECCIÓN DE CONTRATISTAS Y EL PROCESO DE LIQUIDACIÓN | H102: Inversión | I102: 45 | J102: =IF(ISERROR(VLOOKUP(I102,#REF!,2,FALSE))," ",VLOOKUP(I102,#REF!,2,FALSE)) ->  | K102: =IF(ISERROR(VLOOKUP(I102,#REF!,3,FALSE))," ",VLOOKUP(I102,#REF!,3,FALSE)) ->  | L102: 3-3-1-15-07-45-1441-000 | M102: 1118541857 | N102: ZAIDA VIANNEY RODRIGUEZ RODRIGUEZ | O102: 61369300 | T102: 61369300 | U102: 53373300 | V102: 2019-02-25 | W102: 2019-02-25 | X102: 2019-12-31 | Y102: 304 | AD102: X | AF102: 0.8697068404 | AG102: 61369300 | AH102: =IF(SUMPRODUCT((A$14:A102=A102)*(B$14:B102=B102)*(C$14:C102=C102))>1,0,1) -> 1 | AI102: Contratos de prestación de servicios profesionales y de apoyo a la gestión | AJ102: Contratación directa | AK102: =IFERROR(VLOOKUP(F102,Tipo!$C$12:$C$27,1,FALSE),"NO") -> Prestación de servicios profesionales y de apoyo a la gestión, o para la ejecución de trabajos artísticos que sólo puedan encomendarse a determinadas personas naturales; | AL102: Inversión | AM102: NO
A103: 93 | B103: 2019 | C103: FDLAN-CD-066-2019 | D103: Contratos de prestación de servicios profesionales y de apoyo a la gestión | E103: Contratación directa | F103: Prestación de servicios profesionales y de apoyo a la gestión, o para la ejecución de trabajos artísticos que sólo puedan encomendarse a determinadas personas naturales; | G103: Prestación de servicios profesonales de apoyo al referente de seguridad en la gestión de los asuntos relacionados con seguridad ciudadana cnvivencia y prevención de las conflictividades, violencias y delitos de la Localidad Atonio Nariño de conformidad con el marco normativo aplicable en la materia | H103: Inversión | I103: 45 | J103: =IF(ISERROR(VLOOKUP(I103,#REF!,2,FALSE))," ",VLOOKUP(I103,#REF!,2,FALSE)) ->  | K103: =IF(ISERROR(VLOOKUP(I103,#REF!,3,FALSE))," ",VLOOKUP(I103,#REF!,3,FALSE)) ->  | L103: 3-3-1-15-03-19-1439-000 | M103: 1014206552 | N103: Andrés Mauricio Triana Calderón | O103: 42372140 | T103: 42372140 | U103: 37817480 | V103: 2019-02-25 | W103: 2019-02-25 | X103: 2019-12-31 | Y103: 304 | AD103: X | AF103: 0.8925081433 | AG103: 42372140 | AH103: =IF(SUMPRODUCT((A$14:A103=A103)*(B$14:B103=B103)*(C$14:C103=C103))>1,0,1) -> 1 | AI103: Contratos de prestación de servicios profesionales y de apoyo a la gestión | AJ103: Contratación directa | AK103: =IFERROR(VLOOKUP(F103,Tipo!$C$12:$C$27,1,FALSE),"NO") -> Prestación de servicios profesionales y de apoyo a la gestión, o para la ejecución de trabajos artísticos que sólo puedan encomendarse a determinadas personas naturales; | AL103: Inversión | AM103: NO
A104: 94 | B104: 2019 | C104: FDLAN-SAMC-001-2019 | D104: Contratos de prestación de servicios profesionales y de apoyo a la gestión | E104: Selección abreviada | F104: Prestación de servicios profesionales y de apoyo a la gestión, o para la ejecución de trabajos artísticos que sólo puedan encomendarse a determinadas personas naturales; | G104: CONTRATAR LOS SEGUROS QUE AMPAREN LOS INTERESES PATRIMONIALES ACTUALES Y FUTUROS, ASÍ COMO LOS BIENES DE PROPIEDAD DEL FONDO DE DESARROLLO LOCAL DE ANTONIO NARIÑO, QUE ESTÉN BAJO SU RESPONSABILIDAD Y CUSTODIA Y AQUELLOS QUE SEAN ADQUIRIDOS PARA DESARROLLAR LAS FUNCIONES INHERENTES A SU ACTIVIDAD, ASÍ COMO LA EXPEDICIÓN DE UNA PÓLIZA COLECTIVA DE SEGURO DE VIDA Y CUALQUIER OTRA PÓLIZA DE... | H104: Funcionamiento | I104: No aplica | J104: =IF(ISERROR(VLOOKUP(I104,#REF!,2,FALSE))," ",VLOOKUP(I104,#REF!,2,FALSE)) ->  | K104: =IF(ISERROR(VLOOKUP(I104,#REF!,3,FALSE))," ",VLOOKUP(I104,#REF!,3,FALSE)) ->  | L104: 3-1-2-02-02-02-0001-008 | M104: 8600024002 | N104: LA PREVISORA S.A. COMPAÑÍA DE SEGUROS | O104: 112683508 | T104: 112683508 | U104: 85478387 | W104: 2019-03-05 | X104: 2020-06-18 | Y104: 470 | AC104: X | AF104: 0.7585705177 | AG104: 112683508 | AH104: =IF(SUMPRODUCT((A$14:A104=A104)*(B$14:B104=B104)*(C$14:C104=C104))>1,0,1) -> 1 | AI104: Contratos de prestación de servicios profesionales y de apoyo a la gestión | AJ104: Selección abreviada | AK104: =IFERROR(VLOOKUP(F104,Tipo!$C$12:$C$27,1,FALSE),"NO") -> Prestación de servicios profesionales y de apoyo a la gestión, o para la ejecución de trabajos artísticos que sólo puedan encomendarse a determinadas personas naturales; | AL104: Funcionamiento | AM104: NO
A105: 95 | B105: 2019 | C105: FDLAN-CD-091-2019 | D105: Contratos de prestación de servicios profesionales y de apoyo a la gestión | E105: Contratación directa | F105: Prestación de servicios profesionales y de apoyo a la gestión, o para la ejecución de trabajos artísticos que sólo puedan encomendarse a determinadas personas naturales; | G105: PRESTAR LOS SERVICIOS DE APOYO COMO TÉCNICO ADMINISTRATIVO EN EL AREA DE GESTIÓN DE DESARROLLO LOCAL DE ANTONIO NARIÑO PARA LOS DIFERENTES ASUNTOS CONTRACTUALES QUE ADELNTA LA ENTIDAD | H105: Inversión | I105: 45 | J105: =IF(ISERROR(VLOOKUP(I105,#REF!,2,FALSE))," ",VLOOKUP(I105,#REF!,2,FALSE)) ->  | K105: =IF(ISERROR(VLOOKUP(I105,#REF!,3,FALSE))," ",VLOOKUP(I105,#REF!,3,FALSE)) ->  | L105: 3-3-1-15-07-45-1441-000 | M105: 1013602362 | N105: Lina Paola Hernandez Acosta | O105: 29500000 | T105: 29500000 | U105: 26500000 | V105: 2019-03-07 | W105: 2019-03-07 | X105: 2019-12-31 | Y105: 295 | AD105: X | AF105: 0.8983050847 | AG105: 29500000 | AH105: =IF(SUMPRODUCT((A$14:A105=A105)*(B$14:B105=B105)*(C$14:C105=C105))>1,0,1) -> 1 | AI105: Contratos de prestación de servicios profesionales y de apoyo a la gestión | AJ105: Contratación directa | AK105: =IFERROR(VLOOKUP(F105,Tipo!$C$12:$C$27,1,FALSE),"NO") -> Prestación de servicios profesionales y de apoyo a la gestión, o para la ejecución de trabajos artísticos que sólo puedan encomendarse a determinadas personas naturales; | AL105: Inversión | AM105: NO
A106: 96 | B106: 2019 | C106: 19-22-5252 | D106: Convenios de apoyo y/o convenios de asociación | E106: Contratación directa | F106: Prestación de servicios profesionales y de apoyo a la gestión, o para la ejecución de trabajos artísticos que sólo puedan encomendarse a determinadas personas naturales; | G106: Anuar esfuerzos que permitan que estudiantes de la fundación universitaria los libertadores desarrollen su practica ´profesional en el fondo en calidad de practicantes | H106: Funcionamiento | I106: No aplica | J106: =IF(ISERROR(VLOOKUP(I106,#REF!,2,FALSE))," ",VLOOKUP(I106,#REF!,2,FALSE)) ->  | K106: =IF(ISERROR(VLOOKUP(I106,#REF!,3,FALSE))," ",VLOOKUP(I106,#REF!,3,FALSE)) ->  | L106: N/A | M106: 860507903 | N106: Fundación Universitaria Los Libertadores | T106: 0 | V106: 2019-03-08 | W106: 2019-03-08 | X106: 2020-03-07 | Y106: 365 | AC106: X | AF106: - | AG106: 0 | AH106: =IF(SUMPRODUCT((A$14:A106=A106)*(B$14:B106=B106)*(C$14:C106=C106))>1,0,1) -> 1 | AI106: Convenios de apoyo y/o convenios de asociación | AJ106: Contratación directa | AK106: =IFERROR(VLOOKUP(F106,Tipo!$C$12:$C$27,1,FALSE),"NO") -> Prestación de servicios profesionales y de apoyo a la gestión, o para la ejecución de trabajos artísticos que sólo puedan encomendarse a determinadas personas naturales; | AL106: Funcionamiento | AM106: NO
A107: 97 | B107: 2019 | C107: 19-12-9194950 | D107: Contratos de prestación de servicios profesionales y de apoyo a la gestión | E107: Contratación directa | F107: Prestación de servicios profesionales y de apoyo a la gestión, o para la ejecución de trabajos artísticos que sólo puedan encomendarse a determinadas personas naturales; | G107: Prestar los servicios de apoyo dentro de las actuaciones, tramites y procesos que adelanta el area de gestión policiva y juridica de la Alcaldía Local de Atonio Nariño | H107: Inversión | I107: 45 | J107: =IF(ISERROR(VLOOKUP(I107,#REF!,2,FALSE))," ",VLOOKUP(I107,#REF!,2,FALSE)) ->  | K107: =IF(ISERROR(VLOOKUP(I107,#REF!,3,FALSE))," ",VLOOKUP(I107,#REF!,3,FALSE)) ->  | L107: 3-3-1-15-07-45-1441-000 | M107: 1013670172 | N107: DIANA LORENA SANCHEZ | O107: 15744000 | R107: 1 | S107: 1508800 | T107: 17252800 | U107: 16465600 | V107: 2019-03-19 | W107: 2019-03-21 | X107: 2019-12-12 | Y107: 240 | Z107: 23 | AD107: X | AF107: 0.9543726236 | AG107: =T107 -> 17252800 | AH107: =IF(SUMPRODUCT((A$14:A107=A107)*(B$14:B107=B107)*(C$14:C107=C107))>1,0,1) -> 1 | AI107: Contratos de prestación de servicios profesionales y de apoyo a la gestión | AJ107: Contratación directa | AK107: =IFERROR(VLOOKUP(F107,Tipo!$C$12:$C$27,1,FALSE),"NO") -> Prestación de servicios profesionales y de apoyo a la gestión, o para la ejecución de trabajos artísticos que sólo puedan encomendarse a determinadas personas naturales; | AL107: Inversión | AM107: NO
A108: 98 | B108: 2019 | C108: 19-12-9195766 | D108: Contratos de prestación de servicios profesionales y de apoyo a la gestión | E108: Contratación directa | F108: Prestación de servicios profesionales y de apoyo a la gestión, o para la ejecución de trabajos artísticos que sólo puedan encomendarse a determinadas personas naturales; | G108: Prestar servicios de apoyo a la gestión del area de gestión para el desarrollo local en el seguimeinto y depuración de los tramites y requerimientos prestados en la Alcaldía Local de Antonio Nariño | H108: Inversión | I108: 45 | J108: =IF(ISERROR(VLOOKUP(I108,#REF!,2,FALSE))," ",VLOOKUP(I108,#REF!,2,FALSE)) ->  | K108: =IF(ISERROR(VLOOKUP(I108,#REF!,3,FALSE))," ",VLOOKUP(I108,#REF!,3,FALSE)) ->  | L108: 3-3-1-15-07-45-1441-000 | M108: 1023930290 | N108: SHIRLEY LORENA BEDOYA | O108: 23187360 | T108: 23187360 | U108: 22511062 | V108: 2019-03-19 | W108: 2019-03-21 | Y108: 240 | AC108: X | AF108: 0.9708333333 | AG108: =T108 -> 23187360 | AH108: =IF(SUMPRODUCT((A$14:A108=A108)*(B$14:B108=B108)*(C$14:C108=C108))>1,0,1) -> 1 | AI108: Contratos de prestación de servicios profesionales y de apoyo a la gestión | AJ108: Contratación directa | AK108: =IFERROR(VLOOKUP(F108,Tipo!$C$12:$C$27,1,FALSE),"NO") -> Prestación de servicios profesionales y de apoyo a la gestión, o para la ejecución de trabajos artísticos que sólo puedan encomendarse a determinadas personas naturales; | AL108: Inversión | AM108: NO
A109: 99 | B109: 2019 | C109: 19-12-9201572 | D109: Contratos de prestación de servicios profesionales y de apoyo a la gestión | E109: Contratación directa | F109: Prestación de servicios profesionales y de apoyo a la gestión, o para la ejecución de trabajos artísticos que sólo puedan encomendarse a determinadas personas naturales; | G109: Apoyar la gestión documental de la Alcaldía Local para la implementación del proceso de verificación soporte y acompañamiento, en el desarrollo de las actividades propis de los procesos y actuaciones adminstrativas existentes | H109: Inversión | I109: 45 | J109: =IF(ISERROR(VLOOKUP(I109,#REF!,2,FALSE))," ",VLOOKUP(I109,#REF!,2,FALSE)) ->  | K109: =IF(ISERROR(VLOOKUP(I109,#REF!,3,FALSE))," ",VLOOKUP(I109,#REF!,3,FALSE)) ->  | L109: 3-3-1-15-07-45-1441-000 | M109: 1022940389 | N109: YENNIFER YURANI MUÑOZ FRACICA | O109: 17390520 | R109: 1 | S109: 8695260 | T109: 26085780 | U109: 23863658 | V109: 2019-03-21 | W109: 2019-03-21 | X109: 2019-12-13 | Y109: 180 | Z109: 90 | AD109: X | AF109: 0.9148148148 | AG109: 26085780 | AH109: =IF(SUMPRODUCT((A$14:A109=A109)*(B$14:B109=B109)*(C$14:C109=C109))>1,0,1) -> 1 | AI109: Contratos de prestación de servicios profesionales y de apoyo a la gestión | AJ109: Contratación directa | AK109: =IFERROR(VLOOKUP(F109,Tipo!$C$12:$C$27,1,FALSE),"NO") -> Prestación de servicios profesionales y de apoyo a la gestión, o para la ejecución de trabajos artísticos que sólo puedan encomendarse a determinadas personas naturales; | AL109: Inversión | AM109: NO
A110: 100 | B110: 2019 | C110: 19-12-9213741 | D110: Contratos de prestación de servicios profesionales y de apoyo a la gestión | E110: Contratación directa | F110: Prestación de servicios profesionales y de apoyo a la gestión, o para la ejecución de trabajos artísticos que sólo puedan encomendarse a determinadas personas naturales; | G110: Prestación de servicios de apoyo en el area de gestión de desarrollo local para la evaluación, presentación y seguimient del proyecto 1431 denominado suministro de ayudas técnicas para personas con discapacidad en el cumplimiento del plan de desarrollo 2017-2020 | H110: Inversión | I110: 45 | J110: =IF(ISERROR(VLOOKUP(I110,#REF!,2,FALSE))," ",VLOOKUP(I110,#REF!,2,FALSE)) ->  | K110: =IF(ISERROR(VLOOKUP(I110,#REF!,3,FALSE))," ",VLOOKUP(I110,#REF!,3,FALSE)) ->  | L110: 3-3-1-15-01-03-1431-000 | M110: 1085919339 | N110: INTI ADRIANO RIBADENEIRA MINO | O110: 37331484 | T110: 37331484 | U110: 33273714 | V110: 2019-03-26 | W110: 2019-03-26 | X110: 2019-12-31 | Y110: 276 | AD110: X | AF110: 0.8913043478 | AG110: 37331484 | AH110: =IF(SUMPRODUCT((A$14:A110=A110)*(B$14:B110=B110)*(C$14:C110=C110))>1,0,1) -> 1 | AI110: Contratos de prestación de servicios profesionales y de apoyo a la gestión | AJ110: Contratación directa | AK110: =IFERROR(VLOOKUP(F110,Tipo!$C$12:$C$27,1,FALSE),"NO") -> Prestación de servicios profesionales y de apoyo a la gestión, o para la ejecución de trabajos artísticos que sólo puedan encomendarse a determinadas personas naturales; | AL110: Inversión | AM110: NO
A111: 101 | B111: 2019 | C111: FDLAN-SAMC-002-2019 | D111: Contratos de prestación de servicios profesionales y de apoyo a la gestión | E111: Selección abreviada | G111: Prestación del servicio de vigilancia y seguridad privada para la sede del la Alcaldia Local de Antonio Nariño y de los bienes inmuebles que hacen parte d ela entidad y de todos aquellos de los cuales sea o llegare a ser legalmente responsable | H111: Funcionamiento | I111: No aplica | J111: =IF(ISERROR(VLOOKUP(I111,#REF!,2,FALSE))," ",VLOOKUP(I111,#REF!,2,FALSE)) ->  | K111: =IF(ISERROR(VLOOKUP(I111,#REF!,3,FALSE))," ",VLOOKUP(I111,#REF!,3,FALSE)) ->  | L111: 3-1-2-02-02-03-0006-005 | M111: 860067378 | N111: JIM SECURITY LTDA | O111: 210852561 | R111: 1 | S111: 81000000 | T111: 291852561 | U111: 81000000 | V111: 2019-04-11 | W111: 2019-04-11 | X111: 2020-03-10 | Y111: 240 | Z111: 90 | AC111: X | AF111: 0.2775373967 | AG111: 291852561 | AH111: =IF(SUMPRODUCT((A$14:A111=A111)*(B$14:B111=B111)*(C$14:C111=C111))>1,0,1) -> 1 | AI111: Contratos de prestación de servicios profesionales y de apoyo a la gestión | AJ111: Selección abreviada | AK111: =IFERROR(VLOOKUP(F111,Tipo!$C$12:$C$27,1,FALSE),"NO") -> NO | AL111: Funcionamiento | AM111: NO
A112: 102 | B112: 2019 | C112: FDLANCD-096-2019 | D112: Contratos de prestación de servicios profesionales y de apoyo a la gestión | E112: Contratación directa | F112: Prestación de servicios profesionales y de apoyo a la gestión, o para la ejecución de trabajos artísticos que sólo puedan encomendarse a determinadas personas naturales; | G112: Prestar servicios de apoyo a las labores de carácter operacional y/o administrativas que se lleven a cabo con ocasión ala realización de proyectos de obra e infraestructura realcionados con malla vial y espacio publico | H112: Inversión | I112: 45 | J112: =IF(ISERROR(VLOOKUP(I112,#REF!,2,FALSE))," ",VLOOKUP(I112,#REF!,2,FALSE)) ->  | K112: =IF(ISERROR(VLOOKUP(I112,#REF!,3,FALSE))," ",VLOOKUP(I112,#REF!,3,FALSE)) ->  | L112: 3-3-1-15-02-17-1438-000 | M112: 1010006513 | N112: JOAN SEBASTIAN VELASCO | O112: 13426432 | T112: 13426432 | U112: 11853022 | V112: 2019-04-15 | W112: 2019-04-15 | X112: 2019-12-31 | Y112: 256 | AD112: X | AF112: 0.8828125 | AG112: 13426432 | AH112: =IF(SUMPRODUCT((A$14:A112=A112)*(B$14:B112=B112)*(C$14:C112=C112))>1,0,1) -> 1 | AI112: Contratos de prestación de servicios profesionales y de apoyo a la gestión | AJ112: Contratación directa | AK112: =IFERROR(VLOOKUP(F112,Tipo!$C$12:$C$27,1,FALSE),"NO") -> Prestación de servicios profesionales y de apoyo a la gestión, o para la ejecución de trabajos artísticos que sólo puedan encomendarse a determinadas personas naturales; | AL112: Inversión | AM112: NO
A113: 103 | B113: 2019 | C113: FDLAN-CD-097-2019 | D113: Contratos de prestación de servicios profesionales y de apoyo a la gestión | E113: Contratación directa | F113: Prestación de servicios profesionales y de apoyo a la gestión, o para la ejecución de trabajos artísticos que sólo puedan encomendarse a determinadas personas naturales; | G113: Prestar servicios de apoyo a las labores de carácter operacional y/o administrativas encomendadas al referente de seguridad ciudadana convivencia y prevención de conflictividades del fondo de desarrollo local de antonio nariño | H113: Inversión | I113: 45 | J113: =IF(ISERROR(VLOOKUP(I113,#REF!,2,FALSE))," ",VLOOKUP(I113,#REF!,2,FALSE)) ->  | K113: =IF(ISERROR(VLOOKUP(I113,#REF!,3,FALSE))," ",VLOOKUP(I113,#REF!,3,FALSE)) ->  | L113: 3-3-1-15-03-19-1439-000 | M113: 1010127986 | N113: ANDRÉS FELIPE LÓPEZ | O113: 13321538 | T113: 13321538 | U113: 5192253 | V113: 2019-04-22 | W113: 2019-04-22 | X113: 2019-12-31 | Y113: 249 | AD113: X | AF113: 0.3897637795 | AG113: 13321538 | AH113: =IF(SUMPRODUCT((A$14:A113=A113)*(B$14:B113=B113)*(C$14:C113=C113))>1,0,1) -> 1 | AI113: =IFERROR(VLOOKUP(D113,tipo,1,FALSE),"NO") -> Contratos de prestación de servicios profesionales y de apoyo a la gestión | AJ113: =IFERROR(VLOOKUP(E113,modal,1,FALSE),"NO") -> Contratación directa | AK113: =IFERROR(VLOOKUP(F113,Tipo!$C$12:$C$27,1,FALSE),"NO") -> Prestación de servicios profesionales y de apoyo a la gestión, o para la ejecución de trabajos artísticos que sólo puedan encomendarse a determinadas personas naturales; | AL113: =IFERROR(VLOOKUP(H113,afectacion,1,FALSE),"NO") -> Inversión | AM113: =IFERROR(VLOOKUP(I113,programa,1,FALSE),"NO") -> NO
A114: FDLAN-104/19 -1999/SDG | B114: 2019 | C114: FDLAN-CD-098-2019 | D114: Convenios de apoyo y/o convenios de asociación | E114: Contratación directa | F114: Contratos interadministrativos | G114: Cofinanciar la dotación tecnológica de instituciones educativas del distrito capital | H114: Inversión | J114: =IF(ISERROR(VLOOKUP(I114,#REF!,2,FALSE))," ",VLOOKUP(I114,#REF!,2,FALSE)) ->  | K114: =IF(ISERROR(VLOOKUP(I114,#REF!,3,FALSE))," ",VLOOKUP(I114,#REF!,3,FALSE)) ->  | L114: 3-3-1-15-01-07-1433-000 | N114: NEX COMPUTER SAS | O114: 70000000 | T114: =+O114+Q114+S114 -> 70000000 | V114: 2019-05-08 | W114: 2019-05-08 | X114: 2019-12-30 | AD114: X | AF114: 0 | AG114: 70000000 | AH114: =IF(SUMPRODUCT((A$14:A114=A114)*(B$14:B114=B114)*(C$14:C114=C114))>1,0,1) -> 1 | AI114: Convenios de apoyo y/o convenios de asociación | AJ114: Contratación directa | AK114: =IFERROR(VLOOKUP(F114,Tipo!$C$12:$C$27,1,FALSE),"NO") -> Contratos interadministrativos | AL114: Inversión | AM114: NO
A115: 105 | B115: 2019 | C115: FDLAN-CD-099-2019 | D115: Contratos de prestación de servicios profesionales y de apoyo a la gestión | E115: Contratación directa | F115: Prestación de servicios profesionales y de apoyo a la gestión, o para la ejecución de trabajos artísticos que sólo puedan encomendarse a determinadas personas naturales; | G115: "Prestar su servicios profesionales para apoyar al alcalde local en el seguimiento a la ejecución y apoyo a la supervisión de los programas que involucran a las comunidades de la comunidad de antonio nariño" | H115: Inversión | I115: 45 | J115: =IF(ISERROR(VLOOKUP(I115,#REF!,2,FALSE))," ",VLOOKUP(I115,#REF!,2,FALSE)) ->  | K115: =IF(ISERROR(VLOOKUP(I115,#REF!,3,FALSE))," ",VLOOKUP(I115,#REF!,3,FALSE)) ->  | L115: 3-3-1-15-07-45-1441-000 | M115: 52811539 | N115: Andrea Carrillo Barbosa | O115: 32641730 | T115: 32641730 | U115: 28104555 | V115: 2019-05-27 | W115: 2019-05-27 | X115: 2019-12-31 | Y115: 215 | AD115: X | AF115: 0.8610007803 | AG115: 32641730 | AH115: =IF(SUMPRODUCT((A$14:A115=A115)*(B$14:B115=B115)*(C$14:C115=C115))>1,0,1) -> 1 | AI115: Contratos de prestación de servicios profesionales y de apoyo a la gestión | AJ115: Contratación directa | AK115: =IFERROR(VLOOKUP(F115,Tipo!$C$12:$C$27,1,FALSE),"NO") -> Prestación de servicios profesionales y de apoyo a la gestión, o para la ejecución de trabajos artísticos que sólo puedan encomendarse a determinadas personas naturales; | AL115: Inversión | AM115: NO
A116: 106 | B116: 2019 | C116: FDLAN-MIN-001-2019 | D116: Contratos de prestación de servicios | E116: Contratación directa | F116: Prestación de servicios profesionales y de apoyo a la gestión, o para la ejecución de trabajos artísticos que sólo puedan encomendarse a determinadas personas naturales; | G116: “SERVICIO DE MANTENIMIENTO PREVENTIVO Y CORRECTIVO, CON SUMINISTRO DE REPUESTOS Y MANO DE OBRA PARA EL PARQUE AUTOMOTOR DE PROPIEDAD DEL FONDO DE DESARROLLO LOCAL DE ANTONIO NARIÑO” | H116: Funcionamiento | I116: No aplica | J116: =IF(ISERROR(VLOOKUP(I116,#REF!,2,FALSE))," ",VLOOKUP(I116,#REF!,2,FALSE)) ->  | K116: =IF(ISERROR(VLOOKUP(I116,#REF!,3,FALSE))," ",VLOOKUP(I116,#REF!,3,FALSE)) ->  | L116: 03-01-02-02-02-0006-004 | M116: 800250589-1 | N116: Centro Car 19 Ltda | O116: 15000000 | R116: 1 | S116: 7500000 | T116: 22500000 | U116: 21800000 | V116: 2019-06-14 | W116: 2019-06-14 | X116: 2020-02-13 | Y116: 150 | Z116: 90 | AC116: X | AF116: 0.9688888889 | AG116: 22500000 | AH116: =IF(SUMPRODUCT((A$14:A116=A116)*(B$14:B116=B116)*(C$14:C116=C116))>1,0,1) -> 1 | AI116: Contratos de prestación de servicios | AJ116: Contratación directa | AK116: =IFERROR(VLOOKUP(F116,Tipo!$C$12:$C$27,1,FALSE),"NO") -> Prestación de servicios profesionales y de apoyo a la gestión, o para la ejecución de trabajos artísticos que sólo puedan encomendarse a determinadas personas naturales; | AL116: Funcionamiento | AM116: NO
A117: 107 | B117: 2019 | C117: FDLAN-MIN-002-2019 | D117: Contratos de prestación de servicios | E117: Contratación directa | F117: Contratos interadministrativos | G117: Contratar el servicio de outsorcing de ocho(8) maquinas fotocopiadoras multifuncionales, incluso su mantenimiento preventivo y correctivo, soporte técnico repuesto e insumos requeridos por las mismas y siposición final de los mismos para ser instaladas en las diferentes dependencias de la Alcaldía Local de Antonio Nariño de conformidad con las especificaciones técnicas | H117: Funcionamiento | J117: =IF(ISERROR(VLOOKUP(I117,#REF!,2,FALSE))," ",VLOOKUP(I117,#REF!,2,FALSE)) ->  | K117: =IF(ISERROR(VLOOKUP(I117,#REF!,3,FALSE))," ",VLOOKUP(I117,#REF!,3,FALSE)) ->  | L117: 3-1-2-02-02-03-0006-005 | M117: 830031976-7 | N117: COPYES MARKET E.U. | O117: 8288000 | T117: 8288000 | U117: 5180000 | V117: 2019-06-21 | W117: 2019-06-21 | X117: 2020-02-20 | Y117: 240 | AC117: X | AF117: 0.625 | AG117: 8288000 | AH117: =IF(SUMPRODUCT((A$14:A117=A117)*(B$14:B117=B117)*(C$14:C117=C117))>1,0,1) -> 1 | AI117: Contratos de prestación de servicios | AJ117: Contratación directa | AK117: =IFERROR(VLOOKUP(F117,Tipo!$C$12:$C$27,1,FALSE),"NO") -> Contratos interadministrativos | AL117: Funcionamiento | AM117: NO
A118: 108 | B118: 2019 | C118: FDLAN-CD-100-2019 | D118: Convenios de cooperacion | E118: Contratación directa | F118: Contratos interadministrativos | G118: "AUNAR ESFUERZOS TÉCNICOS, ADMINISTRATIVOS, LOGÍSTICOS Y FINANCIEROS ENTRE EL FONDO DE DESARROLLO LOCAL ANTONIO NARIÑO Y LA ORQUESTA FILARMÓNICA DE BOGOTÁ PARA LA CREACIÓN Y DESARROLLO DEL CENTRO FILARMÓNICO, COMO UN ESPACIO PARA EL PROCESO DE FORMACIÓN SINFONICA IMPLEMENTADO POR LA OFB Y DIRIGIDO A LA LOCALIDAD DE ANTONIO NARIÑO". | H118: Inversión | J118: =IF(ISERROR(VLOOKUP(I118,#REF!,2,FALSE))," ",VLOOKUP(I118,#REF!,2,FALSE)) ->  | K118: =IF(ISERROR(VLOOKUP(I118,#REF!,3,FALSE))," ",VLOOKUP(I118,#REF!,3,FALSE)) ->  | M118: 899999282 | N118: LA ORQUESTA FILARMÓNICA DE BOGOTÁ | T118: 0 | V118: 2019-07-02 | W118: 2019-07-02 | X118: 2019-12-30 | Y118: 328 | AD118: X | AF118: - | AG118: 0 | AH118: =IF(SUMPRODUCT((A$14:A118=A118)*(B$14:B118=B118)*(C$14:C118=C118))>1,0,1) -> 1 | AI118: Convenios de cooperacion | AJ118: Contratación directa | AK118: =IFERROR(VLOOKUP(F118,Tipo!$C$12:$C$27,1,FALSE),"NO") -> Contratos interadministrativos | AL118: Inversión | AM118: NO
J119: =IF(ISERROR(VLOOKUP(I119,#REF!,2,FALSE))," ",VLOOKUP(I119,#REF!,2,FALSE)) ->  | K119: =IF(ISERROR(VLOOKUP(I119,#REF!,3,FALSE))," ",VLOOKUP(I119,#REF!,3,FALSE)) ->  | T119: 0 | AF119: - | AG119: 0 | AH119: =IF(SUMPRODUCT((A$14:A119=A119)*(B$14:B119=B119)*(C$14:C119=C119))>1,0,1) -> 1 | AI119: NO | AJ119: NO | AK119: =IFERROR(VLOOKUP(F119,Tipo!$C$12:$C$27,1,FALSE),"NO") -> NO | AL119: NO | AM119: NO
A120: 110 | B120: 2019 | C120: FDLAN-CD-102-2019 | D120: Arrendamiento de bienes inmuebles | E120: Contratación directa | F120: El arrendamiento o adquisición de inmuebles | G120: Celebrar un contrato de arrendamiento de una bodega institucional exclusivo de la Alcaldía Local de Antonio Nariño | H120: Funcionamiento | J120: =IF(ISERROR(VLOOKUP(I120,#REF!,2,FALSE))," ",VLOOKUP(I120,#REF!,2,FALSE)) ->  | K120: =IF(ISERROR(VLOOKUP(I120,#REF!,3,FALSE))," ",VLOOKUP(I120,#REF!,3,FALSE)) ->  | L120: 3-1-2-02-02-02-0002-001 | M120: 112528025 | N120: ARRENDAMIENTO HUGO BUSTOS LIEVANO | O120: 7500000 | T120: 7500000 | U120: 7500000 | V120: 2019-06-26 | W120: 2019-07-02 | X120: 2019-12-01 | Y120: 150 | AD120: X | AF120: 1 | AG120: 7500000 | AH120: =IF(SUMPRODUCT((A$14:A120=A120)*(B$14:B120=B120)*(C$14:C120=C120))>1,0,1) -> 1 | AI120: Arrendamiento de bienes inmuebles | AJ120: Contratación directa | AK120: =IFERROR(VLOOKUP(F120,Tipo!$C$12:$C$27,1,FALSE),"NO") -> El arrendamiento o adquisición de inmuebles | AL120: Funcionamiento | AM120: NO
A121: CPS- FDLAN 111-2019 | B121: 2019 | C121: FDLAN-CD-SAMC-004-2019 | D121: Contratos de prestación de servicios | E121: Contratación directa | F121: Contratos para el desarrollo de actividades científicas y tecnológicas | G121: Prestación de servicios logisticos para la realización del festival de cometas 2019 en la localidad antonio nariño | H121: Inversión | J121: =IF(ISERROR(VLOOKUP(I121,#REF!,2,FALSE))," ",VLOOKUP(I121,#REF!,2,FALSE)) ->  | K121: =IF(ISERROR(VLOOKUP(I121,#REF!,3,FALSE))," ",VLOOKUP(I121,#REF!,3,FALSE)) ->  | L121: 3-3-1-15-01-11-1434-000 | M121: 900004535 | N121: LA CORPORACIÓN DE SERVICIOS DE COLOMBIA(CORSERVICOL) | O121: 61711388 | T121: 61711388 | V121: 2019-08-05 | W121: 2019-08-05 | X121: 2019-09-04 | Y121: 30 | AD121: X | AF121: 0 | AG121: 61711388 | AH121: =IF(SUMPRODUCT((A$14:A121=A121)*(B$14:B121=B121)*(C$14:C121=C121))>1,0,1) -> 1 | AI121: Contratos de prestación de servicios | AJ121: Contratación directa | AK121: =IFERROR(VLOOKUP(F121,Tipo!$C$12:$C$27,1,FALSE),"NO") -> Contratos para el desarrollo de actividades científicas y tecnológicas | AL121: Inversión | AM121: NO
A122: 112 | B122: 2019 | C122: FDLAN-SAMC-003-2019 | D122: Contratos de prestación de servicios | E122: Contratación directa | F122: Contratos para el desarrollo de actividades científicas y tecnológicas | G122: Prestación de los servicios de apoyo logístico a monto agotable en los espacios de participación y en los diferentes eventos que sean realizados por los consejos y las organizaciones sociales debidamente establecidas en la localidad antonio nariño | H122: Inversión | I122: 41 | J122: =IF(ISERROR(VLOOKUP(I122,#REF!,2,FALSE))," ",VLOOKUP(I122,#REF!,2,FALSE)) ->  | K122: =IF(ISERROR(VLOOKUP(I122,#REF!,3,FALSE))," ",VLOOKUP(I122,#REF!,3,FALSE)) ->  | L122: 3-3-1-15-07-45-1442-000 | M122: 900843188 | N122: FUNDACIÓN G3 | O122: 127464791 | T122: 127464791 | U122: 75845483 | V122: 2019-08-01 | W122: 2019-08-01 | X122: 2020-01-30 | Y122: 180 | AC122: X | AF122: 0.5950308505 | AG122: 127464791 | AH122: =IF(SUMPRODUCT((A$14:A122=A122)*(B$14:B122=B122)*(C$14:C122=C122))>1,0,1) -> 1 | AI122: Contratos de prestación de servicios | AJ122: Contratación directa | AK122: =IFERROR(VLOOKUP(F122,Tipo!$C$12:$C$27,1,FALSE),"NO") -> Contratos para el desarrollo de actividades científicas y tecnológicas | AL122: Inversión | AM122: NO
A123: 113 | B123: 2019 | C123: FDLAN-MC-004-2019 | D123: Contratos de prestación de servicios | E123: Contratación directa | F123: Contratos para el desarrollo de actividades científicas y tecnológicas | G123: Prestar el servicio de apoyo logístico, técnico y operativo para la realización de la conmemoración día de la afrocolombianidad | H123: Inversión | J123: =IF(ISERROR(VLOOKUP(I123,#REF!,2,FALSE))," ",VLOOKUP(I123,#REF!,2,FALSE)) ->  | K123: =IF(ISERROR(VLOOKUP(I123,#REF!,3,FALSE))," ",VLOOKUP(I123,#REF!,3,FALSE)) ->  | L123: 3-3-1-15-01-11-1434-000 | M123: 830133329 | N123: LA FUNDACIÓN PARA EL DESARROLLO SOCIOCULTURAL DEPORTIVO Y COMUNITARIO FUNDESCO | O123: 17420417 | T123: 17420417 | U123: 17420417 | V123: 2019-08-13 | W123: 2019-08-15 | X123: 2019-09-29 | Y123: 30 | Z123: 15 | AD123: X | AF123: 1 | AG123: 17420417 | AH123: =IF(SUMPRODUCT((A$14:A123=A123)*(B$14:B123=B123)*(C$14:C123=C123))>1,0,1) -> 1 | AI123: Contratos de prestación de servicios | AJ123: Contratación directa | AK123: =IFERROR(VLOOKUP(F123,Tipo!$C$12:$C$27,1,FALSE),"NO") -> Contratos para el desarrollo de actividades científicas y tecnológicas | AL123: Inversión | AM123: NO
A124: 114 | B124: 2019 | C124: FDLAN-LP-002-2019 | D124: Contratos de prestación de servicios | E124: Licitación pública | F124: No aplica | G124: Prestación de servicios para continuar con los procesos de fortalecimientode las escuelas de formación deportiva y la tercera edición de la carrera atlética de la localidad antonio nariño | H124: Inversión | J124: =IF(ISERROR(VLOOKUP(I124,#REF!,2,FALSE))," ",VLOOKUP(I124,#REF!,2,FALSE)) ->  | K124: =IF(ISERROR(VLOOKUP(I124,#REF!,3,FALSE))," ",VLOOKUP(I124,#REF!,3,FALSE)) ->  | L124: 3-3-1-15-01-11-1434-000 | M124: 900332118-1 | N124: FUNDACIÓN SOCIAL COLOMBIA ACTIVA | O124: 285699488 | T124: 285699488 | AB124: X | AF124: 0 | AG124: 285699488 | AH124: =IF(SUMPRODUCT((A$14:A124=A124)*(B$14:B124=B124)*(C$14:C124=C124))>1,0,1) -> 1 | AI124: Contratos de prestación de servicios | AJ124: Licitación pública | AK124: =IFERROR(VLOOKUP(F124,Tipo!$C$12:$C$27,1,FALSE),"NO") -> NO | AL124: Inversión | AM124: NO
A125: 115 | B125: 2019 | C125: FDLAN-SAMC-005-2019 | D125: Contratos de prestación de servicios | E125: Selección abreviada | F125: Selección abreviada por menor cuantía | G125: Realiza r jornadas de movilización para la promoción de entornos protectores | H125: Inversión | J125: =IF(ISERROR(VLOOKUP(I125,#REF!,2,FALSE))," ",VLOOKUP(I125,#REF!,2,FALSE)) ->  | K125: =IF(ISERROR(VLOOKUP(I125,#REF!,3,FALSE))," ",VLOOKUP(I125,#REF!,3,FALSE)) ->  | L125: 3-3-1-15-01-02-1287-000 | M125: 900004535-1 | N125: CORPORACIÓN DE SERVICIOS COLOMBIA CORSERVICOL | O125: 48554257 | T125: 48554257 | V125: 2019-09-11 | W125: 2019-09-16 | X125: 2019-12-15 | Y125: 90 | AF125: 0 | AG125: 48554257 | AH125: =IF(SUMPRODUCT((A$14:A125=A125)*(B$14:B125=B125)*(C$14:C125=C125))>1,0,1) -> 1 | AI125: Contratos de prestación de servicios | AJ125: Selección abreviada | AK125: =IFERROR(VLOOKUP(F125,Tipo!$C$12:$C$27,1,FALSE),"NO") -> Selección abreviada por menor cuantía | AL125: Inversión | AM125: NO
A126: 116 | B126: 2019 | C126: FDLAN-LP-001-2019 | D126: Obra pública | E126: Licitación pública | F126: No aplica | G126: Realizar atravez del sistema de precios unitarios fijos sin formula de reajuste la conservación de la malla vial local y del espacio público de la localidad antonio nariño-actividad de empradización | H126: Inversión | J126: =IF(ISERROR(VLOOKUP(I126,#REF!,2,FALSE))," ",VLOOKUP(I126,#REF!,2,FALSE)) ->  | K126: =IF(ISERROR(VLOOKUP(I126,#REF!,3,FALSE))," ",VLOOKUP(I126,#REF!,3,FALSE)) ->  | L126: 3-3-1-15-02-17-1438-000-3-3-1-15-06-38-1440-000 | M126: 901315396-2 | N126: CONSORCIO VIAS ANTONIO NARIÑO 2025 | O126: 4434421432 | T126: 4434421432 | V126: 2019-10-31 | W126: 2019-11-13 | X126: 2020-06-12 | Y126: 210 | AC126: X | AF126: 0 | AG126: 4434421432 | AH126: =IF(SUMPRODUCT((A$14:A126=A126)*(B$14:B126=B126)*(C$14:C126=C126))>1,0,1) -> 1 | AI126: Obra pública | AJ126: Licitación pública | AK126: =IFERROR(VLOOKUP(F126,Tipo!$C$12:$C$27,1,FALSE),"NO") -> NO | AL126: Inversión | AM126: NO
A127: 117 | B127: 2019 | C127: FDLAN-SAMC-006 -2019 | D127: Contratos de prestación de servicios | E127: Selección abreviada | F127: Selección abreviada por menor cuantía | G127: “contratar el apoyo logístico para la organización y ejecución del evento de juegos tradicionales 2019 en la localidad antonio nariño”. | H127: Inversión | J127: =IF(ISERROR(VLOOKUP(I127,#REF!,2,FALSE))," ",VLOOKUP(I127,#REF!,2,FALSE)) ->  | K127: =IF(ISERROR(VLOOKUP(I127,#REF!,3,FALSE))," ",VLOOKUP(I127,#REF!,3,FALSE)) ->  | L127: 3-3-1-15-01-11-1434-000 | M127: 900843188 | N127: FUNDACIÓN G3 | O127: 40410853 | T127: 40410853 | V127: 2019-09-30 | W127: 2019-11-14 | X127: 2019-12-16 | Y127: 30 | AD127: X | AF127: 0 | AG127: 40410853 | AH127: =IF(SUMPRODUCT((A$14:A127=A127)*(B$14:B127=B127)*(C$14:C127=C127))>1,0,1) -> 1 | AI127: Contratos de prestación de servicios | AJ127: Selección abreviada | AK127: =IFERROR(VLOOKUP(F127,Tipo!$C$12:$C$27,1,FALSE),"NO") -> Selección abreviada por menor cuantía | AL127: Inversión | AM127: NO
A128: 118 | B128: 2019 | C128: FDLAN-MIN-006-2019 | D128: Contratos de prestación de servicios | E128: Contratación mínima cuantia | F128: No aplica | G128: Prestar el servicio de apoyo logistico y técnico a monto agotable para las presentaciones artisticas del centro filarmonico antonio nariño | H128: Inversión | J128: =IF(ISERROR(VLOOKUP(I128,#REF!,2,FALSE))," ",VLOOKUP(I128,#REF!,2,FALSE)) ->  | K128: =IF(ISERROR(VLOOKUP(I128,#REF!,3,FALSE))," ",VLOOKUP(I128,#REF!,3,FALSE)) ->  | L128: 3-3-1-15-01-11-1434-000 | M128: 900782536 | N128: COLOMBIANA DE SERVICIOS COMEDORES & SUMINISTROS SAS | O128: 22000000 | T128: 22000000 | V128: 2019-09-30 | W128: 2019-10-10 | X128: 2020-02-09 | Y128: 120 | AC128: X | AF128: 0 | AG128: 22000000 | AH128: =IF(SUMPRODUCT((A$14:A128=A128)*(B$14:B128=B128)*(C$14:C128=C128))>1,0,1) -> 1 | AI128: Contratos de prestación de servicios | AJ128: Contratación mínima cuantia | AK128: =IFERROR(VLOOKUP(F128,Tipo!$C$12:$C$27,1,FALSE),"NO") -> NO | AL128: Inversión | AM128: NO
A129: 119 | B129: 2019 | C129: FDLAN-MIN-007-2019 | D129: Compraventa de bienes inmuebles | E129: Contratación directa | F129: El arrendamiento o adquisición de inmuebles | G129: Contratar el desmonte, compraventa e instalación de la puerta de acceso vehicular para la edificación de la alcaldía Local de Antonio Nariño | H129: Inversión | J129: =IF(ISERROR(VLOOKUP(I129,#REF!,2,FALSE))," ",VLOOKUP(I129,#REF!,2,FALSE)) ->  | K129: =IF(ISERROR(VLOOKUP(I129,#REF!,3,FALSE))," ",VLOOKUP(I129,#REF!,3,FALSE)) ->  | L129: 3-1-2-02-02-03-006-005 | M129: 900230597 | N129: SEGURIDAD PERCOL LTDA | O129: 16862000 | T129: 16862000 | V129: 2019-10-18 | W129: 2019-10-22 | X129: 2019-12-21 | AD129: X | AF129: 0 | AG129: 16862000 | AH129: =IF(SUMPRODUCT((A$14:A129=A129)*(B$14:B129=B129)*(C$14:C129=C129))>1,0,1) -> 1 | AI129: Compraventa de bienes inmuebles | AJ129: Contratación directa | AK129: =IFERROR(VLOOKUP(F129,Tipo!$C$12:$C$27,1,FALSE),"NO") -> El arrendamiento o adquisición de inmuebles | AL129: Inversión | AM129: NO
A130: 120 | B130: 2019 | C130: FDLAN-CMA-001-2019 | D130: Interventoría | E130: Concurso de méritos | F130: No aplica | G130: Realizar a través del sistema de precios unitarios fijos sin fórmula de reajuste, mantenimiento,rehabilitación o reconstrucción de la malla vial local y del espacio publico de la localidad antonio nariño | H130: Inversión | J130: =IF(ISERROR(VLOOKUP(I130,#REF!,2,FALSE))," ",VLOOKUP(I130,#REF!,2,FALSE)) ->  | K130: =IF(ISERROR(VLOOKUP(I130,#REF!,3,FALSE))," ",VLOOKUP(I130,#REF!,3,FALSE)) ->  | L130: 3-3-1-15-02-17-1438-000 | M130: 900241875-6 | N130: MIRS LATINOAMERICA SAS | O130: 374145449 | T130: 374145449 | V130: 2019-11-07 | W130: 2019-11-13 | X130: 2020-06-12 | AC130: X | AF130: 0 | AG130: 374145449 | AH130: =IF(SUMPRODUCT((A$14:A130=A130)*(B$14:B130=B130)*(C$14:C130=C130))>1,0,1) -> 1 | AI130: Interventoría | AJ130: Concurso de méritos | AK130: =IFERROR(VLOOKUP(F130,Tipo!$C$12:$C$27,1,FALSE),"NO") -> NO | AL130: Inversión | AM130: NO
A131: 121 | B131: 2019 | C131: FDLAN-LP-003-2019 | D131: Obra pública | E131: Licitación pública | F131: No aplica | G131: Contratar por el sistema de precios unitarios fijos, a monto agotale y con formula de rajuste anual, las obras de mantenimentoy rehabilitación del parque restrepo central(Carlos E restrepo) con código IDRD NO. 15-007 ubicado en el Barrio Restrepo de la Localidad Antonio Nariño | H131: Inversión | J131: =IF(ISERROR(VLOOKUP(I131,#REF!,2,FALSE))," ",VLOOKUP(I131,#REF!,2,FALSE)) ->  | K131: =IF(ISERROR(VLOOKUP(I131,#REF!,3,FALSE))," ",VLOOKUP(I131,#REF!,3,FALSE)) ->  | L131: 3-3-1-15-02-17-1437-000 | M131: 900104795-9 | N131: UNIOBRAS LTDA | O131: 1601797000 | T131: 1601797000 | V131: 2019-11-20 | W131: 2019-12-20 | X131: 2020-06-19 | AC131: X | AF131: 0 | AG131: 1601797000 | AH131: =IF(SUMPRODUCT((A$14:A131=A131)*(B$14:B131=B131)*(C$14:C131=C131))>1,0,1) -> 1 | AI131: Obra pública | AJ131: Licitación pública | AK131: =IFERROR(VLOOKUP(F131,Tipo!$C$12:$C$27,1,FALSE),"NO") -> NO | AL131: Inversión | AM131: NO
A132: 122 | B132: 2019 | C132: FDLAN-CMA-002-2019 | D132: Interventoría | E132: Concurso de méritos | F132: No aplica | G132: Interventoría técnica, adminstrativa, financiera, social, ambiental, contable y juridica al contrato cuyo bjeto es "Contratar por el sistema de precios unitarios fijos, a monto agotale y con formula de rajuste anual, las obras de mantenimentoy rehabilitación del parque restrepo central(Carlos E restrepo) con código IDRD NO. 15-007 ubicado en el Barrio Restrepo de la Localidad Antonio Nariño" | H132: Inversión | J132: =IF(ISERROR(VLOOKUP(I132,#REF!,2,FALSE))," ",VLOOKUP(I132,#REF!,2,FALSE)) ->  | K132: =IF(ISERROR(VLOOKUP(I132,#REF!,3,FALSE))," ",VLOOKUP(I132,#REF!,3,FALSE)) ->  | L132: 3-3-1-15-02-17-1437-000 | M132: 890115120-1 | N132: INGECO INGENIERIA DE CONSTRUCCIONES SAS | O132: 145159770 | T132: 145159770 | V132: 2019-11-20 | W132: 2019-12-20 | X132: 2020-06-19 | AC132: X | AF132: 0 | AG132: 145159770 | AH132: =IF(SUMPRODUCT((A$14:A132=A132)*(B$14:B132=B132)*(C$14:C132=C132))>1,0,1) -> 1 | AI132: Interventoría | AJ132: Concurso de méritos | AK132: =IFERROR(VLOOKUP(F132,Tipo!$C$12:$C$27,1,FALSE),"NO") -> NO | AL132: Inversión | AM132: NO
A133: 123 | B133: 2019 | C133: FDLAN-SAMC-007-2019 | D133: Contratos de prestación de servicios | E133: Contratación directa | F133: Contratos para el desarrollo de actividades científicas y tecnológicas | G133: Prestación de servicios de apoyo logistico para la organización y ejecución de la celebración del día comunal 2019 de la localidad antonio nariño | H133: Inversión | J133: =IF(ISERROR(VLOOKUP(I133,#REF!,2,FALSE))," ",VLOOKUP(I133,#REF!,2,FALSE)) ->  | K133: =IF(ISERROR(VLOOKUP(I133,#REF!,3,FALSE))," ",VLOOKUP(I133,#REF!,3,FALSE)) ->  | L133: 3-3-1-15-07-45-1442-000 | M133: 900360948-5 | N133: LA CORPORACIÓN COLECTIVO DUGERATI | O133: 30805500 | T133: 30805500 | V133: 2019-11-27 | AB133: X | AF133: 0 | AG133: 30805500 | AH133: =IF(SUMPRODUCT((A$14:A133=A133)*(B$14:B133=B133)*(C$14:C133=C133))>1,0,1) -> 1 | AI133: Contratos de prestación de servicios | AJ133: Contratación directa | AK133: =IFERROR(VLOOKUP(F133,Tipo!$C$12:$C$27,1,FALSE),"NO") -> Contratos para el desarrollo de actividades científicas y tecnológicas | AL133: Inversión | AM133: NO
A134: 124 | B134: 2019 | C134: FDLAN-SAMC-008-2019 | D134: Contratos de prestación de servicios | E134: Selección abreviada | F134: Selección abreviada por menor cuantía | G134: “PRESTAR EL SERVICIO DE APOYO LOGÍSTICO PARA LA ORGANIZACIÓN Y REALIZACIÓN DE LOS EVENTOS DENOMINADOS "NAVIDADES EN FAMILIA 2019" EN LA LOCALIDAD ANTONIO NARIÑO” | H134: Inversión | J134: =IF(ISERROR(VLOOKUP(I134,#REF!,2,FALSE))," ",VLOOKUP(I134,#REF!,2,FALSE)) ->  | K134: =IF(ISERROR(VLOOKUP(I134,#REF!,3,FALSE))," ",VLOOKUP(I134,#REF!,3,FALSE)) ->  | L134: 03-03-01-15-01-11-1434-000 | M134: 900.360.948-5 | N134: LA CORPORACIÓN COLECTIVO DUGERATI | O134: 198974966 | T134: 198974966 | V134: 2019-12-02 | AB134: X | AF134: 0 | AG134: 198974966 | AH134: =IF(SUMPRODUCT((A$14:A134=A134)*(B$14:B134=B134)*(C$14:C134=C134))>1,0,1) -> 1 | AI134: Contratos de prestación de servicios | AJ134: Selección abreviada | AK134: =IFERROR(VLOOKUP(F134,Tipo!$C$12:$C$27,1,FALSE),"NO") -> Selección abreviada por menor cuantía | AL134: Inversión | AM134: NO
A135: 125 | B135: 2019 | C135: FDLAN-SAMC-009-2019 | D135: Contratos de prestación de servicios | E135: Selección abreviada | F135: Selección abreviada por menor cuantía | G135: Prestación de servicios de apoyo logistico para la organización y ejecución de la celebración del día comunal 2019 de la localidad antonio nariño | H135: Inversión | J135: =IF(ISERROR(VLOOKUP(I135,#REF!,2,FALSE))," ",VLOOKUP(I135,#REF!,2,FALSE)) ->  | K135: =IF(ISERROR(VLOOKUP(I135,#REF!,3,FALSE))," ",VLOOKUP(I135,#REF!,3,FALSE)) ->  | L135: 3-3-1-15-01-11-1434-000 | M135: 900017592-8 | N135: ASOCIACIÓN ARKAMBIENTAL | O135: 172588947 | T135: 172588947 | V135: 2019-12-04 | AB135: X | AF135: 0 | AG135: 172588947 | AH135: =IF(SUMPRODUCT((A$14:A135=A135)*(B$14:B135=B135)*(C$14:C135=C135))>1,0,1) -> 1 | AI135: Contratos de prestación de servicios | AJ135: Selección abreviada | AK135: =IFERROR(VLOOKUP(F135,Tipo!$C$12:$C$27,1,FALSE),"NO") -> Selección abreviada por menor cuantía | AL135: Inversión | AM135: NO
A136: 126 | B136: 2019 | C136: 19-12-10186679 | D136: Contratos de prestación de servicios profesionales y de apoyo a la gestión | E136: Contratación directa | F136: Prestación de servicios profesionales y de apoyo a la gestión, o para la ejecución de trabajos artísticos que sólo puedan encomendarse a determinadas personas naturales; | G136: "APOYAR TÉCNICAMENTE LAS DISTINTAS ETAPAS DE LOS PROCESOS DE COMPETENCIA DE LAS INSPECCIONES DE POLICÍA DE LA LOCALIDAD SEGÚN REPARTO" | H136: Inversión | J136: =IF(ISERROR(VLOOKUP(I136,#REF!,2,FALSE))," ",VLOOKUP(I136,#REF!,2,FALSE)) ->  | K136: =IF(ISERROR(VLOOKUP(I136,#REF!,3,FALSE))," ",VLOOKUP(I136,#REF!,3,FALSE)) ->  | L136: 3-3-1-15-07-45-1441-000 | M136: 26459517 | N136: Dollys Herrera | O136: 5197400 | R136: 1 | S136: 2598700 | T136: 7796100 | V136: 2019-12-05 | W136: 2019-12-06 | X136: 2020-01-13 | Y136: 26 | Z136: 13 | AD136: X | AF136: 0 | AG136: 7796100 | AH136: =IF(SUMPRODUCT((A$14:A136=A136)*(B$14:B136=B136)*(C$14:C136=C136))>1,0,1) -> 1 | AI136: Contratos de prestación de servicios profesionales y de apoyo a la gestión | AJ136: Contratación directa | AK136: =IFERROR(VLOOKUP(F136,Tipo!$C$12:$C$27,1,FALSE),"NO") -> Prestación de servicios profesionales y de apoyo a la gestión, o para la ejecución de trabajos artísticos que sólo puedan encomendarse a determinadas personas naturales; | AL136: Inversión | AM136: NO
A137: 128 | B137: 2019 | C137: FDLAN-SAMC013-2019 | D137: Contratos de prestación de servicios | E137: Selección abreviada | F137: Selección abreviada por menor cuantía | G137: “PRESTACIÓN DE SERVICIOS, PARA LA REALIZACIÓN DE LAS MAÑANAS SALUDABLES 2019 EN LA LOCALIDAD ANTONIO NARINO” | H137: Inversión | J137: =IF(ISERROR(VLOOKUP(I137,#REF!,2,FALSE))," ",VLOOKUP(I137,#REF!,2,FALSE)) ->  | K137: =IF(ISERROR(VLOOKUP(I137,#REF!,3,FALSE))," ",VLOOKUP(I137,#REF!,3,FALSE)) ->  | L137: 3-3-1-15-01-11-1434-000 | M137: 900360948-5 | N137: CORPORACIÓN COLECTIVO DUGERATI | O137: 61106878 | T137: 61106878 | V137: 2019-12-20 | AB137: X | AF137: 0 | AG137: 61106878 | AH137: =IF(SUMPRODUCT((A$14:A137=A137)*(B$14:B137=B137)*(C$14:C137=C137))>1,0,1) -> 1 | AI137: Contratos de prestación de servicios | AJ137: Selección abreviada | AK137: =IFERROR(VLOOKUP(F137,Tipo!$C$12:$C$27,1,FALSE),"NO") -> Selección abreviada por menor cuantía | AL137: Inversión | AM137: NO
A138: 129 | B138: 2019 | C138: FDLAN-SAMC-011-2019 | D138: Contratos de prestación de servicios | E138: Selección abreviada | F138: Selección abreviada por menor cuantía | G138: PRESTACION DE SERVICIOS TECNICOS EN METROLOGIA LEGAL PARA LA CORRESPONDIENTE VERIFICACION DE EQUIPOS E INSTRUMENTOS DE MEDICION, COMO PESAS, BALANZAS COMERCIALES Y SURTIDORES DE COMBUSTIBLES DERIVADOS DEL PETROLEO CON EL FIN DE DETERMINAR EL CUMPLIMIENTO DE LAS MEDIDAS Y PESAS LEGALMENTE ESTABLECIDAS EN LA LOCALIDAD DE ANTONIO NARIÑO | H138: Inversión | J138: =IF(ISERROR(VLOOKUP(I138,#REF!,2,FALSE))," ",VLOOKUP(I138,#REF!,2,FALSE)) ->  | K138: =IF(ISERROR(VLOOKUP(I138,#REF!,3,FALSE))," ",VLOOKUP(I138,#REF!,3,FALSE)) ->  | L138: 03-03-01-1507-45-1441-000 | M138: 900515644-9 | N138: LABORATORIO UNIDSALUD SAS | O138: 29274000 | T138: 29274000 | V138: 2019-12-23 | AB138: X | AF138: 0 | AG138: 29274000 | AH138: =IF(SUMPRODUCT((A$14:A138=A138)*(B$14:B138=B138)*(C$14:C138=C138))>1,0,1) -> 1 | AI138: Contratos de prestación de servicios | AJ138: Selección abreviada | AK138: =IFERROR(VLOOKUP(F138,Tipo!$C$12:$C$27,1,FALSE),"NO") -> Selección abreviada por menor cuantía | AL138: Inversión | AM138: NO
A139: 130 | B139: 2019 | C139: FDLAN-LP005-2019 | D139: Contratos de prestación de servicios | E139: Selección abreviada | F139: Selección abreviada por menor cuantía | G139: “PRESTAR LOS SERVICIOS LOGÍSTICOS NECESARIOS PARA EJECUTAR LAS ACTIVIDADES RECREATIVAS PROPIAS PARA EL DESARROLLO DE LOS QUINCE (15) COLECTIVOS BARRIALES DE NIÑOS Y NIÑAS DE LA LOCALIDAD ANTONIO NARIÑO”. | H139: Inversión | J139: =IF(ISERROR(VLOOKUP(I139,#REF!,2,FALSE))," ",VLOOKUP(I139,#REF!,2,FALSE)) ->  | K139: =IF(ISERROR(VLOOKUP(I139,#REF!,3,FALSE))," ",VLOOKUP(I139,#REF!,3,FALSE)) ->  | L139: 3-3-1-15-01-11-1434-000 | M139: 830095614-0 | N139: LA FUNDACION SOCIAL VIVE COLOMBIA | O139: 244570229 | T139: 244570229 | V139: 2019-12-23 | AB139: X | AF139: 0 | AG139: 244570229 | AH139: =IF(SUMPRODUCT((A$14:A139=A139)*(B$14:B139=B139)*(C$14:C139=C139))>1,0,1) -> 1 | AI139: Contratos de prestación de servicios | AJ139: Selección abreviada | AK139: =IFERROR(VLOOKUP(F139,Tipo!$C$12:$C$27,1,FALSE),"NO") -> Selección abreviada por menor cuantía | AL139: Inversión | AM139: NO
A140: 131 | B140: 2019 | C140: FDLAN-SIE-001-2019 | D140: Compraventa de bienes muebles | E140: Selección abreviada | F140: Selección abreviada por menor cuantía | G140: CONTRATAR A MONTO AGOTABLE LA ADQUISICIÓN Y DOTACIÓN DE LOS ELEMENTOS DE APOYO LOGÍSTICO Y DE MODERNIZACIÓN TECNOLÓGICA PARA LAS ORGANIZACIONES COMUNALES (JAC) EN LA LOCALIDAD ANTONIO NARIÑO | H140: Inversión | J140: =IF(ISERROR(VLOOKUP(I140,#REF!,2,FALSE))," ",VLOOKUP(I140,#REF!,2,FALSE)) ->  | K140: =IF(ISERROR(VLOOKUP(I140,#REF!,3,FALSE))," ",VLOOKUP(I140,#REF!,3,FALSE)) ->  | L140: 3-3-1-15-07-45-1442-000 | M140: 900125810-1 | N140: INVERSIONES RIME SAS | O140: 113896321 | T140: 113896321 | V140: 2019-12-27 | AB140: X | AF140: 0 | AG140: 113896321 | AH140: =IF(SUMPRODUCT((A$14:A140=A140)*(B$14:B140=B140)*(C$14:C140=C140))>1,0,1) -> 1 | AI140: Compraventa de bienes muebles | AJ140: Selección abreviada | AK140: =IFERROR(VLOOKUP(F140,Tipo!$C$12:$C$27,1,FALSE),"NO") -> Selección abreviada por menor cuantía | AL140: Inversión | AM140: NO
A141: 132 | B141: 2019 | C141: FDLAN-CMA-004-2019 | D141: Consultoría | E141: Concurso de méritos | F141: No aplica | G141: “ELABORAR LOS ESTUDIOS, DISEÑOS TÉCNICOS GENERALES Y DE DETALLE, ASÍ COMO EL PRESUPUESTO NECESARIOS PARA EJECUTAR EL PROYECTO DE INTERVENCIÓN INTEGRAL PARA LA CONSOLIDACIÓN ARQUITECTÓNICA Y EL REFORZAMIENTO ESTRUCTURAL Y ESCÉNICO DEL TEATRO VILLA MAYOR, SUS OFICINAS Y HALL DE ACCESO, UBICADO EN EL PREDIO CON RUPI Nº 761-17, LOCALIZADO EN LA CARRERA 34 B # 36-26 SUR DEL BARRIO VILLA MAYOR, DE LA LOCALIDAD ANTONIO NARIÑO” | H141: Inversión | J141: =IF(ISERROR(VLOOKUP(I141,#REF!,2,FALSE))," ",VLOOKUP(I141,#REF!,2,FALSE)) ->  | K141: =IF(ISERROR(VLOOKUP(I141,#REF!,3,FALSE))," ",VLOOKUP(I141,#REF!,3,FALSE)) ->  | L141: 3-3-1-15-07-45-1441-000 | M141: 900850480-1 | N141: CONSORCIO NVP | O141: 333284490 | T141: 333284490 | V141: 2019-12-27 | AB141: X | AF141: 0 | AG141: 333284490 | AH141: =IF(SUMPRODUCT((A$14:A141=A141)*(B$14:B141=B141)*(C$14:C141=C141))>1,0,1) -> 1 | AI141: Consultoría | AJ141: Concurso de méritos | AK141: =IFERROR(VLOOKUP(F141,Tipo!$C$12:$C$27,1,FALSE),"NO") -> NO | AL141: Inversión | AM141: NO
A142: 133 | B142: 2019 | C142: FDLAN-MC-009-2019 | D142: Interventoría | E142: Contratación mínima cuantia | F142: No aplica | G142: REALIZAR LA INTERVENTORÍA TÉCNICA, ADMINISTRATIVA, FINANCIERA, Y JURIDICA AL CONTRATO CUYO OBJETO ES “ELABORAR LOS ESTUDIOS, DISEÑOS TÉCNICOS GENERALES Y DE DETALLE, ASÍ COMO EL PRESUPUESTO NECESARIOS PARA EJECUTAR EL PROYECTO DE INTERVENCIÓN INTEGRAL PARA LA CONSOLIDACIÓN ARQUITECTÓNICA Y EL REFORZAMIENTO ESTRUCTURAL Y ESCÉNICO DEL TEATRO VILLA MAYOR, SUS OFICINAS Y HALL DE ACCESO, UBICADO EN EL PREDIO CON RUPI Nº 761-17, LOCALIZADO EN LA CRA.34B No 36-26 SUR DEL BARRIO VILLA MAYOR DE LA LOCALIDAD ANTONIO NARIÑO | H142: Inversión | J142: =IF(ISERROR(VLOOKUP(I142,#REF!,2,FALSE))," ",VLOOKUP(I142,#REF!,2,FALSE)) ->  | K142: =IF(ISERROR(VLOOKUP(I142,#REF!,3,FALSE))," ",VLOOKUP(I142,#REF!,3,FALSE)) ->  | L142: 3-3-1-15-07-45-1441-000 | M142: 900890811-9 | N142: IDEA ARQUITECTURA E INGENIERIA SAS | O142: 17850000 | T142: 17850000 | V142: 2019-12-27 | AB142: X | AF142: 0 | AG142: 17850000 | AH142: =IF(SUMPRODUCT((A$14:A142=A142)*(B$14:B142=B142)*(C$14:C142=C142))>1,0,1) -> 1 | AI142: Interventoría | AJ142: Contratación mínima cuantia | AK142: =IFERROR(VLOOKUP(F142,Tipo!$C$12:$C$27,1,FALSE),"NO") -> NO | AL142: Inversión | AM142: NO
A143: 134 | B143: 2019 | C143: FDLAN-CMA-003-2019 | D143: Interventoría | E143: Concurso de méritos | F143: No aplica | G143: INTERVENTORÍA TÉCNICA, ADMINISTRATIVA, FINANCIERA, SOCIAL, AMBIENTAL, CONTABLE Y JURIDICA AL CONTRATO CUYO OBJETO ES “CONTRATAR POR EL SISTEMA DE PRECIOS UNITARIOS FIJOS, A MONTO AGOTABLE Y SIN FÓRMULA DE REAJUSTE, LAS OBRAS DE MANTENIMIENTO Y RECUPERACIÓN DE LAS ZONAS INFANTILES Y RECREATIVAS DE DIFERENTES PARQUES DE LA LOCALIDAD DE ANTONIO NARIÑO | H143: Inversión | J143: =IF(ISERROR(VLOOKUP(I143,#REF!,2,FALSE))," ",VLOOKUP(I143,#REF!,2,FALSE)) ->  | K143: =IF(ISERROR(VLOOKUP(I143,#REF!,3,FALSE))," ",VLOOKUP(I143,#REF!,3,FALSE)) ->  | L143: 3-3-1-15-02-17-1437-000 | M143: 901351312-7 | N143: CONSORCIO SANTA MARTHA 003 | O143: 89982565 | T143: 89982565 | V143: 2019-12-27 | AB143: X | AF143: 0 | AG143: 89982565 | AH143: =IF(SUMPRODUCT((A$14:A143=A143)*(B$14:B143=B143)*(C$14:C143=C143))>1,0,1) -> 1 | AI143: Interventoría | AJ143: Concurso de méritos | AK143: =IFERROR(VLOOKUP(F143,Tipo!$C$12:$C$27,1,FALSE),"NO") -> NO | AL143: Inversión | AM143: NO
A144: 135 | B144: 2019 | C144: FDLAN-SAMC014-2019 | D144: Contratos de prestación de servicios | E144: Selección abreviada | F144: Selección abreviada por menor cuantía | G144: “PRESTAR EL SERVICIO LOGÍSTICO PARA LA CELEBRACIÓN DEL DÍA DEL ADULTO MAYOR EN LA LOCALIDAD DE ANTONIO NARIÑO” | H144: Inversión | J144: =IF(ISERROR(VLOOKUP(I144,#REF!,2,FALSE))," ",VLOOKUP(I144,#REF!,2,FALSE)) ->  | K144: =IF(ISERROR(VLOOKUP(I144,#REF!,3,FALSE))," ",VLOOKUP(I144,#REF!,3,FALSE)) ->  | L144: 3-3-1-15-01-11-1434-000 | M144: 900528106-4 | N144: YYO S.A..S | O144: 55207071 | T144: 55207071 | V144: 2019-12-27 | AB144: X | AF144: =IF(ISERROR(U144/T144),"-",(U144/T144)) -> 0 | AG144: 55207071 | AH144: =IF(SUMPRODUCT((A$14:A144=A144)*(B$14:B144=B144)*(C$14:C144=C144))>1,0,1) -> 1 | AI144: Contratos de prestación de servicios | AJ144: Selección abreviada | AK144: =IFERROR(VLOOKUP(F144,Tipo!$C$12:$C$27,1,FALSE),"NO") -> Selección abreviada por menor cuantía | AL144: Inversión | AM144: NO
A145: 136 | B145: 2019 | C145: FDLAN-LP003-2019 | D145: Contratos de prestación de servicios | E145: Licitación pública | F145: No aplica | G145: PRESTACIÓN DE SERVICIOS LOGÍSTICOS PARA REALIZAR LAS INICIATIVAS POBLACIONALES, A TRAVES DE LOS CUALES SE GARANTICE EL APOYO TECNICO, PEDAGOGICO Y FINANCIERO PARA EL FORTALECIMIENTO DE LOS PROCESOS SOCIALES DE LA LOCALIDAD ANTONIO NARIÑO | H145: Inversión | J145: =IF(ISERROR(VLOOKUP(I145,#REF!,2,FALSE))," ",VLOOKUP(I145,#REF!,2,FALSE)) ->  | K145: =IF(ISERROR(VLOOKUP(I145,#REF!,3,FALSE))," ",VLOOKUP(I145,#REF!,3,FALSE)) ->  | L145: 3-3-1-15-07-45-1442-000 | M145: 901351617-8 | N145: LA UNIÓN TEMPORAL U.T. COMPARTICIPACIÓN | O145: 249769280 | T145: 249769280 | V145: 2019-12-30 | AB145: X | AF145: 0 | AG145: 249769280 | AH145: =IF(SUMPRODUCT((A$14:A145=A145)*(B$14:B145=B145)*(C$14:C145=C145))>1,0,1) -> 1 | AI145: Contratos de prestación de servicios | AJ145: Licitación pública | AK145: =IFERROR(VLOOKUP(F145,Tipo!$C$12:$C$27,1,FALSE),"NO") -> NO | AL145: Inversión | AM145: NO
A146: 137 | B146: 2019 | C146: FDLAN-LP-006-2019 | D146: Obra pública | E146: Selección abreviada | F146: Selección abreviada por menor cuantía | G146: CONTRATAR POR EL SISTEMA DE PRECIOS UNITARIOS FIJOS, A MONTO AGOTABLE Y SIN FÓRMULA DE REAJUSTE, LAS OBRAS DE MANTENIMIENTO Y RECUPERACIÓN DE LAS ZONAS INFANTILES Y RECREATIVAS DE DIFERENTES PARQUES DE LA LOCALIDAD DE ANTONIO NARIÑO | H146: Inversión | J146: =IF(ISERROR(VLOOKUP(I146,#REF!,2,FALSE))," ",VLOOKUP(I146,#REF!,2,FALSE)) ->  | K146: =IF(ISERROR(VLOOKUP(I146,#REF!,3,FALSE))," ",VLOOKUP(I146,#REF!,3,FALSE)) ->  | L146: 3-3-1-15-02-17-1437-000 | M146: 901351616-0 | N146: CONSORCIO BERLIN 2020 | O146: 810000000 | T146: 810000000 | V146: 2019-12-30 | AB146: X | AF146: 0 | AG146: 810000000 | AH146: =IF(SUMPRODUCT((A$14:A146=A146)*(B$14:B146=B146)*(C$14:C146=C146))>1,0,1) -> 1 | AI146: Obra pública | AJ146: Selección abreviada | AK146: =IFERROR(VLOOKUP(F146,Tipo!$C$12:$C$27,1,FALSE),"NO") -> Selección abreviada por menor cuantía | AL146: Inversión | AM146: NO
A147: 138 | B147: 2019 | C147: CI -128-2019 | D147: Convenios de apoyo y/o convenios de asociación | E147: Contratación directa | G147: “Aunar esfuerzos técnicos, administrativos y económicos entre la Subred Integra de Servicios de Salud Centro Oriente y el FDL de Antonio Nariño para el otorgamiento de dispositivos de asistencia personal (DAP), no incluidas o no cubiertas en el plan obligatorio de salud –POS" | H147: Inversión | J147: =IF(ISERROR(VLOOKUP(I147,#REF!,2,FALSE))," ",VLOOKUP(I147,#REF!,2,FALSE)) ->  | K147: =IF(ISERROR(VLOOKUP(I147,#REF!,3,FALSE))," ",VLOOKUP(I147,#REF!,3,FALSE)) ->  | L147: 3-3-1-15-03-19-1439-000 | M147: 900959051-7 | N147: SUBRED INTEGRADA DE SERVICIOS DE SALUD CENTRO ORIENTE ESE | O147: 92127480 | T147: 92127480 | V147: 2019-12-30 | AB147: X | AF147: 0 | AG147: 92127480 | AH147: =IF(SUMPRODUCT((A$14:A147=A147)*(B$14:B147=B147)*(C$14:C147=C147))>1,0,1) -> 1 | AI147: Convenios de apoyo y/o convenios de asociación | AJ147: Contratación directa | AK147: =IFERROR(VLOOKUP(F147,Tipo!$C$12:$C$27,1,FALSE),"NO") -> NO | AL147: Inversión | AM147: NO
A148: 39017 | B148: 2019 | C148: 39017 | D148: Compraventa de bienes muebles | E148: Selección abreviada | F148: Selección abreviada por menor cuantía | G148: ADQUISICIÓN DE MOTOCICLETAS PARA EL FONDO DE DESARROLLO LOCAL DE ANTONIO NARIÑO EN VIRTUD DEL ACUERDO MARCO DE PRECIOS CCE - 416 - 1 - AMP - 2016. | H148: Inversión | J148: =IF(ISERROR(VLOOKUP(I148,#REF!,2,FALSE))," ",VLOOKUP(I148,#REF!,2,FALSE)) ->  | K148: =IF(ISERROR(VLOOKUP(I148,#REF!,3,FALSE))," ",VLOOKUP(I148,#REF!,3,FALSE)) ->  | L148: 3-3-1-15-03-19-1439-000 | M148: 890301886-1 | N148: Fanalca S.A. | O148: 44867800 | T148: 44867800 | AF148: 0 | AG148: 44867800 | AH148: =IF(SUMPRODUCT((A$14:A148=A148)*(B$14:B148=B148)*(C$14:C148=C148))>1,0,1) -> 1 | AI148: Compraventa de bienes muebles | AJ148: Selección abreviada | AK148: =IFERROR(VLOOKUP(F148,Tipo!$C$12:$C$27,1,FALSE),"NO") -> Selección abreviada por menor cuantía | AL148: Inversión | AM148: NO
A149: 44166 | B149: 2019 | C149: 44166 | D149: Compraventa de bienes muebles | E149: Selección abreviada | F149: Selección abreviada por menor cuantía | G149: ADQUISICION DE VEHICULOS PARA EL FONDO DE DESARROLLO LOCAL DE ANTONIO NARIÑO EN VIRTUD DEL ACUERDO MARCO DE PRECIOS CCE312-1-AMP-2015, PARA FORTALECER LAS ACCIONES DE SEGURIDAD EN LAS LOCALIDADES DE BOGOTA DISTRITO CAPITAL" | H149: Inversión | J149: =IF(ISERROR(VLOOKUP(I149,#REF!,2,FALSE))," ",VLOOKUP(I149,#REF!,2,FALSE)) ->  | K149: =IF(ISERROR(VLOOKUP(I149,#REF!,3,FALSE))," ",VLOOKUP(I149,#REF!,3,FALSE)) ->  | L149: 3-3-1-15-03-19-1439-000 | M149: 860025792 | N149: RENAULT SOCIEDAD DE FABRICACIÓN DE AUTOMOTORES S.A.S. | O149: 237105260 | T149: 237105260 | V149: 2019-12-27 | AF149: 0 | AG149: 237105260 | AH149: =IF(SUMPRODUCT((A$14:A149=A149)*(B$14:B149=B149)*(C$14:C149=C149))>1,0,1) -> 1 | AI149: Compraventa de bienes muebles | AJ149: Selección abreviada | AK149: =IFERROR(VLOOKUP(F149,Tipo!$C$12:$C$27,1,FALSE),"NO") -> Selección abreviada por menor cuantía | AL149: Inversión | AM149: NO
B150: 2019 | D150: Otros gastos | H150: Inversión | I150: 3 | J150: =IF(ISERROR(VLOOKUP(I150,#REF!,2,FALSE))," ",VLOOKUP(I150,#REF!,2,FALSE)) ->  | K150: =IF(ISERROR(VLOOKUP(I150,#REF!,3,FALSE))," ",VLOOKUP(I150,#REF!,3,FALSE)) ->  | L150: 3-3-6-15-01-03-1429-000 | M150: 860066942 | N150: CAJA DE COMPENSACIÓN FAMILIAR COMPENSAR | O150: 609000000 | T150: 609000000 | U150: 426684401 | AF150: 0.7006312003 | AG150: 609000000 | AH150: =IF(SUMPRODUCT((A$14:A150=A150)*(B$14:B150=B150)*(C$14:C150=C150))>1,0,1) -> 1 | AI150: Otros gastos | AJ150: NO | AK150: =IFERROR(VLOOKUP(F150,Tipo!$C$12:$C$27,1,FALSE),"NO") -> NO | AL150: Inversión | AM150: NO
D151: Seguros | H151: Funcionamiento | J151: =IF(ISERROR(VLOOKUP(I151,#REF!,2,FALSE))," ",VLOOKUP(I151,#REF!,2,FALSE)) ->  | K151: =IF(ISERROR(VLOOKUP(I151,#REF!,3,FALSE))," ",VLOOKUP(I151,#REF!,3,FALSE)) ->  | T151: 0 | AF151: - | AG151: 0 | AH151: =IF(SUMPRODUCT((A$14:A151=A151)*(B$14:B151=B151)*(C$14:C151=C151))>1,0,1) -> 0 | AI151: Seguros | AJ151: NO | AK151: =IFERROR(VLOOKUP(F151,Tipo!$C$12:$C$27,1,FALSE),"NO") -> NO | AL151: Funcionamiento | AM151: NO
D152: Otros gastos | H152: Funcionamiento | J152: =IF(ISERROR(VLOOKUP(I152,#REF!,2,FALSE))," ",VLOOKUP(I152,#REF!,2,FALSE)) ->  | K152: =IF(ISERROR(VLOOKUP(I152,#REF!,3,FALSE))," ",VLOOKUP(I152,#REF!,3,FALSE)) ->  | M152: 8300372480 | N152: CODENSA S.A. ESP | O152: 65355870 | T152: 65355870 | U152: 65355870 | AF152: 1 | AG152: 65355870 | AH152: =IF(SUMPRODUCT((A$14:A152=A152)*(B$14:B152=B152)*(C$14:C152=C152))>1,0,1) -> 0 | AI152: Otros gastos | AJ152: NO | AK152: =IFERROR(VLOOKUP(F152,Tipo!$C$12:$C$27,1,FALSE),"NO") -> NO | AL152: Funcionamiento | AM152: NO
D153: Otros gastos | H153: Funcionamiento | J153: =IF(ISERROR(VLOOKUP(I153,#REF!,2,FALSE))," ",VLOOKUP(I153,#REF!,2,FALSE)) ->  | K153: =IF(ISERROR(VLOOKUP(I153,#REF!,3,FALSE))," ",VLOOKUP(I153,#REF!,3,FALSE)) ->  | N153: PAGO HONORARIOS EDILES | O153: 597994152 | T153: 597994152 | U153: 548161306 | AD153: X | AF153: 0.9166666667 | AG153: 597994152 | AH153: =IF(SUMPRODUCT((A$14:A153=A153)*(B$14:B153=B153)*(C$14:C153=C153))>1,0,1) -> 0 | AI153: Otros gastos | AJ153: NO | AK153: =IFERROR(VLOOKUP(F153,Tipo!$C$12:$C$27,1,FALSE),"NO") -> NO | AL153: Funcionamiento | AM153: NO
D154: Otros gastos | H154: Funcionamiento | J154: =IF(ISERROR(VLOOKUP(I154,#REF!,2,FALSE))," ",VLOOKUP(I154,#REF!,2,FALSE)) ->  | K154: =IF(ISERROR(VLOOKUP(I154,#REF!,3,FALSE))," ",VLOOKUP(I154,#REF!,3,FALSE)) ->  | M154: 9000092385 | N154: UNE EPM TELECOMUNICACIONES S.A. | O154: 18768890 | T154: 18768890 | U154: 18768890 | AD154: X | AF154: 1 | AG154: 18768890 | AH154: =IF(SUMPRODUCT((A$14:A154=A154)*(B$14:B154=B154)*(C$14:C154=C154))>1,0,1) -> 0 | AI154: Otros gastos | AJ154: NO | AK154: =IFERROR(VLOOKUP(F154,Tipo!$C$12:$C$27,1,FALSE),"NO") -> NO | AL154: Funcionamiento | AM154: NO
D155: Otros gastos | G155: Compra certificado de firma digital de presupuesto | H155: Inversión | J155: =IF(ISERROR(VLOOKUP(I155,#REF!,2,FALSE))," ",VLOOKUP(I155,#REF!,2,FALSE)) ->  | K155: =IF(ISERROR(VLOOKUP(I155,#REF!,3,FALSE))," ",VLOOKUP(I155,#REF!,3,FALSE)) ->  | M155: 860031282 | N155: GESTIÓN DE SEGURIDAD ELECTRONICA S.A. | O155: 226100 | T155: 226100 | U155: 226100 | AD155: X | AF155: 1 | AG155: 226100 | AH155: =IF(SUMPRODUCT((A$14:A155=A155)*(B$14:B155=B155)*(C$14:C155=C155))>1,0,1) -> 0 | AI155: Otros gastos | AJ155: NO | AK155: =IFERROR(VLOOKUP(F155,Tipo!$C$12:$C$27,1,FALSE),"NO") -> NO | AL155: Inversión | AM155: NO
D156: Otros gastos | H156: Inversión | J156: =IF(ISERROR(VLOOKUP(I156,#REF!,2,FALSE))," ",VLOOKUP(I156,#REF!,2,FALSE)) ->  | K156: =IF(ISERROR(VLOOKUP(I156,#REF!,3,FALSE))," ",VLOOKUP(I156,#REF!,3,FALSE)) ->  | M156: 860011153 | N156: ARL POSITIVA | O156: 2863300 | T156: 2863300 | U156: 2863300 | AD156: X | AF156: 1 | AG156: 2863300 | AH156: =IF(SUMPRODUCT((A$14:A156=A156)*(B$14:B156=B156)*(C$14:C156=C156))>1,0,1) -> 0 | AI156: Otros gastos | AJ156: NO | AK156: =IFERROR(VLOOKUP(F156,Tipo!$C$12:$C$27,1,FALSE),"NO") -> NO | AL156: Inversión | AM156: NO
A157: 38879 | B157: 2019 | E157: Concurso de méritos | G157: CONTRATAR LA ADQUISICIÓN DE CONSUMIBLES DE IMPRESIÓN PARA ATENDER LAS NECESIDADES DE LAS DIFERENTES DEPENDENCIAS DE LA ALCALDÍA LOCAL DE ANTONIO NARIÑO. | H157: Funcionamiento | J157: =IF(ISERROR(VLOOKUP(I157,#REF!,2,FALSE))," ",VLOOKUP(I157,#REF!,2,FALSE)) ->  | K157: =IF(ISERROR(VLOOKUP(I157,#REF!,3,FALSE))," ",VLOOKUP(I157,#REF!,3,FALSE)) ->  | L157: 3-1-2-02-01-02-0002-000 | M157: 860053274-9 | N157: GRUPO LOS LAGOS | O157: 12497040 | T157: 12497040 | U157: 12947040 | V157: 2019-06-20 | AD157: X | AF157: 1.036008527 | AG157: 12497040 | AH157: =IF(SUMPRODUCT((A$14:A157=A157)*(B$14:B157=B157)*(C$14:C157=C157))>1,0,1) -> 1 | AI157: NO | AJ157: Concurso de méritos | AK157: =IFERROR(VLOOKUP(F157,Tipo!$C$12:$C$27,1,FALSE),"NO") -> NO | AL157: Funcionamiento | AM157: NO
A158: 38886 | B158: 2019 | E158: Concurso de méritos | G158: CONTRATAR LA ADQUISICIÓN DE CONSUMIBLES DE IMPRESIÓN PARA ATENDER LAS NECESIDADES DE LAS DIFERENTES DEPENDENCIAS DE LA ALCALDÍA LOCAL DE ANTONIO NARIÑO. | H158: Funcionamiento | J158: =IF(ISERROR(VLOOKUP(I158,#REF!,2,FALSE))," ",VLOOKUP(I158,#REF!,2,FALSE)) ->  | K158: =IF(ISERROR(VLOOKUP(I158,#REF!,3,FALSE))," ",VLOOKUP(I158,#REF!,3,FALSE)) ->  | L158: 3-1-2-02-01-02-0002-000 | M158: 900157340-9 | N158: Alianza Estratégica Outsourcing & Suministros S.A.S | O158: 529245 | T158: 529245 | U158: 529245 | V158: 2019-06-22 | AD158: X | AF158: 1 | AG158: 529245 | AH158: =IF(SUMPRODUCT((A$14:A158=A158)*(B$14:B158=B158)*(C$14:C158=C158))>1,0,1) -> 1 | AI158: NO | AJ158: Concurso de méritos | AK158: =IFERROR(VLOOKUP(F158,Tipo!$C$12:$C$27,1,FALSE),"NO") -> NO | AL158: Funcionamiento | AM158: NO
A159: 38888 | B159: 2019 | E159: Concurso de méritos | G159: CONTRATAR LA ADQUISICIÓN DE CONSUMIBLES DE IMPRESIÓN PARA ATENDER LAS NECESIDADES DE LAS DIFERENTES DEPENDENCIAS DE LA ALCALDÍA LOCAL DE ANTONIO NARIÑO. | H159: Funcionamiento | J159: =IF(ISERROR(VLOOKUP(I159,#REF!,2,FALSE))," ",VLOOKUP(I159,#REF!,2,FALSE)) ->  | K159: =IF(ISERROR(VLOOKUP(I159,#REF!,3,FALSE))," ",VLOOKUP(I159,#REF!,3,FALSE)) ->  | L159: 3-1-2-02-01-02-002-000 | M159: 830001338-1 | N159: Sumimas S.A.S | O159: 7891028 | T159: 7891028 | U159: 10432000 | V159: 2019-06-20 | AF159: 1.322007728 | AG159: 7891028 | AH159: =IF(SUMPRODUCT((A$14:A159=A159)*(B$14:B159=B159)*(C$14:C159=C159))>1,0,1) -> 1 | AI159: NO | AJ159: Concurso de méritos | AK159: =IFERROR(VLOOKUP(F159,Tipo!$C$12:$C$27,1,FALSE),"NO") -> NO | AL159: Funcionamiento | AM159: NO
A160: 38973 | B160: 2019 | E160: Concurso de méritos | G160: CONTRATAR EL SUMINISTRO DE COMBUSTIBLE PARA LOS VEHICULOS QUE COMPONEN EL PARQUE AUTOMOTOR DE LA ALCALDIA ANTONIO NARIÑOY LOS UE A CUALQUIER TITULO LLEGUE A ADQUIRIR | H160: Funcionamiento | J160: =IF(ISERROR(VLOOKUP(I160,#REF!,2,FALSE))," ",VLOOKUP(I160,#REF!,2,FALSE)) ->  | K160: =IF(ISERROR(VLOOKUP(I160,#REF!,3,FALSE))," ",VLOOKUP(I160,#REF!,3,FALSE)) ->  | L160: 3-1-2-02-01-02-0003-000 | M160: 900459737-5 | N160: GRUPO EDS AUTOGAS | O160: 14000000 | T160: 14000000 | U160: 7256196 | V160: 2019-06-27 | AF160: 0.5182997143 | AG160: 14000000 | AH160: =IF(SUMPRODUCT((A$14:A160=A160)*(B$14:B160=B160)*(C$14:C160=C160))>1,0,1) -> 1 | AI160: NO | AJ160: Concurso de méritos | AK160: =IFERROR(VLOOKUP(F160,Tipo!$C$12:$C$27,1,FALSE),"NO") -> NO | AL160: Funcionamiento | AM160: NO
A161: 39721 | B161: 2019 | E161: Contratación directa | G161: CONTRATAR LA ADQUISICION DE CONSUMIBLES DE IMPRESION PARA ATENDER LAS NECESIDADES DE LAS DIFERENTES DEPENDENCIAS DE LA ALCALDIA LOCALDE ANTONIO NARIÑO | H161: Funcionamiento | J161: =IF(ISERROR(VLOOKUP(I161,#REF!,2,FALSE))," ",VLOOKUP(I161,#REF!,2,FALSE)) ->  | K161: =IF(ISERROR(VLOOKUP(I161,#REF!,3,FALSE))," ",VLOOKUP(I161,#REF!,3,FALSE)) ->  | L161: 3-1-2-02-01-02-0002-000 | M161: 830001338-1 | N161: Sumimas S.A.S | O161: 2541040 | T161: 2541040 | U161: 2541040 | V161: 2019-08-01 | AF161: 1 | AG161: 2541040 | AH161: =IF(SUMPRODUCT((A$14:A161=A161)*(B$14:B161=B161)*(C$14:C161=C161))>1,0,1) -> 1 | AI161: NO | AJ161: Contratación directa | AK161: =IFERROR(VLOOKUP(F161,Tipo!$C$12:$C$27,1,FALSE),"NO") -> NO | AL161: Funcionamiento | AM161: NO
B162: 2019 | D162: Otros gastos | H162: Funcionamiento | J162: =IF(ISERROR(VLOOKUP(I162,#REF!,2,FALSE))," ",VLOOKUP(I162,#REF!,2,FALSE)) ->  | K162: =IF(ISERROR(VLOOKUP(I162,#REF!,3,FALSE))," ",VLOOKUP(I162,#REF!,3,FALSE)) ->  | L162: 3-1-2-02-02-03-0004-004 | M162: 899999115 | N162: EMPRESA DE TELECOMUNICACIONES DE BOGOTA SA ESP | O162: 16525830 | T162: 16525830 | U162: 16525830 | AD162: X | AF162: 1 | AG162: 16525830 | AH162: =IF(SUMPRODUCT((A$14:A162=A162)*(B$14:B162=B162)*(C$14:C162=C162))>1,0,1) -> 0 | AI162: Otros gastos | AJ162: NO | AK162: =IFERROR(VLOOKUP(F162,Tipo!$C$12:$C$27,1,FALSE),"NO") -> NO | AL162: Funcionamiento | AM162: NO
B163: 2019 | D163: Otros gastos | H163: Funcionamiento | J163: =IF(ISERROR(VLOOKUP(I163,#REF!,2,FALSE))," ",VLOOKUP(I163,#REF!,2,FALSE)) ->  | K163: =IF(ISERROR(VLOOKUP(I163,#REF!,3,FALSE))," ",VLOOKUP(I163,#REF!,3,FALSE)) ->  | L163: 3-1-2-02-02-04-0001-002 | M163: 899999094 | N163: EMPRESA DE ACUEDUCTO Y ALCANTARILLADO DE BOGOTA ESP | O163: 17348119 | T163: 17348119 | U163: 16727989 | AD163: X | AF163: 0.9642537615 | AG163: 17348119 | AH163: =IF(SUMPRODUCT((A$14:A163=A163)*(B$14:B163=B163)*(C$14:C163=C163))>1,0,1) -> 0 | AI163: Otros gastos | AJ163: NO | AK163: =IFERROR(VLOOKUP(F163,Tipo!$C$12:$C$27,1,FALSE),"NO") -> NO | AL163: Funcionamiento | AM163: NO
B164: 2019 | D164: Otros gastos | H164: Funcionamiento | J164: =IF(ISERROR(VLOOKUP(I164,#REF!,2,FALSE))," ",VLOOKUP(I164,#REF!,2,FALSE)) ->  | K164: =IF(ISERROR(VLOOKUP(I164,#REF!,3,FALSE))," ",VLOOKUP(I164,#REF!,3,FALSE)) ->  | L164: 3-1-2-02-02-04-0001-002 | M164: 900520484 | N164: PATRIMONIOS AUTONOMOS CREDICORP CAPITAL FIDUCIARIA S A | O164: 12451620 | T164: 12451620 | U164: 12212600 | AF164: 0.9808041042 | AG164: 12451620 | AH164: =IF(SUMPRODUCT((A$14:A164=A164)*(B$14:B164=B164)*(C$14:C164=C164))>1,0,1) -> 0 | AI164: Otros gastos | AJ164: NO | AK164: =IFERROR(VLOOKUP(F164,Tipo!$C$12:$C$27,1,FALSE),"NO") -> NO | AL164: Funcionamiento | AM164: NO
B165: 2019 | D165: Otros gastos | H165: Funcionamiento | J165: =IF(ISERROR(VLOOKUP(I165,#REF!,2,FALSE))," ",VLOOKUP(I165,#REF!,2,FALSE)) ->  | K165: =IF(ISERROR(VLOOKUP(I165,#REF!,3,FALSE))," ",VLOOKUP(I165,#REF!,3,FALSE)) ->  | L165: 3-1-2-02-02-01-0006-001 | N165: PAGO NOTIFICADORES | O165: 8409900 | T165: 8409900 | U165: 8409900 | AF165: 1 | AG165: 8409900 | AH165: =IF(SUMPRODUCT((A$14:A165=A165)*(B$14:B165=B165)*(C$14:C165=C165))>1,0,1) -> 0 | AI165: Otros gastos | AJ165: NO | AK165: =IFERROR(VLOOKUP(F165,Tipo!$C$12:$C$27,1,FALSE),"NO") -> NO | AL165: Funcionamiento | AM165: NO
A166: 108 | B166: 2018 | D166: Otros gastos | G166: PRESTACIÓN DEL SERVICIO DE MANTENIMIENTO CORRECTIVO Y PREVENTIVO, CON SUMINISTRO DE REPUESTOS ORIGINALES Y MANO DE OBRA, PARA EL PARQUE AUTOMOTOR DE PROPIEDAD DEL FONDO DE DESARROLLO LOCAL DE ANTONIO NARIÑO. REEMPLAZA EL RP NO. 683 DEL 2017 POR CONSTITUIRSE COMO OBLIGACIONES POR PAGAR. REMPLAZA EL RP N. 134 DEL 2018 POR CONSTITUIRSE OBLIGACIONES POR PAGAR | H166: Funcionamiento | I166: No aplica | J166: =IF(ISERROR(VLOOKUP(I166,#REF!,2,FALSE))," ",VLOOKUP(I166,#REF!,2,FALSE)) ->  | K166: =IF(ISERROR(VLOOKUP(I166,#REF!,3,FALSE))," ",VLOOKUP(I166,#REF!,3,FALSE)) ->  | L166: 3-1-8-02-02-05-0001-000 | N166: AMERICANA AUTOMOTRIZ SAS | O166: 13277700 | T166: 13277700 | U166: 13277700 | AD166: X | AF166: 1 | AG166: 13277700 | AH166: =IF(SUMPRODUCT((A$14:A166=A166)*(B$14:B166=B166)*(C$14:C166=C166))>1,0,1) -> 1 | AI166: Otros gastos | AJ166: NO | AK166: =IFERROR(VLOOKUP(F166,Tipo!$C$12:$C$27,1,FALSE),"NO") -> NO | AL166: Funcionamiento | AM166: NO
A167: 138 | B167: 2018 | D167: Obra pública | E167: Licitación pública | F167: No aplica | G167: CONSERVACIÓN Y CONSTRUCCIÓN DE PUENTES PEATONALES SOBRE CUERPOS DE AGUA EN LA LOCALIDAD ANTONIO NARIÑO | H167: Inversión | I167: 17 | J167: =IF(ISERROR(VLOOKUP(I167,#REF!,2,FALSE))," ",VLOOKUP(I167,#REF!,2,FALSE)) ->  | K167: =IF(ISERROR(VLOOKUP(I167,#REF!,3,FALSE))," ",VLOOKUP(I167,#REF!,3,FALSE)) ->  | L167: 3-3-1-15-02-17-1438-000 | N167: CONSORCIO PUENTES SAN ANTONIO | O167: 325000000 | T167: 325000000 | AC167: X | AF167: 0 | AG167: 325000000 | AH167: =IF(SUMPRODUCT((A$14:A167=A167)*(B$14:B167=B167)*(C$14:C167=C167))>1,0,1) -> 1 | AI167: Obra pública | AJ167: Licitación pública | AK167: =IFERROR(VLOOKUP(F167,Tipo!$C$12:$C$27,1,FALSE),"NO") -> NO | AL167: Inversión | AM167: NO
A168: 141 | B168: 2018 | G168: prestar el servicio de apoyo logistico para la organizacion y realizacion de eventos denominados "NOCHES DEL RECUERDO" de la localidad Antonio Nariño | H168: Inversión | I168: 11 | J168: =IF(ISERROR(VLOOKUP(I168,#REF!,2,FALSE))," ",VLOOKUP(I168,#REF!,2,FALSE)) ->  | K168: =IF(ISERROR(VLOOKUP(I168,#REF!,3,FALSE))," ",VLOOKUP(I168,#REF!,3,FALSE)) ->  | L168: 3-3-1-15-01-11-1434-000 | N168: OPEN GROUP BTL SAS | O168: 105358549 | T168: 105358549 | AC168: X | AF168: 0 | AG168: 105358549 | AH168: =IF(SUMPRODUCT((A$14:A168=A168)*(B$14:B168=B168)*(C$14:C168=C168))>1,0,1) -> 1 | AI168: NO | AJ168: NO | AK168: =IFERROR(VLOOKUP(F168,Tipo!$C$12:$C$27,1,FALSE),"NO") -> NO | AL168: Inversión | AM168: NO
A169: 132 | B169: 2018 | G169: ADICION AL CONTRATO 132 DE 2018 CUYO OBJETO ES REALIZAR INTERVENTORIA TECNICA, ADMINISTRATIVA , FINANCIERA,CONTABLE Y JURIDICA AL CONTRTO CUYO OBJETO ES REALIZAR A TRAVES DEL SISTEMA DE PRECIOS UNITARIOS FIJOS SIN FORMULA DE REAJUSTE CONSERVACION DE LA MALLA VIAL LOCAL Y DEL ESPACIO PUBLICO DE LA LOCALIDAD DE ANTONIO NARIÑO | H169: Inversión | I169: 17 | J169: =IF(ISERROR(VLOOKUP(I169,#REF!,2,FALSE))," ",VLOOKUP(I169,#REF!,2,FALSE)) ->  | K169: =IF(ISERROR(VLOOKUP(I169,#REF!,3,FALSE))," ",VLOOKUP(I169,#REF!,3,FALSE)) ->  | L169: 3-3-1-15-02-17-1438-000 | N169: CONSORCIO INTERVIAL LOCAL | O169: 75000000 | T169: 75000000 | AC169: X | AF169: 0 | AG169: 75000000 | AH169: =IF(SUMPRODUCT((A$14:A169=A169)*(B$14:B169=B169)*(C$14:C169=C169))>1,0,1) -> 1 | AI169: NO | AJ169: NO | AK169: =IFERROR(VLOOKUP(F169,Tipo!$C$12:$C$27,1,FALSE),"NO") -> NO | AL169: Inversión | AM169: NO
A170: 124 | B170: 2018 | G170: CONTRATAR BAJO LA MODALIDAD DE PRECIOS UNITARIOS FIJOS SIN FORMULA DE REAJUSTE Y A MONTO AGOTABLE LAS OBRAS DE REPARACIONES LOCATIVAS DEL JARDIN INFANTIL MUNDO NUEVO PRESENTE EN LA LOCALIDAD ANTONIO NARIÑO | H170: Inversión | I170: 2 | J170: =IF(ISERROR(VLOOKUP(I170,#REF!,2,FALSE))," ",VLOOKUP(I170,#REF!,2,FALSE)) ->  | K170: =IF(ISERROR(VLOOKUP(I170,#REF!,3,FALSE))," ",VLOOKUP(I170,#REF!,3,FALSE)) ->  | L170: 3-3-1-15-01-02-1287-000 | N170: CONSTRUCCIONES Y VALORES CONSTRUVALORES SAS | O170: 33232483 | T170: 33232483 | AD170: X | AF170: 0 | AG170: 33232483 | AH170: =IF(SUMPRODUCT((A$14:A170=A170)*(B$14:B170=B170)*(C$14:C170=C170))>1,0,1) -> 1 | AI170: NO | AJ170: NO | AK170: =IFERROR(VLOOKUP(F170,Tipo!$C$12:$C$27,1,FALSE),"NO") -> NO | AL170: Inversión | AM170: NO
A171: 4 | B171: 2019 | C171: 4 | D171: Otros | F171: No aplica | G171: Beneficiar a 700 personas con Subsidio Tipo C, de la localidad de Antonio Nariño Vigencia 2019, el cual contempla una cobertura programada mensual Setecientos (700) cupos, con sus costos operativos | H171: Inversión | I171: 3 | J171: =IF(ISERROR(VLOOKUP(I171,#REF!,2,FALSE))," ",VLOOKUP(I171,#REF!,2,FALSE)) ->  | K171: =IF(ISERROR(VLOOKUP(I171,#REF!,3,FALSE))," ",VLOOKUP(I171,#REF!,3,FALSE)) ->  | L171: 3-3-1-15-01-03-1429-000 | N171: CAJA DE COMPENSACION FAMILIAR - COMPENSAR | O171: 510000000 | T171: 510000000 | U171: 510000000 | AD171: X | AF171: 1 | AG171: 510000000 | AH171: =IF(SUMPRODUCT((A$14:A171=A171)*(B$14:B171=B171)*(C$14:C171=C171))>1,0,1) -> 1 | AI171: Otros | AJ171: NO | AK171: =IFERROR(VLOOKUP(F171,Tipo!$C$12:$C$27,1,FALSE),"NO") -> NO | AL171: Inversión | AM171: NO
A172: 2 | B172: 2019 | C172: 2 | D172: Otros gastos | F172: No aplica | G172: Servicios de seguros de Salud ediles | H172: Funcionamiento | I172: No aplica | J172: =IF(ISERROR(VLOOKUP(I172,#REF!,2,FALSE))," ",VLOOKUP(I172,#REF!,2,FALSE)) ->  | K172: =IF(ISERROR(VLOOKUP(I172,#REF!,3,FALSE))," ",VLOOKUP(I172,#REF!,3,FALSE)) ->  | L172: 3-1-8-02-02-05-0001-000 | N172: ENTIDAD PROMOTORA DE SALUD FAMISANAR CAFAM COLSUBSIDIO LIMITADA | O172: 23062800 | T172: 23062800 | U172: 23062800 | AD172: X | AF172: 1 | AG172: =T172 -> 23062800 | AH172: =IF(SUMPRODUCT((A$14:A172=A172)*(B$14:B172=B172)*(C$14:C172=C172))>1,0,1) -> 1 | AI172: Otros gastos | AJ172: NO | AK172: =IFERROR(VLOOKUP(F172,Tipo!$C$12:$C$27,1,FALSE),"NO") -> NO | AL172: Funcionamiento | AM172: NO
A173: 109 | B173: 2018 | C173: 109 | D173: Contratos de prestación de servicios | E173: Contratación directa | F173: Prestación de servicios profesionales y de apoyo a la gestión, o para la ejecución de trabajos artísticos que sólo puedan encomendarse a determinadas personas naturales; | G173: SERVICIO DE MANTENIMIENTO PREVENTI-VO Y CORRECTIVO, CON SUMINISTRO DE REPUESTOS Y MANO DE OBRA PARA EL PARQUE AUTOMOTOR DE PROPIEDAD DEL FONDO DE DESARROLLO LOCAL DE AN-TONIO NARIÑO. | H173: Funcionamiento | I173: No aplica | J173: =IF(ISERROR(VLOOKUP(I173,#REF!,2,FALSE))," ",VLOOKUP(I173,#REF!,2,FALSE)) ->  | K173: =IF(ISERROR(VLOOKUP(I173,#REF!,3,FALSE))," ",VLOOKUP(I173,#REF!,3,FALSE)) ->  | L173: 3-1-8-02-02-05-0001-000 | N173: Centro Car 19 Ltda | O173: 21800000 | T173: 21800000 | U173: 21283000 | AD173: X | AF173: 0.9762844037 | AG173: 21800000 | AH173: =IF(SUMPRODUCT((A$14:A173=A173)*(B$14:B173=B173)*(C$14:C173=C173))>1,0,1) -> 1 | AI173: Contratos de prestación de servicios | AJ173: Contratación directa | AK173: =IFERROR(VLOOKUP(F173,Tipo!$C$12:$C$27,1,FALSE),"NO") -> Prestación de servicios profesionales y de apoyo a la gestión, o para la ejecución de trabajos artísticos que sólo puedan encomendarse a determinadas personas naturales; | AL173: Funcionamiento | AM173: NO
A174: 32083 | B174: 2018 | C174: 32083 | G174: MANTENIMIENTO, SOPORTES Y RECARGA DE LOS EXTINTORES DE LA ALCALDÍA LOCAL DE ANTONIO NARIÑO, TEATRO VILLA MAYOR E INSPECCIONES DE POLICÍA | H174: Funcionamiento | I174: No aplica | J174: =IF(ISERROR(VLOOKUP(I174,#REF!,2,FALSE))," ",VLOOKUP(I174,#REF!,2,FALSE)) ->  | K174: =IF(ISERROR(VLOOKUP(I174,#REF!,3,FALSE))," ",VLOOKUP(I174,#REF!,3,FALSE)) ->  | L174: 3-1-8-02-02-05-0001-000 | N174: COLTECH S A S | O174: 3893365 | T174: 3893365 | U174: 3893365 | AD174: X | AF174: 1 | AG174: 3893365 | AH174: =IF(SUMPRODUCT((A$14:A174=A174)*(B$14:B174=B174)*(C$14:C174=C174))>1,0,1) -> 1 | AI174: NO | AJ174: NO | AK174: =IFERROR(VLOOKUP(F174,Tipo!$C$12:$C$27,1,FALSE),"NO") -> NO | AL174: Funcionamiento | AM174: NO
A175: 101 | B175: 2018 | C175: 101 | D175: Contratos de prestación de servicios | E175: Contratación mínima cuantia | F175: No aplica | G175: CONTRATAR EL SERVICIO DE OUTSOURCING DE SIETE (7) MAQUINAS FOTOCOPIADORAS MULTIFUNCIONALES, INCLUIDO SU MANTENIMIENTO PREVENTIVO Y CORRECTIVO, SOPORTE TÉCNICO, REPUESTOS E INSUMOS REQUERIDOS POR LAS MISMAS Y DISPOSICIÓN FINAL DE LOS MISMOS, PARA SER INSTALADAS EN LAS DIFERENTES DEPENDENCIAS DE LA ALCALDÍA LOCAL DE ANTONIO NARIÑO, DE CONFORMIDAD CON LAS ESPECIFICACIONES TÉCNICAS | H175: Funcionamiento | I175: No aplica | J175: =IF(ISERROR(VLOOKUP(I175,#REF!,2,FALSE))," ",VLOOKUP(I175,#REF!,2,FALSE)) ->  | K175: =IF(ISERROR(VLOOKUP(I175,#REF!,3,FALSE))," ",VLOOKUP(I175,#REF!,3,FALSE)) ->  | L175: 3-1-8-02-02-05-0001-000 | N175: COPIERS MARKET E.U. | O175: 10780000 | T175: 10780000 | U175: 9800000 | AD175: X | AF175: 0.9090909091 | AG175: 10780000 | AH175: =IF(SUMPRODUCT((A$14:A175=A175)*(B$14:B175=B175)*(C$14:C175=C175))>1,0,1) -> 1 | AI175: Contratos de prestación de servicios | AJ175: Contratación mínima cuantia | AK175: =IFERROR(VLOOKUP(F175,Tipo!$C$12:$C$27,1,FALSE),"NO") -> NO | AL175: Funcionamiento | AM175: NO
A176: 1 | B176: 2019 | C176: 1 | G176: PAGO SALUD EDILES DICIEMBRE 2019 | H176: Funcionamiento | I176: No aplica | J176: =IF(ISERROR(VLOOKUP(I176,#REF!,2,FALSE))," ",VLOOKUP(I176,#REF!,2,FALSE)) ->  | K176: =IF(ISERROR(VLOOKUP(I176,#REF!,3,FALSE))," ",VLOOKUP(I176,#REF!,3,FALSE)) ->  | L176: 3-1-2-02-02-02-0001-006 | N176: ENTIDAD PROMOTORA DE SALUD SANITAS S.A. | O176: 11541400 | T176: 11541400 | U176: 10641500 | AD176: X | AF176: 0.9220285234 | AG176: 11541400 | AH176: =IF(SUMPRODUCT((A$14:A176=A176)*(B$14:B176=B176)*(C$14:C176=C176))>1,0,1) -> 1 | AI176: NO | AJ176: NO | AK176: =IFERROR(VLOOKUP(F176,Tipo!$C$12:$C$27,1,FALSE),"NO") -> NO | AL176: Funcionamiento | AM176: NO
A177: 10 | B177: 2019 | C177: 10 | G177: PAGO DE SALUD EDILES 2019 | H177: Funcionamiento | I177: No aplica | J177: =IF(ISERROR(VLOOKUP(I177,#REF!,2,FALSE))," ",VLOOKUP(I177,#REF!,2,FALSE)) ->  | K177: =IF(ISERROR(VLOOKUP(I177,#REF!,3,FALSE))," ",VLOOKUP(I177,#REF!,3,FALSE)) ->  | L177: 3-1-2-02-02-02-0001-006 | N177: EPS Y MEDICINA PREPAGADA SURAMERICANA S.A. | O177: 17760700 | T177: 17760700 | U177: 15980900 | AD177: X | AF177: 0.8997899858 | AG177: 17760700 | AH177: =IF(SUMPRODUCT((A$14:A177=A177)*(B$14:B177=B177)*(C$14:C177=C177))>1,0,1) -> 1 | AI177: =IFERROR(VLOOKUP(D177,tipo,1,FALSE),"NO") -> NO | AJ177: =IFERROR(VLOOKUP(E177,modal,1,FALSE),"NO") -> NO | AK177: =IFERROR(VLOOKUP(F177,Tipo!$C$12:$C$27,1,FALSE),"NO") -> NO | AL177: =IFERROR(VLOOKUP(H177,afectacion,1,FALSE),"NO") -> Funcionamiento | AM177: =IFERROR(VLOOKUP(I177,programa,1,FALSE),"NO") -> NO
A178: 116 | B178: 2018 | C178: 116 | G178: ADQUISICIÓN DE CARPETAS Y CAJAS DE ARCHIVO PARA DESARROLLAR LAS ACTIVIDADES DE GESTIÓN DOCUMENTAL DEL FONDO DE DESARROLLO LOCAL DE ANTONIO NARIÑO. | H178: Funcionamiento | I178: No aplica | J178: =IF(ISERROR(VLOOKUP(I178,#REF!,2,FALSE))," ",VLOOKUP(I178,#REF!,2,FALSE)) ->  | K178: =IF(ISERROR(VLOOKUP(I178,#REF!,3,FALSE))," ",VLOOKUP(I178,#REF!,3,FALSE)) ->  | L178: 3-1-8-02-01-04-0000-000 | N178: FORMARCHIVOS Y SUMINISTROS SAS | O178: 4031720 | T178: =+O178+Q178+S178 -> 4031720 | U178: 4031720 | AD178: X | AF178: 1 | AG178: 4031720 | AH178: =IF(SUMPRODUCT((A$14:A178=A178)*(B$14:B178=B178)*(C$14:C178=C178))>1,0,1) -> 1 | AI178: NO | AJ178: NO | AK178: =IFERROR(VLOOKUP(F178,Tipo!$C$12:$C$27,1,FALSE),"NO") -> NO | AL178: Funcionamiento | AM178: NO
A179: 32918 | B179: 2018 | C179: 32918 | G179: CONTRATAR LA ADQUISICIÓN DE CONSUMIBLES DE IMPRESIÓN PARA ATENDER LAS NECESIDADES DE LAS DIFERENTES DEPENDENCIAS DE LA ALCALDÍA LOCAL DE ANTONIO NARIÑO | H179: Funcionamiento | I179: No aplica | J179: =IF(ISERROR(VLOOKUP(I179,#REF!,2,FALSE))," ",VLOOKUP(I179,#REF!,2,FALSE)) ->  | K179: =IF(ISERROR(VLOOKUP(I179,#REF!,3,FALSE))," ",VLOOKUP(I179,#REF!,3,FALSE)) ->  | L179: 3-1-8-02-01-02-0000-000 | N179: GRUPO LOS LAGOS S.A.S | O179: 5991150 | T179: 5991150 | U179: 5991150 | AD179: X | AF179: 1 | AG179: 5991150 | AH179: =IF(SUMPRODUCT((A$14:A179=A179)*(B$14:B179=B179)*(C$14:C179=C179))>1,0,1) -> 1 | AI179: NO | AJ179: NO | AK179: =IFERROR(VLOOKUP(F179,Tipo!$C$12:$C$27,1,FALSE),"NO") -> NO | AL179: Funcionamiento | AM179: NO
A180: 100 | B180: 2018 | C180: 100 | G180: CELEBRAR UN CONTRATO DE ARRENDAMIENTO DE UNA BODEGA PARA USO INSTITUCIONAL EXCLUSIVO, DE LA ALCALDIA LOCAL DE ANTONIO NARIÑO. REMPLAZA EL RP N. 406 DEL 2018 POR CONSTITUIRSE OBLIGACIONES POR PAGAR | H180: Funcionamiento | I180: No aplica | J180: =IF(ISERROR(VLOOKUP(I180,#REF!,2,FALSE))," ",VLOOKUP(I180,#REF!,2,FALSE)) ->  | K180: =IF(ISERROR(VLOOKUP(I180,#REF!,3,FALSE))," ",VLOOKUP(I180,#REF!,3,FALSE)) ->  | L180: 3-1-8-02-02-01-0000-000 | N180: HUGO BUSTOS LIEVANO | O180: 3166814 | T180: 3166814 | U180: 3166814 | AD180: X | AF180: 1 | AG180: 3166814 | AH180: =IF(SUMPRODUCT((A$14:A180=A180)*(B$14:B180=B180)*(C$14:C180=C180))>1,0,1) -> 1 | AI180: NO | AJ180: NO | AK180: =IFERROR(VLOOKUP(F180,Tipo!$C$12:$C$27,1,FALSE),"NO") -> NO | AL180: Funcionamiento | AM180: NO
A181: 100 | B181: 2018 | C181: 100 | G181: ADICION AL CONTRATO DE ARRENDAMIENTO No. 100 DE 2018 DE LA BODEGA DE LA ALCALDIA LOCA DE ANTONIO NARIÑO | H181: Funcionamiento | I181: No aplica | J181: =IF(ISERROR(VLOOKUP(I181,#REF!,2,FALSE))," ",VLOOKUP(I181,#REF!,2,FALSE)) ->  | K181: =IF(ISERROR(VLOOKUP(I181,#REF!,3,FALSE))," ",VLOOKUP(I181,#REF!,3,FALSE)) ->  | L181: 3-1-2-02-02-02-0002-001 | N181: HUGO BUSTOS LIEVANO | O181: 13623530 | T181: 13623530 | U181: 13623530 | AD181: X | AF181: 1 | AG181: 13623530 | AH181: =IF(SUMPRODUCT((A$14:A181=A181)*(B$14:B181=B181)*(C$14:C181=C181))>1,0,1) -> 0 | AI181: NO | AJ181: NO | AK181: =IFERROR(VLOOKUP(F181,Tipo!$C$12:$C$27,1,FALSE),"NO") -> NO | AL181: Funcionamiento | AM181: NO
A182: 32126 | B182: 2019 | C182: 4 | G182: ADQUISICIÓN DE SEGURO OBLIGATORIO DE ACCIDENTES DE TRÁNSITO PARA EL VEHÍCULO DE PLACAS OCK-833 CON QUE CUENTA EL FONDO DE DESARROLLO LOCAL DE ANTONIO NARIÑO | H182: Funcionamiento | I182: No aplica | J182: =IF(ISERROR(VLOOKUP(I182,#REF!,2,FALSE))," ",VLOOKUP(I182,#REF!,2,FALSE)) ->  | K182: =IF(ISERROR(VLOOKUP(I182,#REF!,3,FALSE))," ",VLOOKUP(I182,#REF!,3,FALSE)) ->  | L182: 3-1-8-02-02-05-0001-000 | N182: LA PREVISORA COMPAÑÍA DE SEGUROS | O182: 615940 | T182: 615940 | U182: 615940 | AD182: X | AF182: 1 | AG182: 615940 | AH182: =IF(SUMPRODUCT((A$14:A182=A182)*(B$14:B182=B182)*(C$14:C182=C182))>1,0,1) -> 1 | AI182: NO | AJ182: NO | AK182: =IFERROR(VLOOKUP(F182,Tipo!$C$12:$C$27,1,FALSE),"NO") -> NO | AL182: Funcionamiento | AM182: NO
G183: PAGO DE SALUD EDILES 2019 | H183: Funcionamiento | I183: No aplica | J183: =IF(ISERROR(VLOOKUP(I183,#REF!,2,FALSE))," ",VLOOKUP(I183,#REF!,2,FALSE)) ->  | K183: =IF(ISERROR(VLOOKUP(I183,#REF!,3,FALSE))," ",VLOOKUP(I183,#REF!,3,FALSE)) ->  | L183: 3-1-2-02-02-02-0001-006 | N183: MEDIMAS EPS S.A.S. | O183: 4449500 | T183: 4449500 | U183: 4449500 | AD183: X | AF183: 1 | AG183: 4449500 | AH183: =IF(SUMPRODUCT((A$14:A183=A183)*(B$14:B183=B183)*(C$14:C183=C183))>1,0,1) -> 0 | AI183: NO | AJ183: NO | AK183: =IFERROR(VLOOKUP(F183,Tipo!$C$12:$C$27,1,FALSE),"NO") -> NO | AL183: Funcionamiento | AM183: NO
G184: PAGO DE SALUD EDILES 2019 | H184: Funcionamiento | I184: No aplica | J184: =IF(ISERROR(VLOOKUP(I184,#REF!,2,FALSE))," ",VLOOKUP(I184,#REF!,2,FALSE)) ->  | K184: =IF(ISERROR(VLOOKUP(I184,#REF!,3,FALSE))," ",VLOOKUP(I184,#REF!,3,FALSE)) ->  | L184: 3-1-8-02-02-06-0005-000 | N184: MEDIMAS EPS S.A.S. | O184: 852600 | T184: 852600 | U184: 852600 | AD184: X | AF184: 1 | AG184: 852600 | AH184: =IF(SUMPRODUCT((A$14:A184=A184)*(B$14:B184=B184)*(C$14:C184=C184))>1,0,1) -> 0 | AI184: NO | AJ184: NO | AK184: =IFERROR(VLOOKUP(F184,Tipo!$C$12:$C$27,1,FALSE),"NO") -> NO | AL184: Funcionamiento | AM184: NO
A185: 31522 | B185: 2018 | C185: 31522 | G185: CONTRATAR EL SUMINISTRO DE COMBUSTIBLE PARA LOS VEHÍCULOS QUE COMPONEN EL PARQUE AUTOMOTOR DE LA ALCALDÍA LOCAL ANTONIO NARIÑO Y LOS QUE A CUALQUIER TÍTULO LLEGUE A ADQUIRIR | H185: Funcionamiento | I185: No aplica | J185: =IF(ISERROR(VLOOKUP(I185,#REF!,2,FALSE))," ",VLOOKUP(I185,#REF!,2,FALSE)) ->  | K185: =IF(ISERROR(VLOOKUP(I185,#REF!,3,FALSE))," ",VLOOKUP(I185,#REF!,3,FALSE)) ->  | L185: 3-1-8-02-01-03-0000-000 | N185: ORGANIZACION TERPEL S A | O185: 13752000 | T185: 13752000 | U185: 13304245 | AD185: X | AF185: 0.9674407359 | AG185: 13752000 | AH185: =IF(SUMPRODUCT((A$14:A185=A185)*(B$14:B185=B185)*(C$14:C185=C185))>1,0,1) -> 1 | AI185: NO | AJ185: NO | AK185: =IFERROR(VLOOKUP(F185,Tipo!$C$12:$C$27,1,FALSE),"NO") -> NO | AL185: Funcionamiento | AM185: NO
A186: 14424 | B186: 2017 | C186: 14424 | G186: CONTRATAR EL SUMINISTRO DE COMBUSTIBLE PARA LOS VEHÍCULOS QUE COMPONEN EL PARQUE AUTOMOTOR DE LA ALCALDÍA LOCAL ANTONIO NARIÑO Y LOS QUE A CUALQUIER TÍTULO LLEGUE A ADQUIRIR | H186: Funcionamiento | I186: No aplica | J186: =IF(ISERROR(VLOOKUP(I186,#REF!,2,FALSE))," ",VLOOKUP(I186,#REF!,2,FALSE)) ->  | K186: =IF(ISERROR(VLOOKUP(I186,#REF!,3,FALSE))," ",VLOOKUP(I186,#REF!,3,FALSE)) ->  | L186: 3-1-8-02-01-03-0000-000 | N186: ORGANIZACION TERPEL S A | O186: 8969296 | T186: 8969296 | AC186: X | AF186: 0 | AG186: 8969296 | AH186: =IF(SUMPRODUCT((A$14:A186=A186)*(B$14:B186=B186)*(C$14:C186=C186))>1,0,1) -> 1 | AI186: NO | AJ186: NO | AK186: =IFERROR(VLOOKUP(F186,Tipo!$C$12:$C$27,1,FALSE),"NO") -> NO | AL186: Funcionamiento | AM186: NO
A187: 104 | B187: 2018 | C187: 104 | G187: PRESTACIÓN DEL SERVICIO DE VIGILANCIA Y SEGURIDAD PRIVADA PARA LA SEDE ADMINISTRATIVA DE LA ALCALDÍA LOCAL DE ANTONIO NARIÑO Y EL TEATRO VILLA MAYOR. REEMPLAZA EL RP NO. 470 DEL 2017 POR CONSTITUIRSE COMO OBLIGACIONES POR PAGAR. REMPLAZA EL RP N. 107 DEL 2018 POR CONSTITUIRSE OBLIGACIONES POR PAGAR | H187: Funcionamiento | I187: No aplica | J187: =IF(ISERROR(VLOOKUP(I187,#REF!,2,FALSE))," ",VLOOKUP(I187,#REF!,2,FALSE)) ->  | K187: =IF(ISERROR(VLOOKUP(I187,#REF!,3,FALSE))," ",VLOOKUP(I187,#REF!,3,FALSE)) ->  | L187: 3-1-8-02-02-05-0001-000 | N187: REDES Y CONEXIONES ELECTRICAS SAS | O187: 50000000 | T187: 50000000 | U187: 35671018 | AC187: X | AF187: 0.71342036 | AG187: 50000000 | AH187: =IF(SUMPRODUCT((A$14:A187=A187)*(B$14:B187=B187)*(C$14:C187=C187))>1,0,1) -> 1 | AI187: NO | AJ187: NO | AK187: =IFERROR(VLOOKUP(F187,Tipo!$C$12:$C$27,1,FALSE),"NO") -> NO | AL187: Funcionamiento | AM187: NO
A188: 74 | B188: 2018 | C188: 74 | G188: PRESTACIÓN DEL SERVICIO DE VIGILANCIA Y SEGURIDAD PRIVADA PARA LA SEDE ADMINISTRATIVA DE LA ALCALDÍA LOCAL DE ANTONIO NARIÑO Y EL TEATRO VILLA MAYOR. REEMPLAZA EL RP NO. 470 DEL 2017 POR CONSTITUIRSE COMO OBLIGACIONES POR PAGAR. REMPLAZA EL RP N. 107 DEL 2018 POR CONSTITUIRSE OBLIGACIONES POR PAGAR | H188: Funcionamiento | I188: No aplica | J188: =IF(ISERROR(VLOOKUP(I188,#REF!,2,FALSE))," ",VLOOKUP(I188,#REF!,2,FALSE)) ->  | K188: =IF(ISERROR(VLOOKUP(I188,#REF!,3,FALSE))," ",VLOOKUP(I188,#REF!,3,FALSE)) ->  | L188: 3-1-8-02-02-05-0001-000 | N188: Serguridad Privada y Vigilancia Olimpo Seguridad LTDA | O188: 143183 | T188: 143183 | U188: 143183 | AD188: X | AF188: 1 | AG188: 143183 | AH188: =IF(SUMPRODUCT((A$14:A188=A188)*(B$14:B188=B188)*(C$14:C188=C188))>1,0,1) -> 1 | AI188: NO | AJ188: NO | AK188: =IFERROR(VLOOKUP(F188,Tipo!$C$12:$C$27,1,FALSE),"NO") -> NO | AL188: Funcionamiento | AM188: NO
A189: 74 | B189: 2018 | C189: 74 | G189: ADICION CONTRATO 074 DE 2017 CUYO OBJETO ¿PRESTAR EL SERVICIO DE VIGILANCIA Y SEGURIDAD PRIVADA PARA LA SEDE ADMINISTRATIVA DE LA ALCALDIA LOCAL DE ANTONIO NARIÑO Y EL TEATRO VILLA MAYOR. CONTRATAR EL SERVICIO DE VIGILANCIA Y SEGURIDAD PRIVADA, REEMPLAZA EL RP 391 DE 2018, POR CONSTITUIRSE COMO OBLIGACION POR PAGAR | H189: Funcionamiento | I189: No aplica | J189: =IF(ISERROR(VLOOKUP(I189,#REF!,2,FALSE))," ",VLOOKUP(I189,#REF!,2,FALSE)) ->  | K189: =IF(ISERROR(VLOOKUP(I189,#REF!,3,FALSE))," ",VLOOKUP(I189,#REF!,3,FALSE)) ->  | L189: 3-1-8-02-02-05-0001-000 | N189: Serguridad Privada y Vigilancia Olimpo Seguridad LTDA | O189: 5650845 | T189: 5650845 | U189: 5650845 | AD189: X | AF189: 1 | AG189: 5650845 | AH189: =IF(SUMPRODUCT((A$14:A189=A189)*(B$14:B189=B189)*(C$14:C189=C189))>1,0,1) -> 0 | AI189: NO | AJ189: NO | AK189: =IFERROR(VLOOKUP(F189,Tipo!$C$12:$C$27,1,FALSE),"NO") -> NO | AL189: Funcionamiento | AM189: NO
A190: 74 | B190: 2018 | C190: 74 | G190: ADICIÓN Y PRORROGA CONTRATO DE PRESTACIÓN DE SERVICIOS 074 DE 2017 SUSCRITO CON OLIMPO SEGURIDAD LTDA ¿PRESTAR EL SERVICIO DE VIGILANCIA Y SEGURIDAD PRIVADA PARA LA SEDE ADMINISTRATIVA DE LA ALCALDÍA LOCAL DE ANTONIO NARIÑO Y EL TEATRO VILLA MAYOR, REMPLAZA AL CDP 678 DE 2017, POR CONSTITUIRSE EN OBLIGACIONES , REMPLAZA EL RP NO. 448 DEL 2018 POR CONSTITUIRSE COMO OBLIGACIONES POR PAGAR | H190: Funcionamiento | I190: No aplica | J190: =IF(ISERROR(VLOOKUP(I190,#REF!,2,FALSE))," ",VLOOKUP(I190,#REF!,2,FALSE)) ->  | K190: =IF(ISERROR(VLOOKUP(I190,#REF!,3,FALSE))," ",VLOOKUP(I190,#REF!,3,FALSE)) ->  | L190: 3-1-8-02-02-05-0001-000 | N190: Serguridad Privada y Vigilancia Olimpo Seguridad LTDA | O190: 5112463 | T190: 5112463 | U190: 5112463 | AD190: X | AF190: 1 | AG190: 5112463 | AH190: =IF(SUMPRODUCT((A$14:A190=A190)*(B$14:B190=B190)*(C$14:C190=C190))>1,0,1) -> 0 | AI190: NO | AJ190: NO | AK190: =IFERROR(VLOOKUP(F190,Tipo!$C$12:$C$27,1,FALSE),"NO") -> NO | AL190: Funcionamiento | AM190: NO
A191: 99 | B191: 2018 | C191: 99 | G191: PRESTACIÓN DEL SERVICIO DE VIGILANCIA Y SEGURIDAD PRIVADA PARA LA SEDE ADMINISTRATIVA DE LA ALCALDÍA LOCAL DE ANTONIO NARIÑO Y EL TEATRO VILLA MAYOR | H191: Funcionamiento | I191: No aplica | J191: =IF(ISERROR(VLOOKUP(I191,#REF!,2,FALSE))," ",VLOOKUP(I191,#REF!,2,FALSE)) ->  | K191: =IF(ISERROR(VLOOKUP(I191,#REF!,3,FALSE))," ",VLOOKUP(I191,#REF!,3,FALSE)) ->  | L191: 3-1-8-02-02-05-0001-000 | N191: SERACIS LTDA | O191: 59270335 | T191: 59270335 | U191: 59270335 | AD191: X | AF191: 1 | AG191: 59270335 | AH191: =IF(SUMPRODUCT((A$14:A191=A191)*(B$14:B191=B191)*(C$14:C191=C191))>1,0,1) -> 1 | AI191: NO | AJ191: NO | AK191: =IFERROR(VLOOKUP(F191,Tipo!$C$12:$C$27,1,FALSE),"NO") -> NO | AL191: Funcionamiento | AM191: NO
A192: 99 | B192: 2018 | C192: 99 | G192: ADICION CONTRATO DE PRESTACION DE SERVICIOS 099 DE 2018 "SERVICIO DE VIGILANCIA Y SEGURIDAD PRIVADA PARA LA SEDE DE LA ALCALDIA LOCAL Y TEATRO VILLAMAYOR " | H192: Funcionamiento | I192: No aplica | J192: =IF(ISERROR(VLOOKUP(I192,#REF!,2,FALSE))," ",VLOOKUP(I192,#REF!,2,FALSE)) ->  | K192: =IF(ISERROR(VLOOKUP(I192,#REF!,3,FALSE))," ",VLOOKUP(I192,#REF!,3,FALSE)) ->  | L192: 3-1-2-02-02-03-0006-005 | N192: SERACIS LTDA | O192: 18938625 | T192: 18938625 | U192: 17959279 | AD192: X | AF192: 0.9482884317 | AG192: 18938625 | AH192: =IF(SUMPRODUCT((A$14:A192=A192)*(B$14:B192=B192)*(C$14:C192=C192))>1,0,1) -> 0 | AI192: NO | AJ192: NO | AK192: =IFERROR(VLOOKUP(F192,Tipo!$C$12:$C$27,1,FALSE),"NO") -> NO | AL192: Funcionamiento | AM192: NO
A193: 99 | B193: 2018 | C193: 99 | G193: PRESTACIÓN DEL SERVICIO DE VIGILANCIA Y SEGURIDAD PRIVADA PARA LA SEDE ADMINISTRATIVA DE LA ALCALDÍA LOCAL DE ANTONIO NARIÑO Y EL TEATRO VILLA MAYOR. REEMPLAZA EL RP NO. 470 DEL 2017 POR CONSTITUIRSE COMO OBLIGACIONES POR PAGAR. REMPLAZA EL RP N. 107 DEL 2018 POR CONSTITUIRSE OBLIGACIONES POR PAGAR | H193: Funcionamiento | I193: No aplica | J193: =IF(ISERROR(VLOOKUP(I193,#REF!,2,FALSE))," ",VLOOKUP(I193,#REF!,2,FALSE)) ->  | K193: =IF(ISERROR(VLOOKUP(I193,#REF!,3,FALSE))," ",VLOOKUP(I193,#REF!,3,FALSE)) ->  | L193: 3-1-8-02-02-05-0001-000 | N193: SERACIS LTDA | O193: 36451722 | T193: 36451722 | U193: 36451722 | AD193: X | AF193: 1 | AG193: 36451722 | AH193: =IF(SUMPRODUCT((A$14:A193=A193)*(B$14:B193=B193)*(C$14:C193=C193))>1,0,1) -> 0 | AI193: NO | AJ193: NO | AK193: =IFERROR(VLOOKUP(F193,Tipo!$C$12:$C$27,1,FALSE),"NO") -> NO | AL193: Funcionamiento | AM193: NO
A194: 114 | B194: 2017 | C194: 114 | G194: PRESTACIÓN DEL SERVICIO POSTAL NACIONAL PARA LA ALCALDIA LOCAL DE ANTONIO NARIÑO Y SUS DEPENDENCIAS EL CUAL COMPRENDE LA RECOLECCION, CURSO Y ENTREGA DE LA CO-RRESPONDENCIA BAJO LA MODALIDAD DE CO-RREO CERTIFICADO EN DESARROLLO DE LAS AC-TIVIDADES ADMINISTRATIIIVAS Y DE FUNCIONAMIENTO DE LA ENTIDAD. REMPLAZA EL RP NO. 737 DEL 2017 POR CONSTITUIRSE COMO OBLIGACIONES POR PAGAR. REMPLAZA EL RP N. 143 DEL 2018 POR CONSTITUIRSE OBLIGACIONES POR PAGAR | H194: Funcionamiento | I194: No aplica | J194: =IF(ISERROR(VLOOKUP(I194,#REF!,2,FALSE))," ",VLOOKUP(I194,#REF!,2,FALSE)) ->  | K194: =IF(ISERROR(VLOOKUP(I194,#REF!,3,FALSE))," ",VLOOKUP(I194,#REF!,3,FALSE)) ->  | L194: 3-1-8-02-02-03-0000-000 | N194: SERVICIOS POSTALES NACIONALES S A | O194: 5000000 | T194: 5000000 | U194: 0 | AF194: 0 | AG194: 5000000 | AH194: =IF(SUMPRODUCT((A$14:A194=A194)*(B$14:B194=B194)*(C$14:C194=C194))>1,0,1) -> 1 | AI194: NO | AJ194: NO | AK194: =IFERROR(VLOOKUP(F194,Tipo!$C$12:$C$27,1,FALSE),"NO") -> NO | AL194: Funcionamiento | AM194: NO
A195: 36839 | B195: 2019 | C195: 36839 | D195: Suministro | E195: Concurso de méritos | F195: No aplica | G195: Servicio de aseo y cafetería para la sede administrativa de la localidad antonio nariño y el teatro villa mayor | H195: Funcionamiento | I195: No aplica | J195: =IF(ISERROR(VLOOKUP(I195,#REF!,2,FALSE))," ",VLOOKUP(I195,#REF!,2,FALSE)) ->  | K195: =IF(ISERROR(VLOOKUP(I195,#REF!,3,FALSE))," ",VLOOKUP(I195,#REF!,3,FALSE)) ->  | L195: 3-1-2-02-02-03-0006-005 | N195: UNION TEMPORAL BIOLIMPIEZA | O195: 90550090 | R195: 1 | S195: 40000000 | T195: 130550090 | U195: 104056581 | AC195: X | AF195: 0.7970624992 | AG195: 130550090 | AH195: =IF(SUMPRODUCT((A$14:A195=A195)*(B$14:B195=B195)*(C$14:C195=C195))>1,0,1) -> 1 | AI195: Suministro | AJ195: Concurso de méritos | AK195: =IFERROR(VLOOKUP(F195,Tipo!$C$12:$C$27,1,FALSE),"NO") -> NO | AL195: Funcionamiento | AM195: NO
A196: 26411 | B196: 2018 | C196: 26411 | D196: Suministro | E196: Concurso de méritos | F196: No aplica | G196: Contratar el servicio de aseo y cafeteria para la sede administrativa de la Localidad de Antonio Nariño y el Teatro Villa Mayor | H196: Funcionamiento | I196: No aplica | J196: =IF(ISERROR(VLOOKUP(I196,#REF!,2,FALSE))," ",VLOOKUP(I196,#REF!,2,FALSE)) ->  | K196: =IF(ISERROR(VLOOKUP(I196,#REF!,3,FALSE))," ",VLOOKUP(I196,#REF!,3,FALSE)) ->  | L196: 3-1-8-02-02-05-0001-000 | N196: UNION TEMPORAL BIOLIMPIEZA | O196: 60323164 | T196: 60323164 | U196: 56995978 | AF196: 0.944843974 | AG196: 60323164 | AH196: =IF(SUMPRODUCT((A$14:A196=A196)*(B$14:B196=B196)*(C$14:C196=C196))>1,0,1) -> 1 | AI196: Suministro | AJ196: Concurso de méritos | AK196: =IFERROR(VLOOKUP(F196,Tipo!$C$12:$C$27,1,FALSE),"NO") -> NO | AL196: Funcionamiento | AM196: NO
A197: 143 | B197: 2018 | C197: 143 | G197: PRESTACIÓN DEL SERVICIO DE VIGILANCIA Y SEGURIDAD PRIVADA PARA LA SEDE ADMINISTRATIVA DE LA ALCALDÍA LOCAL DE ANTONIO NARIÑO Y EL TEATRO VILLA MAYOR. REEMPLAZA EL RP NO. 470 DEL 2017 POR CONSTITUIRSE COMO OBLIGACIONES POR PAGAR. REMPLAZA EL RP N. 107 DEL 2018 POR CONSTITUIRSE OBLIGACIONES POR PAGAR | H197: Funcionamiento | I197: No aplica | J197: =IF(ISERROR(VLOOKUP(I197,#REF!,2,FALSE))," ",VLOOKUP(I197,#REF!,2,FALSE)) ->  | K197: =IF(ISERROR(VLOOKUP(I197,#REF!,3,FALSE))," ",VLOOKUP(I197,#REF!,3,FALSE)) ->  | L197: 3-1-8-02-01-04-0000-000 | N197: UNION TEMPORAL UT SS 2018 | O197: 42000000 | R197: 1 | S197: 21000000 | T197: 63000000 | AF197: 0 | AG197: 63000000 | AH197: =IF(SUMPRODUCT((A$14:A197=A197)*(B$14:B197=B197)*(C$14:C197=C197))>1,0,1) -> 1 | AI197: NO | AJ197: NO | AK197: =IFERROR(VLOOKUP(F197,Tipo!$C$12:$C$27,1,FALSE),"NO") -> NO | AL197: Funcionamiento | AM197: NO
J198: =IF(ISERROR(VLOOKUP(I198,#REF!,2,FALSE))," ",VLOOKUP(I198,#REF!,2,FALSE)) ->  | K198: =IF(ISERROR(VLOOKUP(I198,#REF!,3,FALSE))," ",VLOOKUP(I198,#REF!,3,FALSE)) ->  | T198: 0 | AF198: - | AG198: 0 | AH198: =IF(SUMPRODUCT((A$14:A198=A198)*(B$14:B198=B198)*(C$14:C198=C198))>1,0,1) -> 0 | AI198: NO | AJ198: NO | AK198: =IFERROR(VLOOKUP(F198,Tipo!$C$12:$C$27,1,FALSE),"NO") -> NO | AL198: NO | AM198: NO
J199: =IF(ISERROR(VLOOKUP(I199,#REF!,2,FALSE))," ",VLOOKUP(I199,#REF!,2,FALSE)) ->  | K199: =IF(ISERROR(VLOOKUP(I199,#REF!,3,FALSE))," ",VLOOKUP(I199,#REF!,3,FALSE)) ->  | T199: 0 | AF199: - | AG199: 0 | AH199: =IF(SUMPRODUCT((A$14:A199=A199)*(B$14:B199=B199)*(C$14:C199=C199))>1,0,1) -> 0 | AI199: NO | AJ199: NO | AK199: =IFERROR(VLOOKUP(F199,Tipo!$C$12:$C$27,1,FALSE),"NO") -> NO | AL199: NO | AM199: NO
J200: =IF(ISERROR(VLOOKUP(I200,#REF!,2,FALSE))," ",VLOOKUP(I200,#REF!,2,FALSE)) ->  | K200: =IF(ISERROR(VLOOKUP(I200,#REF!,3,FALSE))," ",VLOOKUP(I200,#REF!,3,FALSE)) ->  | T200: 0 | AF200: - | AG200: 0 | AH200: =IF(SUMPRODUCT((A$14:A200=A200)*(B$14:B200=B200)*(C$14:C200=C200))>1,0,1) -> 0 | AI200: NO | AJ200: NO | AK200: =IFERROR(VLOOKUP(F200,Tipo!$C$12:$C$27,1,FALSE),"NO") -> NO | AL200: NO | AM200: NO
J201: =IF(ISERROR(VLOOKUP(I201,#REF!,2,FALSE))," ",VLOOKUP(I201,#REF!,2,FALSE)) ->  | K201: =IF(ISERROR(VLOOKUP(I201,#REF!,3,FALSE))," ",VLOOKUP(I201,#REF!,3,FALSE)) ->  | T201: 0 | AF201: - | AG201: 0 | AH201: =IF(SUMPRODUCT((A$14:A201=A201)*(B$14:B201=B201)*(C$14:C201=C201))>1,0,1) -> 0 | AI201: NO | AJ201: NO | AK201: =IFERROR(VLOOKUP(F201,Tipo!$C$12:$C$27,1,FALSE),"NO") -> NO | AL201: NO | AM201: NO
J202: =IF(ISERROR(VLOOKUP(I202,#REF!,2,FALSE))," ",VLOOKUP(I202,#REF!,2,FALSE)) ->  | K202: =IF(ISERROR(VLOOKUP(I202,#REF!,3,FALSE))," ",VLOOKUP(I202,#REF!,3,FALSE)) ->  | T202: 0 | AF202: - | AG202: 0 | AH202: =IF(SUMPRODUCT((A$14:A202=A202)*(B$14:B202=B202)*(C$14:C202=C202))>1,0,1) -> 0 | AI202: NO | AJ202: NO | AK202: =IFERROR(VLOOKUP(F202,Tipo!$C$12:$C$27,1,FALSE),"NO") -> NO | AL202: NO | AM202: NO
... 379 more rows

Sheet Tipo (hidden)
B1: Tipo | C1: Modalidad de Selección | D1: afectacion
A2: 1 | B2: Obra pública | C2: Concurso de méritos | D2: Funcionamiento
A3: 2 | B3: Consultoría | C3: Contratación directa | D3: Inversión
A4: 3 | B4: Interventoría | C4: Contratación mínima cuantia | D4: Operación
A5: 4 | B5: Contratos de prestación de servicios | C5: Selección abreviada
A6: 5 | B6: Contratos de prestación de servicios profesionales y de apoyo a la gestión | C6: Licitación pública
A7: 6 | B7: Compraventa de bienes muebles | C7: Régimen privado
A8: 7 | B8: Compraventa de bienes inmuebles | C8: Régimen especial
A9: 8 | B9: Arrendamiento de bienes muebles
A10: 9 | B10: Arrendamiento de bienes inmuebles
A11: 10 | B11: Seguros | C11: Selección abreviada
A12: 11 | B12: Suministro | C12: Subasta inversa
A13: 12 | B13: Empréstitos | C13: Bolsas de productos
A14: 13 | B14: Fiducia mercantil o encargo fiduciario | C14: Acuerdo marco de precios
A15: 14 | B15: Concesión | C15: Selección abreviada por menor cuantía
A16: 15 | B16: Convenios de cooperacion
A17: 16 | B17: Contratos interadministrativos | C17: contratacion directa
A18: 17 | B18: Convenios de apoyo y/o convenios de asociación | C18: Urgencia manifiesta
A19: 18 | B19: Asociaciones público privadas | C19: Contratación de empréstitos
A20: 19 | B20: Otros | C20: Contratos interadministrativos
A21: 20 | B21: Otros gastos | C21: Contratación de bienes y servicios en el sector Defensa y en el Departamento Administrativo de Seguridad, DAS
C22: Contratos para el desarrollo de actividades científicas y tecnológicas
C23: Contratos de encargo fiduciario que celebren las entidades territoriales cuando inician el Acuerdo de Reestructuración de Pasivos
C24: Cuando no exista pluralidad de oferentes en el mercado
C25: Prestación de servicios profesionales y de apoyo a la gestión, o para la ejecución de trabajos artísticos que sólo puedan encomendarse a determinadas personas naturales;
C26: El arrendamiento o adquisición de inmuebles
C27: Contratación de bienes y servicios de la Dirección Nacional de Inteligencia (DNI)
C30: Decreto 92 de 2017
C31: No aplica
